date,department/service,beneficiary,amount,summary of purpose,category,transaction number,SAP vendor number
01.11.2019,ADULT SOCIAL CARE,SYKES CHOICE LTD,"4,254.80",SAFEGUARDING & DOLS,OTHER CONTRACTORS,5902385524,1000082690
01.11.2019,CENTRAL FUNCTIONS,OCO LIMITED,"7,626.25",AYLESBURY,OTHER R&M,5902385450,1006066
01.11.2019,CHILDREN AND ADULT,CONWAY AECOM LTD,"10,584.97",CAPITAL PS (EDUCATION),CONSTRUCTION MAIN CONTRACT,2103022522,3000001595
01.11.2019,CHILDREN AND ADULT,CONWAY AECOM LTD,"28,031.02",CAPITAL PS (EDUCATION),CONSTRUCTION MAIN CONTRACT,2103022521,3000001595
01.11.2019,CHILDREN'S SERVICES,AIDHOUR LIMITED,"1,062.65",CLA TEAM SAFEGUARDING,PROFESSIONAL FEES,5902385517,1000057345
01.11.2019,ENVIRONMENT DIRECTORATE,HAVEBIKE LTD,495,"ROAD SAFETY EDUCATION,TRAINING&PUBLICITY",PROFESSIONAL FEES,5902385168,1000073961
01.11.2019,LEISURE DIRECTORATE,NPOWER,277.76,SDM BUDGET,ELECTRICITY,5902385868,1000032342
01.11.2019,LEISURE DIRECTORATE,NPOWER,577.72,SDM BUDGET,ELECTRICITY,5902385881,1000032342
01.11.2019,MODERNISATION HGF,ESSENTRA SECURITY LTD,707.1,160 TOOLEY ST.,BUILDING R&M,5902385284,1000025760
01.11.2019,RESIDENT SERVICES,NPOWER,925.49,TA HOSTELS,ELECTRICITY,5902385439,1000064203
02.11.2019,ADULT SOCIAL CARE,LAMNAO SERVICES LTD,"1,857.40",SAFEGUARDING & DOLS,EXTERNAL AGENCIES AND BODIES,5902385334,1000082441
02.11.2019,CUSTOMER EXPERIENCE HGF,BACK ON TRACK HOUSING,"1,282.68",HOMELESS PROJECTS,GRANTS,5902385325,1000071262
02.11.2019,ENVIRONMENT AND LEISURE,CYCLEHOOP LTD,"2,800.00",CAPITAL PS (LEISURE),CONST'N MAIN CONTRACT - NON CERTIFICATED,5902385557,1000057894
02.11.2019,ENVIRONMENT DIRECTORATE,BRITISH PEST CONTROL ASSOCIATION,"1,990.00",PEST CONTROL,TRAINING,5902385466,1000053441
02.11.2019,LEISURE DIRECTORATE,RH WROUGHT IRON,960,DULWICH AREA TEAM,OTHER R&M,2103022796,3000000680
02.11.2019,MODERNISATION HGF,ESSENTRA SECURITY LTD,350,160 TOOLEY ST.,BUILDING R&M,5902385566,1000025760
02.11.2019,PLANNING AND TRANSPORT,SOUTHWARK NEWSPAPER LTD,504,DEVELOPMENT CONTROL ADMINSTRATION,MARKETING & PUBLICITY SERVICES,5902385444,1556957
03.11.2019,ENVIRONMENT AND LEISURE,RH WROUGHT IRON,"3,000.00",CAPITAL PS (LEISURE),CONSTRUCTION MAIN CONTRACT -CERTIFICATED,2103022795,3000000680
03.11.2019,ENVIRONMENT DIRECTORATE,TOWN & COUNTRY TURF,654.15,GROUNDS MAINTENANCE - GENERAL,MATERIALS,5902385484,1000079312
03.11.2019,REGENERATION,CLYDE & CO LLP,"3,143.20","COURAGE YARD, SHAD THAMES",BUILDING R&M,5902385578,1000082559
03.11.2019,REGENERATION,CLYDE & CO LLP,"8,168.48","COURAGE YARD, SHAD THAMES",BUILDING R&M,5902385578,1000082559
03.11.2019,REGENERATION,CLYDE & CO LLP,"29,220.00","COURAGE YARD, SHAD THAMES",BUILDING R&M,5902385578,1000082559
04.11.2019,ADULT SOCIAL CARE,MORTIMER SOCIETY,300,APPOINTEESHIPS,OTHER PAYMENTS FOR CLIENTS,2103023257,1002942
04.11.2019,ADULT SOCIAL CARE,WINDSOR WALK HOUSING ASSOCIATION,266.8,APPOINTEESHIPS,OTHER PAYMENTS FOR CLIENTS,2103023232,1012653
04.11.2019,ADULT SOCIAL CARE,CHOICE SUPPORT,400,APPOINTEESHIPS,OTHER PAYMENTS FOR CLIENTS,2103023233,1104183
04.11.2019,ADULT SOCIAL CARE,PEABODY TRUST,267.68,APPOINTEESHIPS,OTHER PAYMENTS FOR CLIENTS,2103023208,11275862
04.11.2019,ADULT SOCIAL CARE,PEABODY TRUST,638.84,APPOINTEESHIPS,OTHER PAYMENTS FOR CLIENTS,2103023209,11275862
04.11.2019,ADULT SOCIAL CARE,HYDE HOUSING ASSOCIATION LTD,900.16,APPOINTEESHIPS,OTHER PAYMENTS FOR CLIENTS,2103023228,1000013980
04.11.2019,ADULT SOCIAL CARE,HYDE HOUSING ASSOCIATION LTD,"1,166.68",APPOINTEESHIPS,OTHER PAYMENTS FOR CLIENTS,2103023222,1000013980
04.11.2019,ADULT SOCIAL CARE,UPLANDS CARE HOME,300,APPOINTEESHIPS,OTHER PAYMENTS FOR CLIENTS,2103023230,1000014374
04.11.2019,ADULT SOCIAL CARE,AMBLESIDE LODGE,360,APPOINTEESHIPS,OTHER PAYMENTS FOR CLIENTS,2103023160,1000042535
04.11.2019,ADULT SOCIAL CARE,SOUTH LONDON & MAUDSLEY NHS TRUST,280,APPOINTEESHIPS,OTHER PAYMENTS FOR CLIENTS,2103023214,1000043352
04.11.2019,ADULT SOCIAL CARE,SOUTH LONDON & MAUDSLEY NHS TRUST,280,APPOINTEESHIPS,OTHER PAYMENTS FOR CLIENTS,2103023258,1000043352
04.11.2019,ADULT SOCIAL CARE,GOLDEN LANE HOUSING LTD,946.72,APPOINTEESHIPS,OTHER PAYMENTS FOR CLIENTS,2103023184,1000046267
04.11.2019,ADULT SOCIAL CARE,GLEN CARE GROUP,300,APPOINTEESHIPS,OTHER PAYMENTS FOR CLIENTS,2103023183,1000050223
04.11.2019,ADULT SOCIAL CARE,AFFINITY SUTTON HOMES LTD,319.24,APPOINTEESHIPS,OTHER PAYMENTS FOR CLIENTS,2103023158,1000051647
04.11.2019,ADULT SOCIAL CARE,HEXAGON HOUSING ASSOCIATION LTD,604.12,APPOINTEESHIPS,OTHER PAYMENTS FOR CLIENTS,2103023185,1000056905
04.11.2019,ADULT SOCIAL CARE,DINARDO SUPPORTS LTD,378.53,APPOINTEESHIPS,OTHER PAYMENTS FOR CLIENTS,2103023177,1000063093
04.11.2019,ADULT SOCIAL CARE,DINARDO SUPPORTS LTD,378.53,APPOINTEESHIPS,OTHER PAYMENTS FOR CLIENTS,2103023178,1000063093
04.11.2019,ADULT SOCIAL CARE,FOUNTAIN CARE LTD,329.4,APPOINTEESHIPS,OTHER PAYMENTS FOR CLIENTS,2103023241,1000066815
04.11.2019,ADULT SOCIAL CARE,METROPOLITAN HOUSING TRUST,464.8,APPOINTEESHIPS,OTHER PAYMENTS FOR CLIENTS,2103023199,1000069880
04.11.2019,ADULT SOCIAL CARE,LOOK AHEAD CARE AND SUPPORT LTD,278.08,APPOINTEESHIPS,OTHER PAYMENTS FOR CLIENTS,2103023197,1000072923
04.11.2019,ADULT SOCIAL CARE,LOOK AHEAD CARE AND SUPPORT LTD,935.16,APPOINTEESHIPS,OTHER PAYMENTS FOR CLIENTS,2103023194,1000072923
04.11.2019,ADULT SOCIAL CARE,LONDON CYRENIANS HOUSING LTD,600,APPOINTEESHIPS,OTHER PAYMENTS FOR CLIENTS,2103023191,1000078600
04.11.2019,ADULT SOCIAL CARE,ELIZABETH PETERS CARE HOMES LTD,280,APPOINTEESHIPS,OTHER PAYMENTS FOR CLIENTS,2103023179,1000078858
04.11.2019,ADULT SOCIAL CARE,DANSHELL GROUP,320,APPOINTEESHIPS,OTHER PAYMENTS FOR CLIENTS,2103023173,1000079284
04.11.2019,ADULT SOCIAL CARE,POP INN CAFE,280,APPOINTEESHIPS,OTHER PAYMENTS FOR CLIENTS,2103023212,1000079353
04.11.2019,ADULT SOCIAL CARE,STRADA CARE LTD,400,APPOINTEESHIPS,OTHER PAYMENTS FOR CLIENTS,2103023217,1000082133
04.11.2019,ADULT SOCIAL CARE,SALISBURY SUPPORT 4 AUTISM LTD,400,APPOINTEESHIPS,OTHER PAYMENTS FOR CLIENTS,2103023213,1000082674
04.11.2019,ADULT SOCIAL CARE,REDACTED PERSONAL DATA,320,APPOINTEESHIPS,OTHER PAYMENTS FOR CLIENTS,REDACTED,REDACTED
04.11.2019,ADULT SOCIAL CARE,REDACTED PERSONAL DATA,260,APPOINTEESHIPS,OTHER PAYMENTS FOR CLIENTS,REDACTED,REDACTED
04.11.2019,ADULT SOCIAL CARE,REDACTED PERSONAL DATA,623.4,APPOINTEESHIPS,OTHER PAYMENTS FOR CLIENTS,REDACTED,REDACTED
04.11.2019,ADULT SOCIAL CARE,REDACTED PERSONAL DATA,520,APPOINTEESHIPS,OTHER PAYMENTS FOR CLIENTS,REDACTED,REDACTED
04.11.2019,ADULT SOCIAL CARE,REDACTED PERSONAL DATA,400,APPOINTEESHIPS,OTHER PAYMENTS FOR CLIENTS,REDACTED,REDACTED
04.11.2019,ADULT SOCIAL CARE,REDACTED PERSONAL DATA,440,APPOINTEESHIPS,OTHER PAYMENTS FOR CLIENTS,REDACTED,REDACTED
04.11.2019,ADULT SOCIAL CARE,HUNTERS CONTRACTS LTD,"2,360.00",DEBT TASK FORCE,FURNITURE PURCHASE & REPAIR,5902386042,1000065904
04.11.2019,ADULT SOCIAL CARE,KIRA INDEPENDENT LTD,490,FAMILY LINK,PROFESSIONAL FEES,5902385944,1000073565
04.11.2019,ADULT SOCIAL CARE,KIRA INDEPENDENT LTD,"2,200.00",FAMILY LINK,PROFESSIONAL FEES,5902385934,1000073565
04.11.2019,ADULT SOCIAL CARE,KIRA INDEPENDENT LTD,"2,200.00",FAMILY LINK,PROFESSIONAL FEES,5902385953,1000073565
04.11.2019,ADULT SOCIAL CARE,HARRISON CATERING SERVICES LTD,"3,533.11",FRED FRANCIS CENTRE,CATERING MATERIALS & SUPPLIES,5902386000,1000025486
04.11.2019,ADULT SOCIAL CARE,SHAW & SONS LTD,260.1,LD/MH/SM MANAGEMENT,STATIONERY,5902385964,1010828
04.11.2019,ADULT SOCIAL CARE,EDF ENERGY PLC,-509.77,MAROON CENTRE,ELECTRICITY,5902386040,1008746
04.11.2019,ADULT SOCIAL CARE,EDF ENERGY PLC,876.25,MAROON CENTRE,ELECTRICITY,5902386072,1008746
04.11.2019,ADULT SOCIAL CARE,PEOPLEPLUS ILS,720,MEM LTS 65+,PAYMENTS TO CLIENTS (DIRECT PAYMENTS),2103023481,1000061886
04.11.2019,ADULT SOCIAL CARE,PEOPLEPLUS ILS,"1,119.20",MEM LTS 65+,PAYMENTS TO CLIENTS (DIRECT PAYMENTS),2103023480,1000061886
04.11.2019,ADULT SOCIAL CARE,REDACTED PERSONAL DATA,"4,828.56",PHB- SOUTHWARK CCG,RECOVERABLE COSTS INCL. HEALTH,REDACTED,REDACTED
04.11.2019,ADULT SOCIAL CARE,SERVESOUL LTD,408.91,PHY LTS 18-64,HOMECARE - SPOT,2103023443,1000081503
04.11.2019,ADULT SOCIAL CARE,PEOPLEPLUS ILS,424.2,PHY LTS 18-64,PAYMENTS TO CLIENTS (DIRECT PAYMENTS),2103023478,1000061886
04.11.2019,ADULT SOCIAL CARE,SERVESOUL LTD,262.87,PHY LTS 65+,HOMECARE - SPOT,2103023441,1000081503
04.11.2019,ADULT SOCIAL CARE,SERVESOUL LTD,292.08,PHY LTS 65+,HOMECARE - SPOT,2103023438,1000081503
04.11.2019,ADULT SOCIAL CARE,SERVESOUL LTD,308.77,PHY LTS 65+,HOMECARE - SPOT,2103023450,1000081503
04.11.2019,ADULT SOCIAL CARE,SERVESOUL LTD,346.32,PHY LTS 65+,HOMECARE - SPOT,2103023447,1000081503
04.11.2019,ADULT SOCIAL CARE,SERVESOUL LTD,408.91,PHY LTS 65+,HOMECARE - SPOT,2103023456,1000081503
04.11.2019,ADULT SOCIAL CARE,SERVESOUL LTD,421.42,PHY LTS 65+,HOMECARE - SPOT,2103023467,1000081503
04.11.2019,ADULT SOCIAL CARE,SERVESOUL LTD,433.94,PHY LTS 65+,HOMECARE - SPOT,2103023465,1000081503
04.11.2019,ADULT SOCIAL CARE,SERVESOUL LTD,525.74,PHY LTS 65+,HOMECARE - SPOT,2103023436,1000081503
04.11.2019,ADULT SOCIAL CARE,SERVESOUL LTD,525.74,PHY LTS 65+,HOMECARE - SPOT,2103023457,1000081503
04.11.2019,ADULT SOCIAL CARE,SERVESOUL LTD,534.08,PHY LTS 65+,HOMECARE - SPOT,2103023474,1000081503
04.11.2019,ADULT SOCIAL CARE,SERVESOUL LTD,559.12,PHY LTS 65+,HOMECARE - SPOT,2103023463,1000081503
04.11.2019,ADULT SOCIAL CARE,SERVESOUL LTD,579.98,PHY LTS 65+,HOMECARE - SPOT,2103023468,1000081503
04.11.2019,ADULT SOCIAL CARE,SERVESOUL LTD,584.15,PHY LTS 65+,HOMECARE - SPOT,2103023461,1000081503
04.11.2019,ADULT SOCIAL CARE,SERVESOUL LTD,642.57,PHY LTS 65+,HOMECARE - SPOT,2103023472,1000081503
04.11.2019,ADULT SOCIAL CARE,PEOPLEPLUS ILS,339.36,PHY LTS 65+,PAYMENTS TO CLIENTS (DIRECT PAYMENTS),2103023479,1000061886
04.11.2019,ADULT SOCIAL CARE,THAMES HOMECARE SERVICE LTD,"27,300.00",REABLEMENT CONTRACT,HOMECARE - C&V,5902385970,1000079295
04.11.2019,ADULT SOCIAL CARE,SERVESOUL LTD,375.53,SUB LTS 18-64,HOMECARE - SPOT,2103023434,1000081503
04.11.2019,ASSET MANAGEMENT,STANNAH LIFT SERVICES LTD,"6,273.00",ADAPTATIONS,BUILDING R&M,5902386005,1063595
04.11.2019,ASSET MANAGEMENT,JUDGE AND PRIESTLEY SOLICITORS,"80,688.50",DISREPAIR,PAYMENTS FOR LEGAL SERVICES,5902386164,1472217
04.11.2019,ASSET MANAGEMENT,CALFORD SEADEN LLP,"2,051.39",HIP MAJOR WORKS,PROFESSIONAL FEES,5902385998,1061592
04.11.2019,CENTRAL FUNCTIONS,BLAKENEY LEIGH LTD,"2,669.78",AYLESBURY,PROFESSIONAL FEES,5902385982,1438839
04.11.2019,CENTRAL FUNCTIONS,STANBURY BUILDING SERVICES LTD,395,COMMERCIAL PROPERTIES,BUILDING R&M,2103023487,3000001967
04.11.2019,CENTRAL FUNCTIONS,STANBURY BUILDING SERVICES LTD,495,COMMERCIAL PROPERTIES,BUILDING R&M,2103023488,3000001967
04.11.2019,CENTRAL FUNCTIONS,STANBURY BUILDING SERVICES LTD,650,COMMERCIAL PROPERTIES,BUILDING R&M,2103023491,3000001967
04.11.2019,CENTRAL FUNCTIONS,STANBURY BUILDING SERVICES LTD,950,COMMERCIAL PROPERTIES,BUILDING R&M,2103023489,3000001967
04.11.2019,CENTRAL FUNCTIONS,STANBURY BUILDING SERVICES LTD,"1,295.00",COMMERCIAL PROPERTIES,BUILDING R&M,2103023490,3000001967
04.11.2019,CENTRAL FUNCTIONS,ETC VENUES LTD,400,OPERATIONAL TEAM,TRAINING,5902385971,1000045226
04.11.2019,CHIEF EXECUTIVE,UNTITLED PRACTICE LLP,"3,093.75",CAPITAL PS (REGEN),CONSTRUCTION FEES  - EXTERNAL,5902385951,1000080426
04.11.2019,CHIEF EXECUTIVE,KENT COUNTY COUNCIL - LASER,"1,993.21",CAPITAL PS (REGEN),CONSTRUCTION MAIN CONTRACT -CERTIFICATED,5902386137,1000012926
04.11.2019,CHIEF EXECUTIVE'S OFFICE,WELLFAIR2WORK LTD,"32,147.13",CHIEF EXEC'S OFFICE,EXTERNAL AGENCIES AND BODIES,5902386126,1000078927
04.11.2019,CHILDREN'S,DRAINAGE TECHNICAL SERVICES LTD,925,CAPITAL PS (EDUCATION),CONSTRUCTION FEES,5902386105,1000075790
04.11.2019,CHILDREN'S SERVICES,KENT COUNTY COUNCIL - LASER,661.46,BUILDING SUMNER,GAS,5902385990,1000012926
04.11.2019,CHILDREN'S SERVICES,REDACTED PERSONAL DATA,500,CASEWORK OLA  0-8,CONTRIBUTION TO PROVISIONS (TP PAYMENTS),REDACTED,REDACTED
04.11.2019,CHILDREN'S SERVICES,BEYONDAUTISM,"12,000.00",CASEWORK OLA  0-8,EXTERNAL AGENCIES AND BODIES,2103023260,1000080312
04.11.2019,CHILDREN'S SERVICES,BEYONDAUTISM,"12,000.00",CASEWORK OLA  0-8,EXTERNAL AGENCIES AND BODIES,2103023261,1000080312
04.11.2019,CHILDREN'S SERVICES,BEYONDAUTISM,"12,000.00",CASEWORK OLA  0-8,EXTERNAL AGENCIES AND BODIES,2103023262,1000080312
04.11.2019,CHILDREN'S SERVICES,BEYONDAUTISM,"12,000.00",CASEWORK OLA  0-8,EXTERNAL AGENCIES AND BODIES,2103023263,1000080312
04.11.2019,CHILDREN'S SERVICES,BEYONDAUTISM,"12,000.00",CASEWORK OLA  0-8,EXTERNAL AGENCIES AND BODIES,2103023264,1000080312
04.11.2019,CHILDREN'S SERVICES,ISABELLE GRAVENSTEIN T/A REVIVAL,928,CENTRAL SUPPORT,MEDICAL / HEALTH & SAFETY SERVICES,5902386127,1000027424
04.11.2019,CHILDREN'S SERVICES,JESS MALLY,330,CHILDREN IN CARE EVENTS,EXTERNAL AGENCIES AND BODIES,5902385006,1000083015
04.11.2019,CHILDREN'S SERVICES,AVOCET SOCIAL CARE LTD,"6,550.00",FOSTERING PRAC GROUPS,PROFESSIONAL FEES,5902385959,1000071940
04.11.2019,CHILDREN'S SERVICES,HERTS FOR LEARNING LTD,"1,550.00",FREE AND EARLY LEARNING TEAM,TRAINING,5902385899,1000083381
04.11.2019,CHILDREN'S SERVICES,ST JOHNS WALWORTH CE SCHOOL,"5,516.00",INTERVENTION FUND,MISCELLANEOUS RECHARGES,2103023346,5001000072
04.11.2019,CHILDREN'S SERVICES,UNIQUE CARE HOMES SUPPORT LTD,"13,652.80",PFA TEAM SOUTHWARK 9 PLUS,RECOUPMENT,2103023058,1000083349
04.11.2019,CHILDREN'S SERVICES,THE COMPLETE WORKS INDEPENDENT SCHOOL,"2,478.00",PFA TEAM SOUTHWARK 9 PLUS,"SCHOOLS CAPITATION, OTHER GRANTS",2103023268,1000033256
04.11.2019,CHILDREN'S SERVICES,THE COMPLETE WORKS INDEPENDENT SCHOOL,"2,870.00",PFA TEAM SOUTHWARK 9 PLUS,"SCHOOLS CAPITATION, OTHER GRANTS",2103023259,1000033256
04.11.2019,CHILDREN'S SERVICES,THE COMPLETE WORKS INDEPENDENT SCHOOL,"7,175.00",PFA TEAM SOUTHWARK 9 PLUS,"SCHOOLS CAPITATION, OTHER GRANTS",2103023269,1000033256
04.11.2019,CHILDREN'S SERVICES,INTERCOUNTRY ADOPTION CENTRE,"6,500.00",REGIONAL ADOPTION AGENCY,EXTERNAL AGENCIES AND BODIES,5902386123,1000035796
04.11.2019,CHILDREN'S SERVICES,HUNTERS CONTRACTS LTD,"2,360.00",REGIONAL ADOPTION AGENCY,FURNITURE PURCHASE & REPAIR,5902386042,1000065904
04.11.2019,CHILDREN'S SERVICES,FIT FOR SPORT LTD,295,S & FAM SUPP - PRAC GRP F SET 29-31,OTHER PAYMENTS FOR CLIENTS,5902386135,1000067092
04.11.2019,CHILDREN'S SERVICES,FIT FOR SPORT LTD,"1,137.50",S & FAM SUPP - PRAC GRP F SET 29-31,OTHER PAYMENTS FOR CLIENTS,5902386135,1000067092
04.11.2019,CHILDREN'S SERVICES,ACCESS MOBILITY TRANSPORT LTD,"4,726.80",SCH TRANS - CONTRACT COST,CAB FARES,5902386041,1000074637
04.11.2019,CHILDREN'S SERVICES,KENT COUNTY COUNCIL,"62,362.12",SCH TRANS - CONTRACT COST,RECOUPMENT,5902386045,1000053817
04.11.2019,CHILDREN'S SERVICES,OFFICE DEPOT UK LTD,254.8,YOS SUPPORT,STATIONERY,5902386124,1109426
04.11.2019,COMMISSIONING & CENTRAL,TACK UK TRAINING LTD,"1,249.00",COMMISSIONING,EXTERNAL AGENCIES AND BODIES,5902385974,1000083398
04.11.2019,COMMUNITIES,RED R DESIGN,650,COMMUNITY COUNCILS TEAM,MARKETING & PUBLICITY SERVICES,5902385942,1000035984
04.11.2019,COMMUNITIES,BEDE HOUSE ASSOCIATION,"2,935.50",COMMUNITY SAFETY FUND,EXTERNAL AGENCIES AND BODIES,5902386118,11265073
04.11.2019,COMMUNITIES,THE PARTICIPATION PEOPLE,"6,849.50",COMMUNITY SAFETY FUND,EXTERNAL AGENCIES AND BODIES,5902386120,1000074059
04.11.2019,COMMUNITIES,DEYNSFORD TENANT MANAGEMENT ORGANISATION,"6,405.34",D'EYNSFORD ESTATE,M&M ALLOWANCE CO-OPS,5902385937,1000075613
04.11.2019,COMMUNITIES,SHUTTLEWORTH (UK) LTD,"3,240.00",NO RECOURSE TO PUBLIC FUNDS,ACCOMMODATION CHARGES,5902386038,1000056468
04.11.2019,COMMUNITIES,LIVING ACCOMODATION LTD,"10,675.00",NO RECOURSE TO PUBLIC FUNDS,ACCOMMODATION CHARGES,5902386043,1000063985
04.11.2019,COMMUNITIES,ACTIVE COMMUNITIES NETWORK LTD,"71,543.00",SOUTHWARK ANTI VIOLENCE UNIT,PROFESSIONAL FEES,5902386140,1000057408
04.11.2019,COMMUNITIES,STYLES HOUSE TMO,"3,887.52",STYLES HOUSE TMO,M&M ALLOWANCE CO-OPS,5902386143,1000072012
04.11.2019,CUSTOMER EXPERIENCE,KENT COUNTY COUNCIL - LASER,"2,293.76",CUSTOMER SUPPORT,ELECTRICITY,5902386104,1000012926
04.11.2019,CUSTOMER EXPERIENCE,AMPHLETT LISSIMORE SOLCITORS,350,SALES & ACQUISITIONS,LEGAL FEES & COURT COSTS,5902386109,1398651
04.11.2019,CUSTOMER EXPERIENCE HGF,IMPERIAL COLLEGE PROJECTS LTD,336,CORONER'S,PROFESSIONAL FEES,5902385960,1000080106
04.11.2019,CUSTOMER EXPERIENCE HGF,IMPERIAL COLLEGE PROJECTS LTD,356,CORONER'S,PROFESSIONAL FEES,5902385955,1000080106
04.11.2019,CUSTOMER EXPERIENCE HGF,IMPERIAL COLLEGE PROJECTS LTD,520,CORONER'S,PROFESSIONAL FEES,5902385956,1000080106
04.11.2019,CUSTOMER EXPERIENCE HGF,IMPERIAL COLLEGE PROJECTS LTD,544,CORONER'S,PROFESSIONAL FEES,5902385961,1000080106
04.11.2019,CUSTOMER EXPERIENCE HGF,IMPERIAL COLLEGE PROJECTS LTD,632,CORONER'S,PROFESSIONAL FEES,5902385958,1000080106
04.11.2019,CUSTOMER EXPERIENCE HGF,CARIDON LANDLORD SOLUTIONS LTD,"1,299.06",HOMELESS PROJECTS,GRANTS,5902386149,1000080555
04.11.2019,CUSTOMER EXPERIENCE HGF,CARIDON LANDLORD SOLUTIONS LTD,"1,299.06",HOMELESS PROJECTS,GRANTS,5902386150,1000080555
04.11.2019,CUSTOMER EXPERIENCE HGF,POSTURITE (UK) LTD,706.17,HOUSING OPTIONS,OFFICE EXPENSES,5902386049,11015468
04.11.2019,CUSTOMER EXPERIENCE HGF,THE CAMDEN SOCIETY (CATERING),359.6,HOUSING OPTIONS,REFRESHMENTS FOR MEETINGS,5902385975,1000075365
04.11.2019,CUSTOMER EXPERIENCE HGF,SHELTER TRAINING LTD,300,HOUSING OPTIONS,TRAINING,5902386012,1000033177
04.11.2019,CUSTOMER EXPERIENCE HGF,THE ASSOCIATION OF HOUSING ADVICE SERVICES,"2,000.00",HOUSING OPTIONS,TRAINING,5902386015,1000061712
04.11.2019,CUSTOMER EXPERIENCE HGF,BIRCHAM DYSON BELL,"106,333.23",LONDON BRIDGE INQUEST,LEGAL FEES & COURT COSTS,5902386048,1000048605
04.11.2019,CUSTOMER EXPERIENCE HGF,GUYS & ST THOMAS NHS FOUNDATION TRUST,"5,954.00",MORTUARY,OTHER CONTRACTORS,5902386037,1765536
04.11.2019,CUSTOMER EXPERIENCE HGF,CITYGLEN LTD,"31,685.00",NIGHTLY TA (NSC),EXTERNAL AGENCIES AND BODIES,5902386007,1000026239
04.11.2019,CUSTOMER EXPERIENCE HGF,NATIONWIDE ACCOMMODATION,958.5,NIGHTLY TA (NSC),EXTERNAL AGENCIES AND BODIES,5902386111,1000076112
04.11.2019,CUSTOMER EXPERIENCE HGF,CYBERSTYLE LETTINGS LTD,"23,101.00",NIGHTLY TA (NSC),EXTERNAL AGENCIES AND BODIES,5902386107,1000079319
04.11.2019,CUSTOMER EXPERIENCE HGF,DMS PROPERTIES SERVICES LTD,"44,241.00",NIGHTLY TA (NSC),EXTERNAL AGENCIES AND BODIES,5902386158,1000081522
04.11.2019,CUSTOMER EXPERIENCE HGF,IDEAL QUARTERS LTD,"93,992.23",PSL PLACEMENTS,EXTERNAL AGENCIES AND BODIES,5902385943,1000079241
04.11.2019,ENVIRONMENT AND LEISURE,PENNACK T&RA,845,CAPITAL PS (LEISURE),CAPITAL GRANTS,5902385928,1000069506
04.11.2019,ENVIRONMENT AND LEISURE,ST JOHNS & ST CLEMENTS CE SCHOOL,"6,984.00",CAPITAL PS (LEISURE),CAPITAL GRANTS,5902385933,5001000073
04.11.2019,ENVIRONMENT AND LEISURE,ARC ENVIRONMENTAL LTD,"2,750.00",CAPITAL PS (LEISURE),CONSTRUCTION FEES  - EXTERNAL,5902385968,1000083239
04.11.2019,ENVIRONMENT DIRECTORATE,OFFICE DEPOT UK LTD,467.49,CCTV,STATIONERY,5902386145,1109426
04.11.2019,ENVIRONMENT DIRECTORATE,F H BRUNDLE,278.2,ENGINEERING CRAFTS,MATERIALS,5902385924,1082714
04.11.2019,ENVIRONMENT DIRECTORATE,F H BRUNDLE,542.2,ENGINEERING CRAFTS,MATERIALS,5902385919,1082714
04.11.2019,ENVIRONMENT DIRECTORATE,F H BRUNDLE,"1,187.20",ENGINEERING CRAFTS,MATERIALS,5902385916,1082714
04.11.2019,ENVIRONMENT DIRECTORATE,F H BRUNDLE,"1,674.40",ENGINEERING CRAFTS,MATERIALS,5902385929,1082714
04.11.2019,ENVIRONMENT DIRECTORATE,PURPOSE POWDER COATINGS LTD,632.94,ENGINEERING CRAFTS,MATERIALS,5902385914,1000059450
04.11.2019,ENVIRONMENT DIRECTORATE,PURPOSE POWDER COATINGS LTD,896.2,ENGINEERING CRAFTS,MATERIALS,5902385907,1000059450
04.11.2019,ENVIRONMENT DIRECTORATE,NPOWER,341.95,ENVIRONMENTAL PROTECTION,STATIONERY,5902385925,1000032342
04.11.2019,ENVIRONMENT DIRECTORATE,NPOWER,369.88,ENVIRONMENTAL PROTECTION,STATIONERY,5902385931,1000032342
04.11.2019,ENVIRONMENT DIRECTORATE,GREENHAM TRADING LTD,"4,406.98",ESTATE CLEANING-GENERAL,MATERIALS,5902386027,1000006610
04.11.2019,ENVIRONMENT DIRECTORATE,SPALDINGS (UK) LTD,592.68,GROUNDS MAINTENANCE - GENERAL,MATERIALS,5902386032,1907384
04.11.2019,ENVIRONMENT DIRECTORATE,FUTURE GARMENTS LTD T/A EUROX,"3,661.11",MANAGEMENT TEAM,"CLOTHING, UNIFORMS & LAUNDRY",5902385932,1000080983
04.11.2019,ENVIRONMENT DIRECTORATE,BELL BRUSH COMPANY,"1,120.00",MANAGEMENT TEAM,MATERIALS,5902385917,1259776
04.11.2019,ENVIRONMENT DIRECTORATE,WATERLOGIC,344.84,MANAGEMENT TEAM,MATERIALS,5902386004,1000052108
04.11.2019,ENVIRONMENT DIRECTORATE,CTC RECRUITMENT LTD,"1,794.56",NON HOUSING GROUNDS,AGENCY STAFF,5902385941,1000041410
04.11.2019,ENVIRONMENT DIRECTORATE,EDWARDES BROS (DULWICH) LTD,314,R & M OVERHEADS,STATIONERY,5902386051,1004945
04.11.2019,ENVIRONMENT DIRECTORATE,KENT COUNTY COUNCIL - LASER,"1,096.83",SANDGATE STREET,ELECTRICITY,5902386097,1000012926
04.11.2019,ENVIRONMENT DIRECTORATE,ADT FIRE & SECURITY PLC,532.67,SANDGATE STREET,FIRE ALARMS & EMERGENCY LIGHTING,5902386029,11268884
04.11.2019,ENVIRONMENT DIRECTORATE,ADT FIRE & SECURITY PLC,553.71,SANDGATE STREET,FIRE ALARMS & EMERGENCY LIGHTING,5902386025,11268884
04.11.2019,ENVIRONMENT DIRECTORATE,CROWN OIL LTD,481.07,SANDGATE STREET,VEHICLE FUEL,5902385977,1000081749
04.11.2019,ENVIRONMENT DIRECTORATE,LEATHER MARKET LLC,"49,806.00",SECTION 278 & 38,HIGHWAYS TERM CONTRACT,5902385952,1000083231
04.11.2019,ENVIRONMENT DIRECTORATE,BAKER ENGINEERING,309.58,STREET CLEANING-GENERAL,EQUIPMENT PURCHASE & REPAIR,5902386134,1000038205
04.11.2019,ENVIRONMENT DIRECTORATE,BAKER ENGINEERING,696.85,STREET CLEANING-GENERAL,EQUIPMENT PURCHASE & REPAIR,5902386006,1000038205
04.11.2019,ENVIRONMENT DIRECTORATE,CROMWELL POLYTHENE LTD,"2,196.60",STREET CLEANING-GENERAL,MATERIALS,5902385905,1000021159
04.11.2019,ENVIRONMENT DIRECTORATE,ELLIOT ENVIRONMENTAL LTD,400,STREET CLEANING-GENERAL,OTHER CONTRACTORS,5902386128,1000047392
04.11.2019,ENVIRONMENT DIRECTORATE,SOUTHWARK NEWSPAPER LTD,300,STREET WORKS OVERHEADS,MARKETING & PUBLICITY SERVICES,5902386066,1556957
04.11.2019,ENVIRONMENT DIRECTORATE,SOUTHWARK NEWSPAPER LTD,300,STREET WORKS OVERHEADS,MARKETING & PUBLICITY SERVICES,5902386070,1556957
04.11.2019,ENVIRONMENT DIRECTORATE,SOUTHWARK NEWSPAPER LTD,312,STREET WORKS OVERHEADS,MARKETING & PUBLICITY SERVICES,5902386079,1556957
04.11.2019,ENVIRONMENT DIRECTORATE,SOUTHWARK NEWSPAPER LTD,324,STREET WORKS OVERHEADS,MARKETING & PUBLICITY SERVICES,5902386077,1556957
04.11.2019,ENVIRONMENT DIRECTORATE,SOUTHWARK NEWSPAPER LTD,336,STREET WORKS OVERHEADS,MARKETING & PUBLICITY SERVICES,5902386073,1556957
04.11.2019,ENVIRONMENT DIRECTORATE,SOUTHWARK NEWSPAPER LTD,336,STREET WORKS OVERHEADS,MARKETING & PUBLICITY SERVICES,5902386075,1556957
04.11.2019,ENVIRONMENT DIRECTORATE,SOUTHWARK NEWSPAPER LTD,384,STREET WORKS OVERHEADS,MARKETING & PUBLICITY SERVICES,5902386069,1556957
04.11.2019,ENVIRONMENT DIRECTORATE,SOUTHWARK NEWSPAPER LTD,384,STREET WORKS OVERHEADS,MARKETING & PUBLICITY SERVICES,5902386110,1556957
04.11.2019,ENVIRONMENT DIRECTORATE,SOUTHWARK NEWSPAPER LTD,420,STREET WORKS OVERHEADS,MARKETING & PUBLICITY SERVICES,5902386064,1556957
04.11.2019,ENVIRONMENT DIRECTORATE,CBS MAINTENANCE SERVICES LTD,"12,600.15",TOWN CENTRE CCTV,PARKING CHARGES,2103023484,3000001518
04.11.2019,ENVIRONMENT DIRECTORATE,CITY OF LONDON CORPORATION,"6,603.69",WASTE DISPOSAL,OTHER CONTRACTORS,5902386160,1000052061
04.11.2019,EXCHEQUER SERVICES,ETC VENUES LTD,333.25,ADMINISTRATIVE SUPPORT,TRAINING,5902385980,1000045226
04.11.2019,EXCHEQUER SERVICES,ETC VENUES LTD,333.25,ADMINISTRATIVE SUPPORT,TRAINING,5902385980,1000045226
04.11.2019,EXCHEQUER SERVICES,ETC VENUES LTD,400,ADMINISTRATIVE SUPPORT,TRAINING,5902385971,1000045226
04.11.2019,EXCHEQUER SERVICES,CAPITA BUSINESS SERVICES LTD,"6,792.50",INCOME MANAGEMENT,OFFICE EXPENSES,5902385935,1000006291
04.11.2019,EXCHEQUER SERVICES,INFORM CPI LTD,"1,563.75",NNDR,PROFESSIONAL FEES,5902385920,1000073418
04.11.2019,EXCHEQUER SERVICES,INFORM CPI LTD,"2,062.50",NNDR,PROFESSIONAL FEES,5902385923,1000073418
04.11.2019,EXCHEQUER SERVICES,WE ARE WATERLOO,"96,010.78",WATERLOO QUARTER,EXTERNAL AGENCIES AND BODIES,5902386163,1000057618
04.11.2019,FINANCE DIRECTOR,BDO LLP,"22,005.00",INTERNAL AUDIT CONTRACTS,PAYMENTS FOR FINANCIAL SERVICES,5902386088,1000057898
04.11.2019,FINANCIAL AND INFORMATION GOVERNANCE,CIPFA,"1,190.00",CIPFA TRAINEES,TRAINING,5902386003,1000000196
04.11.2019,HOUSING,GUIDELINE LIFT SERVICES LTD,"29,861.39",GUIDELINE,I-WORLD CONTRACTORS HOLDING ACCOUNT,5902386095,1000064176
04.11.2019,HOUSING,GUIDELINE LIFT SERVICES LTD,"39,666.52",GUIDELINE,I-WORLD CONTRACTORS HOLDING ACCOUNT,5902386091,1000064176
04.11.2019,HOUSING,GUIDELINE LIFT SERVICES LTD,"50,187.37",GUIDELINE,I-WORLD CONTRACTORS HOLDING ACCOUNT,5902386096,1000064176
04.11.2019,HOUSING,GUIDELINE LIFT SERVICES LTD,"53,687.53",GUIDELINE,I-WORLD CONTRACTORS HOLDING ACCOUNT,5902386092,1000064176
04.11.2019,HOUSING,ARMSTRONG YORK,"7,310.00",PAYMENTS CONTROL ACCOUNT-ARMSTRONG YORKE,I-WORLD CONTRACTORS HOLDING ACCOUNT,5902385945,1000058092
04.11.2019,HOUSING,PENNINGTON CHOICES LTD,"27,631.20",PENNINGTON,I-WORLD CONTRACTORS HOLDING ACCOUNT,5902386136,1000067888
04.11.2019,HOUSING GENERAL FUND,FRANKHAM CONSULTANCY GROUP LTD,752.8,CAPITAL PS (HOUSING GF),CAPITAL GRANTS,5902385897,1000043952
04.11.2019,HOUSING HRA,MORGAN SINDALL PLC,"12,927.00",CAPITAL PS (HRA),CONSTR'N SUB CONTRACT - NON CERTIFICATED,2103023486,3000001556
04.11.2019,HOUSING HRA,MORGAN SINDALL PLC,"13,478.00",CAPITAL PS (HRA),CONSTR'N SUB CONTRACT - NON CERTIFICATED,2103023485,3000001556
04.11.2019,HOUSING HRA,MORGAN SINDALL PLC,"20,036.00",CAPITAL PS (HRA),CONSTR'N SUB CONTRACT - NON CERTIFICATED,2103023486,3000001556
04.11.2019,HOUSING HRA,POTTER RAPER LTD,"3,499.00",CAPITAL PS (HRA),CONSTRUCTION FEES  - EXTERNAL,5902386063,1009369
04.11.2019,HOUSING HRA,MLM CONSULTING ENGINEERS LTD,980,CAPITAL PS (REGEN),CONSTRUCTION FEES - LEGAL,5902385987,1000059806
04.11.2019,LAW & DEMOCRACY,EVERYONE ACTIVE,500,EUROPEAN ELECTION,HIRE OF ROOMS/HALLS,5902386009,1000064343
04.11.2019,LAW & DEMOCRACY,EVERYONE ACTIVE,500,EUROPEAN ELECTION,HIRE OF ROOMS/HALLS,5902386010,1000064343
04.11.2019,LAW & DEMOCRACY,CRAWFORD PRIMARY SCHOOL,400,EUROPEAN ELECTION,HIRE OF ROOMS/HALLS,5902386013,5001000024
04.11.2019,LEISURE DIRECTORATE,THE RACE ORGANISER LTD,"1,190.00",COMMUNITY SPORTS DEVELOPMENT,PROFESSIONAL FEES,5902386090,1000082493
04.11.2019,LEISURE DIRECTORATE,QUADRON SERVICES LIMITED,448.56,DULWICH AREA TEAM,GROUNDS MAINTENANCE,5902385915,1000066528
04.11.2019,LEISURE DIRECTORATE,QUADRON SERVICES LIMITED,708,DULWICH AREA TEAM,GROUNDS MAINTENANCE,5902385904,1000066528
04.11.2019,LEISURE DIRECTORATE,QUADRON SERVICES LIMITED,"1,975.08",DULWICH AREA TEAM,GROUNDS MAINTENANCE,5902385912,1000066528
04.11.2019,LEISURE DIRECTORATE,QUADRON SERVICES LIMITED,"2,200.81",DULWICH AREA TEAM,GROUNDS MAINTENANCE,5902385908,1000066528
04.11.2019,LEISURE DIRECTORATE,HURFORD SALVI CARR PROPERTY MANAGEMENT LTD,711.53,GROVE VALE LIBRARY,RENTS,5902385979,1000043819
04.11.2019,LEISURE DIRECTORATE,HURFORD SALVI CARR PROPERTY MANAGEMENT LTD,826.65,GROVE VALE LIBRARY,RENTS,5902385981,1000043819
04.11.2019,LEISURE DIRECTORATE,KENT COUNTY COUNCIL - LASER,"1,267.01",JOHN HARVARD LIBRARY,ELECTRICITY,5902385950,1000012926
04.11.2019,LEISURE DIRECTORATE,KENT COUNTY COUNCIL - LASER,"1,297.13",JOHN HARVARD LIBRARY,ELECTRICITY,5902385988,1000012926
04.11.2019,LEISURE DIRECTORATE,VEOLIA ES (UK)LTD,650.24,KINGSWOOD HOUSE,REFUSE COLLECTION CONTRACT,5902386071,1824835
04.11.2019,LEISURE DIRECTORATE,VEOLIA ES (UK)LTD,748.32,KINGSWOOD HOUSE,REFUSE COLLECTION CONTRACT,5902386076,1824835
04.11.2019,LEISURE DIRECTORATE,KENT COUNTY COUNCIL - LASER,"1,964.69",PECKHAM LIBRARY,ELECTRICITY,5902386016,1000012926
04.11.2019,LEISURE DIRECTORATE,CASTLE WATER LTD,416.31,PECKHAM LIBRARY,WATER,5902385967,1000078867
04.11.2019,LEISURE DIRECTORATE,QUADRON SERVICES LIMITED,-402.24,SOUTHWARK AREA TEAM,GROUNDS MAINTENANCE,5902386093,1000066528
04.11.2019,LEISURE DIRECTORATE,QUADRON SERVICES LIMITED,356.45,SOUTHWARK AREA TEAM,GROUNDS MAINTENANCE,5902386082,1000066528
04.11.2019,LEISURE DIRECTORATE,QUADRON SERVICES LIMITED,402.24,SOUTHWARK AREA TEAM,GROUNDS MAINTENANCE,5902386089,1000066528
04.11.2019,LEISURE DIRECTORATE,QUADRON SERVICES LIMITED,"1,232.05",SOUTHWARK AREA TEAM,GROUNDS MAINTENANCE,5902386085,1000066528
04.11.2019,MODERNISATION HGF,TECHNIFORM GRAPHICS LTD,260,160 TOOLEY ST.,PAYMENTS FOR PROPERTY MANAGEMENT SERVS,5902386067,1447223
04.11.2019,MODERNISATION HGF,TMP (UK) LIMITED,924.11,ADVERTISING,RECRUITMENT ADVERTISING,5902386023,1000041810
04.11.2019,MODERNISATION HGF,TMP (UK) LIMITED,"6,360.00",ADVERTISING,RECRUITMENT ADVERTISING,5902386024,1000041810
04.11.2019,MODERNISATION HGF,INTERSERVE (FACILITIES MANAGEMENT),"2,801.16",FM SERVICES BY INTERSERVE,BUILDING R&M,5902386102,1000070792
04.11.2019,MODERNISATION HGF,INTERSERVE (FACILITIES MANAGEMENT),"96,233.39",FM SERVICES BY INTERSERVE,SECURITY SERVICES,5902386101,1000070792
04.11.2019,MODERNISATION HGF,VIRGIN MEDIA,315,IT MANAGEMENT,DATA COMMUNICATIONS,5902386151,1000026457
04.11.2019,MODERNISATION HGF,VIRGIN MEDIA,"1,040.00",IT MANAGEMENT,DATA COMMUNICATIONS,5902386165,1000026457
04.11.2019,MODERNISATION HGF,VIRGIN MEDIA,"6,614.07",IT MANAGEMENT,DATA COMMUNICATIONS,5902386119,1000026457
04.11.2019,MODERNISATION HGF,KIER FACILITIES SERVICES LTD,"57,602.92",PLANNED FM SERVICES BY KIER,INTEGRATED FACILITIES MANAGEMENT CONTRACT,5902386098,1000040603
04.11.2019,MODERNISATION HGF,LONDON GRID FOR LEARNING TRUST,"6,186.82",SHARED SERVICES,TELEPHONES (LAND LINES),5902386081,1000066669
04.11.2019,PLANNING AND TRANSPORT,IDOX SOFWARE LIMITED,"100,080.00",DEVELOPMENT CONTROL ADMINSTRATION,TRAINING,5902385972,1000032110
04.11.2019,PUBLIC HEALTH,BSUH NHS TRUST,705.33,SEXUAL HEALTH - STI,EXTERNAL AGENCIES AND BODIES,5902386039,1000082757
04.11.2019,REGENERATION,CARD GROUP LTD,"4,587.50",MASTER PLAN-H/WAY & TRANS INTERCHANGE,PROFESSIONAL FEES,5902385806,1000083137
04.11.2019,REGENERATION,RED R DESIGN,325,PROFESSIONAL SERVICES (GENERAL),MARKETING & PUBLICITY SERVICES,5902386019,1000035984
04.11.2019,REGENERATION,TFL TELESALES / OYSTER FULFILMENT,395,PROPERTY SERVICES,PUBLIC TRANSPORT,5902385965,1000059727
04.11.2019,RESIDENT SERVICES,HUNTERS CONTRACTS LTD,754,CENTRAL AREA RUNNING COSTS,FURNITURE PURCHASE & REPAIR,5902386130,1000065904
04.11.2019,RESIDENT SERVICES,BRITISH GAS TRADING LTD,513.04,OPERATIONS/OFFICES ACCOMMODATION,ELECTRICITY,5902384774,1000055977
04.11.2019,RESIDENT SERVICES,TFL TELESALES / OYSTER FULFILMENT,"3,860.00",OPERATIONS/OFFICES ACCOMMODATION,PUBLIC TRANSPORT,5902386065,1000059727
04.11.2019,RESIDENT SERVICES,OFFICE DEPOT UK LTD,523.25,OPERATIONS/OFFICES ACCOMMODATION,STATIONERY,5902386086,1109426
04.11.2019,RESIDENT SERVICES,NPOWER,332.23,SUPPORTED HOSTELS,ELECTRICITY,5902385911,1000032342
04.11.2019,RESIDENT SERVICES,NPOWER,417.88,SUPPORTED HOSTELS,ELECTRICITY,5902385918,1000032342
04.11.2019,RESIDENT SERVICES,NPOWER,"-13,449.94",TA HOSTELS,ELECTRICITY,5902386418,1000064203
04.11.2019,RESIDENT SERVICES,NPOWER,"13,449.94",TA HOSTELS,ELECTRICITY,5902386078,1000064203
04.11.2019,SOUTHWARK BUILDING SERVICES,CALLOW MASTER LOCKSMITHS,296.2,STORES/LOGISTICS,CREDITORS -GR/IR CLEARING ACCOUNT,5902385985,11179552
04.11.2019,SOUTHWARK BUILDING SERVICES,CALLOW MASTER LOCKSMITHS,386.48,STORES/LOGISTICS,CREDITORS -GR/IR CLEARING ACCOUNT,5902385985,11179552
04.11.2019,SOUTHWARK BUILDING SERVICES,CALLOW MASTER LOCKSMITHS,405.84,STORES/LOGISTICS,CREDITORS -GR/IR CLEARING ACCOUNT,5902385985,11179552
04.11.2019,SOUTHWARK BUILDING SERVICES,CHARLES ENDIRECT LTD,"1,482.90",STORES/LOGISTICS,CREDITORS -GR/IR CLEARING ACCOUNT,5902386080,11284665
04.11.2019,SOUTHWARK BUILDING SERVICES,CHARLES ENDIRECT LTD,"1,482.90",STORES/LOGISTICS,CREDITORS -GR/IR CLEARING ACCOUNT,5902386080,11284665
04.11.2019,SOUTHWARK BUILDING SERVICES,CHARLES ENDIRECT LTD,"1,848.20",STORES/LOGISTICS,CREDITORS -GR/IR CLEARING ACCOUNT,5902386080,11284665
04.11.2019,SOUTHWARK BUILDING SERVICES,CHARLES ENDIRECT LTD,"1,848.20",STORES/LOGISTICS,CREDITORS -GR/IR CLEARING ACCOUNT,5902386080,11284665
04.11.2019,SOUTHWARK BUILDING SERVICES,CHARLES ENDIRECT LTD,"3,882.00",STORES/LOGISTICS,CREDITORS -GR/IR CLEARING ACCOUNT,5902386080,11284665
04.11.2019,SOUTHWARK BUILDING SERVICES,KEMICO LIMITED,"2,358.72",STORES/LOGISTICS,CREDITORS -GR/IR CLEARING ACCOUNT,5902386050,1000030226
04.11.2019,SOUTHWARK BUILDING SERVICES,A T & T (GB LTD ),"1,422.00",STORES/LOGISTICS,CREDITORS -GR/IR CLEARING ACCOUNT,5902386061,1000078342
05.11.2019,ADULT SOCIAL CARE,REDACTED PERSONAL DATA,277.3,APPOINTEESHIPS,OTHER PAYMENTS FOR CLIENTS,REDACTED,REDACTED
05.11.2019,ADULT SOCIAL CARE,KENT COUNTY COUNCIL - LASER,"1,219.50",FRED FRANCIS CENTRE,ELECTRICITY,5902386197,1000012926
05.11.2019,ADULT SOCIAL CARE,BEDE CAFE PROJECT,260,LD LTS 18-64,DAYCARE,2103024115,1553877
05.11.2019,ADULT SOCIAL CARE,BEDE CAFE PROJECT,260,LD LTS 18-64,DAYCARE,2103024117,1553877
05.11.2019,ADULT SOCIAL CARE,BEDE CAFE PROJECT,260,LD LTS 18-64,DAYCARE,2103024122,1553877
05.11.2019,ADULT SOCIAL CARE,BEDE CAFE PROJECT,280,LD LTS 18-64,DAYCARE,2103024125,1553877
05.11.2019,ADULT SOCIAL CARE,BEDE CAFE PROJECT,344,LD LTS 18-64,DAYCARE,2103024101,1553877
05.11.2019,ADULT SOCIAL CARE,BEDE CAFE PROJECT,356,LD LTS 18-64,DAYCARE,2103024121,1553877
05.11.2019,ADULT SOCIAL CARE,BEDE CAFE PROJECT,400,LD LTS 18-64,DAYCARE,2103024095,1553877
05.11.2019,ADULT SOCIAL CARE,BEDE CAFE PROJECT,520,LD LTS 18-64,DAYCARE,2103024097,1553877
05.11.2019,ADULT SOCIAL CARE,BEDE CAFE PROJECT,520,LD LTS 18-64,DAYCARE,2103024099,1553877
05.11.2019,ADULT SOCIAL CARE,BEDE CAFE PROJECT,520,LD LTS 18-64,DAYCARE,2103024124,1553877
05.11.2019,ADULT SOCIAL CARE,BEDE CAFE PROJECT,520,LD LTS 18-64,DAYCARE,2103024126,1553877
05.11.2019,ADULT SOCIAL CARE,BEDE CAFE PROJECT,560,LD LTS 18-64,DAYCARE,2103024114,1553877
05.11.2019,ADULT SOCIAL CARE,BEDE CAFE PROJECT,632,LD LTS 18-64,DAYCARE,2103024102,1553877
05.11.2019,ADULT SOCIAL CARE,BEDE CAFE PROJECT,712,LD LTS 18-64,DAYCARE,2103024096,1553877
05.11.2019,ADULT SOCIAL CARE,BEDE CAFE PROJECT,760,LD LTS 18-64,DAYCARE,2103024127,1553877
05.11.2019,ADULT SOCIAL CARE,BEDE CAFE PROJECT,780,LD LTS 18-64,DAYCARE,2103024098,1553877
05.11.2019,ADULT SOCIAL CARE,BEDE CAFE PROJECT,780,LD LTS 18-64,DAYCARE,2103024110,1553877
05.11.2019,ADULT SOCIAL CARE,BEDE CAFE PROJECT,"1,020.00",LD LTS 18-64,DAYCARE,2103024105,1553877
05.11.2019,ADULT SOCIAL CARE,BEDE CAFE PROJECT,"1,040.00",LD LTS 18-64,DAYCARE,2103024093,1553877
05.11.2019,ADULT SOCIAL CARE,BEDE CAFE PROJECT,"1,040.00",LD LTS 18-64,DAYCARE,2103024104,1553877
05.11.2019,ADULT SOCIAL CARE,BEDE CAFE PROJECT,"1,040.00",LD LTS 18-64,DAYCARE,2103024109,1553877
05.11.2019,ADULT SOCIAL CARE,BEDE CAFE PROJECT,"1,040.00",LD LTS 18-64,DAYCARE,2103024111,1553877
05.11.2019,ADULT SOCIAL CARE,BEDE CAFE PROJECT,"1,040.00",LD LTS 18-64,DAYCARE,2103024118,1553877
05.11.2019,ADULT SOCIAL CARE,BEDE CAFE PROJECT,"1,040.00",LD LTS 18-64,DAYCARE,2103024129,1553877
05.11.2019,ADULT SOCIAL CARE,BEDE CAFE PROJECT,"1,140.00",LD LTS 18-64,DAYCARE,2103024131,1553877
05.11.2019,ADULT SOCIAL CARE,BEDE CAFE PROJECT,"1,168.00",LD LTS 18-64,DAYCARE,2103024108,1553877
05.11.2019,ADULT SOCIAL CARE,BEDE CAFE PROJECT,"1,208.00",LD LTS 18-64,DAYCARE,2103024116,1553877
05.11.2019,ADULT SOCIAL CARE,BEDE CAFE PROJECT,"1,300.00",LD LTS 18-64,DAYCARE,2103024120,1553877
05.11.2019,ADULT SOCIAL CARE,BEDE CAFE PROJECT,"1,580.00",LD LTS 18-64,DAYCARE,2103024113,1553877
05.11.2019,ADULT SOCIAL CARE,BEDE CAFE PROJECT,"1,752.00",LD LTS 18-64,DAYCARE,2103024106,1553877
05.11.2019,ADULT SOCIAL CARE,BEDE CAFE PROJECT,"1,752.00",LD LTS 18-64,DAYCARE,2103024107,1553877
05.11.2019,ADULT SOCIAL CARE,BEDE CAFE PROJECT,"1,961.00",LD LTS 18-64,DAYCARE,2103024100,1553877
05.11.2019,ADULT SOCIAL CARE,BEDE CAFE PROJECT,"2,920.00",LD LTS 18-64,DAYCARE,2103024123,1553877
05.11.2019,ADULT SOCIAL CARE,BEDE CAFE PROJECT,"2,920.00",LD LTS 18-64,DAYCARE,2103024132,1553877
05.11.2019,ADULT SOCIAL CARE,THE CAMDEN SOCIETY (SOCIAL CARE),386.16,LD LTS 18-64,DAYCARE,2103023595,1000036369
05.11.2019,ADULT SOCIAL CARE,SUPREME CARE SERVICES LTD,260.07,LD LTS 18-64,HOMECARE - C&V,2103023819,1000059416
05.11.2019,ADULT SOCIAL CARE,SUPREME CARE SERVICES LTD,942.05,LD LTS 18-64,HOMECARE - C&V,2103023780,1000059416
05.11.2019,ADULT SOCIAL CARE,CONTACT PROFESSIONALS,465,LD LTS 18-64,SUPPORTED LIVING,2103024087,1000057263
05.11.2019,ADULT SOCIAL CARE,CONTACT PROFESSIONALS,"1,599.00",LD LTS 18-64,SUPPORTED LIVING,2103024089,1000057263
05.11.2019,ADULT SOCIAL CARE,BEDE CAFE PROJECT,478.4,LD LTS 65+,DAYCARE,2103024119,1553877
05.11.2019,ADULT SOCIAL CARE,SUPREME CARE SERVICES LTD,950.54,LD LTS 65+,HOMECARE - C&V,2103023748,1000059416
05.11.2019,ADULT SOCIAL CARE,SUPREME CARE SERVICES LTD,966.97,MEM LTS 18-64,HOMECARE - C&V,2103023875,1000059416
05.11.2019,ADULT SOCIAL CARE,SUPREME CARE SERVICES LTD,251.59,MEM LTS 65+,HOMECARE - C&V,2103023843,1000059416
05.11.2019,ADULT SOCIAL CARE,SUPREME CARE SERVICES LTD,263.46,MEM LTS 65+,HOMECARE - C&V,2103023750,1000059416
05.11.2019,ADULT SOCIAL CARE,SUPREME CARE SERVICES LTD,268.66,MEM LTS 65+,HOMECARE - C&V,2103024058,1000059416
05.11.2019,ADULT SOCIAL CARE,SUPREME CARE SERVICES LTD,558.47,MEM LTS 65+,HOMECARE - C&V,2103024018,1000059416
05.11.2019,ADULT SOCIAL CARE,SUPREME CARE SERVICES LTD,626.72,MEM LTS 65+,HOMECARE - C&V,2103023916,1000059416
05.11.2019,ADULT SOCIAL CARE,SUPREME CARE SERVICES LTD,635.43,MEM LTS 65+,HOMECARE - C&V,2103023870,1000059416
05.11.2019,ADULT SOCIAL CARE,SUPREME CARE SERVICES LTD,703.49,MEM LTS 65+,HOMECARE - C&V,2103023813,1000059416
05.11.2019,ADULT SOCIAL CARE,SUPREME CARE SERVICES LTD,742.06,MEM LTS 65+,HOMECARE - C&V,2103023974,1000059416
05.11.2019,ADULT SOCIAL CARE,SUPREME CARE SERVICES LTD,836.69,MEM LTS 65+,HOMECARE - C&V,2103023756,1000059416
05.11.2019,ADULT SOCIAL CARE,SUPREME CARE SERVICES LTD,"1,048.11",MEM LTS 65+,HOMECARE - C&V,2103023847,1000059416
05.11.2019,ADULT SOCIAL CARE,SUPREME CARE SERVICES LTD,"1,069.32",MEM LTS 65+,HOMECARE - C&V,2103023885,1000059416
05.11.2019,ADULT SOCIAL CARE,SUPREME CARE SERVICES LTD,"2,784.09",MEM LTS 65+,HOMECARE - C&V,2103023866,1000059416
05.11.2019,ADULT SOCIAL CARE,BEDE CAFE PROJECT,280,MH LTS 18-64,DAYCARE,2103024128,1553877
05.11.2019,ADULT SOCIAL CARE,SEAP,525,MH LTS 18-64,EXTERNAL AGENCIES AND BODIES,2103023596,1000055727
05.11.2019,ADULT SOCIAL CARE,SUPREME CARE SERVICES LTD,289.85,MH LTS 18-64,HOMECARE - C&V,2103024085,1000059416
05.11.2019,ADULT SOCIAL CARE,SUPREME CARE SERVICES LTD,358.05,MH LTS 18-64,HOMECARE - C&V,2103023918,1000059416
05.11.2019,ADULT SOCIAL CARE,SUPREME CARE SERVICES LTD,466.42,MH LTS 18-64,HOMECARE - C&V,2103023716,1000059416
05.11.2019,ADULT SOCIAL CARE,SUPREME CARE SERVICES LTD,474.34,MH LTS 18-64,HOMECARE - C&V,2103023962,1000059416
05.11.2019,ADULT SOCIAL CARE,SUPREME CARE SERVICES LTD,485.96,MH LTS 18-64,HOMECARE - C&V,2103023963,1000059416
05.11.2019,ADULT SOCIAL CARE,SUPREME CARE SERVICES LTD,660.69,MH LTS 18-64,HOMECARE - C&V,2103023739,1000059416
05.11.2019,ADULT SOCIAL CARE,SUPREME CARE SERVICES LTD,835.49,MH LTS 18-64,HOMECARE - C&V,2103023783,1000059416
05.11.2019,ADULT SOCIAL CARE,SUPREME CARE SERVICES LTD,852.49,MH LTS 18-64,HOMECARE - C&V,2103023759,1000059416
05.11.2019,ADULT SOCIAL CARE,SUPREME CARE SERVICES LTD,272.8,MH LTS 65+,HOMECARE - C&V,2103023869,1000059416
05.11.2019,ADULT SOCIAL CARE,SUPREME CARE SERVICES LTD,366.61,MH LTS 65+,HOMECARE - C&V,2103023880,1000059416
05.11.2019,ADULT SOCIAL CARE,SUPREME CARE SERVICES LTD,379.37,MH LTS 65+,HOMECARE - C&V,2103023874,1000059416
05.11.2019,ADULT SOCIAL CARE,SUPREME CARE SERVICES LTD,396.44,MH LTS 65+,HOMECARE - C&V,2103023821,1000059416
05.11.2019,ADULT SOCIAL CARE,SUPREME CARE SERVICES LTD,524.28,MH LTS 65+,HOMECARE - C&V,2103023858,1000059416
05.11.2019,ADULT SOCIAL CARE,SUPREME CARE SERVICES LTD,528.55,MH LTS 65+,HOMECARE - C&V,2103024048,1000059416
05.11.2019,ADULT SOCIAL CARE,SUPREME CARE SERVICES LTD,562.63,MH LTS 65+,HOMECARE - C&V,2103023896,1000059416
05.11.2019,ADULT SOCIAL CARE,SUPREME CARE SERVICES LTD,799.36,MH LTS 65+,HOMECARE - C&V,2103024075,1000059416
05.11.2019,ADULT SOCIAL CARE,SUPREME CARE SERVICES LTD,886.95,MH LTS 65+,HOMECARE - C&V,2103023897,1000059416
05.11.2019,ADULT SOCIAL CARE,BRITISH GAS,816.24,MH PREMISES COSTS,ELECTRICITY,5902386345,1000054825
05.11.2019,ADULT SOCIAL CARE,SUPREME CARE SERVICES LTD,251.48,PHY LTS 18-64,HOMECARE - C&V,2103024023,1000059416
05.11.2019,ADULT SOCIAL CARE,SUPREME CARE SERVICES LTD,260.06,PHY LTS 18-64,HOMECARE - C&V,2103023769,1000059416
05.11.2019,ADULT SOCIAL CARE,SUPREME CARE SERVICES LTD,285.64,PHY LTS 18-64,HOMECARE - C&V,2103024080,1000059416
05.11.2019,ADULT SOCIAL CARE,SUPREME CARE SERVICES LTD,294.16,PHY LTS 18-64,HOMECARE - C&V,2103024040,1000059416
05.11.2019,ADULT SOCIAL CARE,SUPREME CARE SERVICES LTD,332.54,PHY LTS 18-64,HOMECARE - C&V,2103023887,1000059416
05.11.2019,ADULT SOCIAL CARE,SUPREME CARE SERVICES LTD,336.74,PHY LTS 18-64,HOMECARE - C&V,2103023883,1000059416
05.11.2019,ADULT SOCIAL CARE,SUPREME CARE SERVICES LTD,336.74,PHY LTS 18-64,HOMECARE - C&V,2103024037,1000059416
05.11.2019,ADULT SOCIAL CARE,SUPREME CARE SERVICES LTD,353.86,PHY LTS 18-64,HOMECARE - C&V,2103023882,1000059416
05.11.2019,ADULT SOCIAL CARE,SUPREME CARE SERVICES LTD,362.36,PHY LTS 18-64,HOMECARE - C&V,2103023951,1000059416
05.11.2019,ADULT SOCIAL CARE,SUPREME CARE SERVICES LTD,366.61,PHY LTS 18-64,HOMECARE - C&V,2103023657,1000059416
05.11.2019,ADULT SOCIAL CARE,SUPREME CARE SERVICES LTD,369.7,PHY LTS 18-64,HOMECARE - C&V,2103023935,1000059416
05.11.2019,ADULT SOCIAL CARE,SUPREME CARE SERVICES LTD,402.17,PHY LTS 18-64,HOMECARE - C&V,2103023988,1000059416
05.11.2019,ADULT SOCIAL CARE,SUPREME CARE SERVICES LTD,422.05,PHY LTS 18-64,HOMECARE - C&V,2103023682,1000059416
05.11.2019,ADULT SOCIAL CARE,SUPREME CARE SERVICES LTD,426.32,PHY LTS 18-64,HOMECARE - C&V,2103023958,1000059416
05.11.2019,ADULT SOCIAL CARE,SUPREME CARE SERVICES LTD,439.04,PHY LTS 18-64,HOMECARE - C&V,2103023886,1000059416
05.11.2019,ADULT SOCIAL CARE,SUPREME CARE SERVICES LTD,439.09,PHY LTS 18-64,HOMECARE - C&V,2103023986,1000059416
05.11.2019,ADULT SOCIAL CARE,SUPREME CARE SERVICES LTD,460.36,PHY LTS 18-64,HOMECARE - C&V,2103023790,1000059416
05.11.2019,ADULT SOCIAL CARE,SUPREME CARE SERVICES LTD,464.76,PHY LTS 18-64,HOMECARE - C&V,2103023808,1000059416
05.11.2019,ADULT SOCIAL CARE,SUPREME CARE SERVICES LTD,473.29,PHY LTS 18-64,HOMECARE - C&V,2103024034,1000059416
05.11.2019,ADULT SOCIAL CARE,SUPREME CARE SERVICES LTD,477.46,PHY LTS 18-64,HOMECARE - C&V,2103023665,1000059416
05.11.2019,ADULT SOCIAL CARE,SUPREME CARE SERVICES LTD,481.92,PHY LTS 18-64,HOMECARE - C&V,2103023877,1000059416
05.11.2019,ADULT SOCIAL CARE,SUPREME CARE SERVICES LTD,497.05,PHY LTS 18-64,HOMECARE - C&V,2103023683,1000059416
05.11.2019,ADULT SOCIAL CARE,SUPREME CARE SERVICES LTD,507.3,PHY LTS 18-64,HOMECARE - C&V,2103023836,1000059416
05.11.2019,ADULT SOCIAL CARE,SUPREME CARE SERVICES LTD,516,PHY LTS 18-64,HOMECARE - C&V,2103023663,1000059416
05.11.2019,ADULT SOCIAL CARE,SUPREME CARE SERVICES LTD,536.23,PHY LTS 18-64,HOMECARE - C&V,2103023722,1000059416
05.11.2019,ADULT SOCIAL CARE,SUPREME CARE SERVICES LTD,538.81,PHY LTS 18-64,HOMECARE - C&V,2103023751,1000059416
05.11.2019,ADULT SOCIAL CARE,SUPREME CARE SERVICES LTD,542.63,PHY LTS 18-64,HOMECARE - C&V,2103024007,1000059416
05.11.2019,ADULT SOCIAL CARE,SUPREME CARE SERVICES LTD,546.17,PHY LTS 18-64,HOMECARE - C&V,2103023936,1000059416
05.11.2019,ADULT SOCIAL CARE,SUPREME CARE SERVICES LTD,558.51,PHY LTS 18-64,HOMECARE - C&V,2103023961,1000059416
05.11.2019,ADULT SOCIAL CARE,SUPREME CARE SERVICES LTD,558.58,PHY LTS 18-64,HOMECARE - C&V,2103023730,1000059416
05.11.2019,ADULT SOCIAL CARE,SUPREME CARE SERVICES LTD,558.66,PHY LTS 18-64,HOMECARE - C&V,2103024086,1000059416
05.11.2019,ADULT SOCIAL CARE,SUPREME CARE SERVICES LTD,567.1,PHY LTS 18-64,HOMECARE - C&V,2103023644,1000059416
05.11.2019,ADULT SOCIAL CARE,SUPREME CARE SERVICES LTD,631.01,PHY LTS 18-64,HOMECARE - C&V,2103023901,1000059416
05.11.2019,ADULT SOCIAL CARE,SUPREME CARE SERVICES LTD,648.1,PHY LTS 18-64,HOMECARE - C&V,2103023710,1000059416
05.11.2019,ADULT SOCIAL CARE,SUPREME CARE SERVICES LTD,656.45,PHY LTS 18-64,HOMECARE - C&V,2103023844,1000059416
05.11.2019,ADULT SOCIAL CARE,SUPREME CARE SERVICES LTD,665.16,PHY LTS 18-64,HOMECARE - C&V,2103023895,1000059416
05.11.2019,ADULT SOCIAL CARE,SUPREME CARE SERVICES LTD,677.94,PHY LTS 18-64,HOMECARE - C&V,2103023946,1000059416
05.11.2019,ADULT SOCIAL CARE,SUPREME CARE SERVICES LTD,707.75,PHY LTS 18-64,HOMECARE - C&V,2103023920,1000059416
05.11.2019,ADULT SOCIAL CARE,SUPREME CARE SERVICES LTD,720.75,PHY LTS 18-64,HOMECARE - C&V,2103023881,1000059416
05.11.2019,ADULT SOCIAL CARE,SUPREME CARE SERVICES LTD,722.8,PHY LTS 18-64,HOMECARE - C&V,2103023972,1000059416
05.11.2019,ADULT SOCIAL CARE,SUPREME CARE SERVICES LTD,729,PHY LTS 18-64,HOMECARE - C&V,2103023816,1000059416
05.11.2019,ADULT SOCIAL CARE,SUPREME CARE SERVICES LTD,737.59,PHY LTS 18-64,HOMECARE - C&V,2103023980,1000059416
05.11.2019,ADULT SOCIAL CARE,SUPREME CARE SERVICES LTD,762.59,PHY LTS 18-64,HOMECARE - C&V,2103023994,1000059416
05.11.2019,ADULT SOCIAL CARE,SUPREME CARE SERVICES LTD,801.65,PHY LTS 18-64,HOMECARE - C&V,2103023891,1000059416
05.11.2019,ADULT SOCIAL CARE,SUPREME CARE SERVICES LTD,823.85,PHY LTS 18-64,HOMECARE - C&V,2103024064,1000059416
05.11.2019,ADULT SOCIAL CARE,SUPREME CARE SERVICES LTD,852.58,PHY LTS 18-64,HOMECARE - C&V,2103023677,1000059416
05.11.2019,ADULT SOCIAL CARE,SUPREME CARE SERVICES LTD,907.97,PHY LTS 18-64,HOMECARE - C&V,2103023990,1000059416
05.11.2019,ADULT SOCIAL CARE,SUPREME CARE SERVICES LTD,908.08,PHY LTS 18-64,HOMECARE - C&V,2103023768,1000059416
05.11.2019,ADULT SOCIAL CARE,SUPREME CARE SERVICES LTD,913.31,PHY LTS 18-64,HOMECARE - C&V,2103023854,1000059416
05.11.2019,ADULT SOCIAL CARE,SUPREME CARE SERVICES LTD,913.72,PHY LTS 18-64,HOMECARE - C&V,2103023952,1000059416
05.11.2019,ADULT SOCIAL CARE,SUPREME CARE SERVICES LTD,942.29,PHY LTS 18-64,HOMECARE - C&V,2103023977,1000059416
05.11.2019,ADULT SOCIAL CARE,SUPREME CARE SERVICES LTD,946.54,PHY LTS 18-64,HOMECARE - C&V,2103023823,1000059416
05.11.2019,ADULT SOCIAL CARE,SUPREME CARE SERVICES LTD,952.14,PHY LTS 18-64,HOMECARE - C&V,2103023699,1000059416
05.11.2019,ADULT SOCIAL CARE,SUPREME CARE SERVICES LTD,955.31,PHY LTS 18-64,HOMECARE - C&V,2103023660,1000059416
05.11.2019,ADULT SOCIAL CARE,SUPREME CARE SERVICES LTD,971.9,PHY LTS 18-64,HOMECARE - C&V,2103023703,1000059416
05.11.2019,ADULT SOCIAL CARE,SUPREME CARE SERVICES LTD,"1,061.83",PHY LTS 18-64,HOMECARE - C&V,2103023684,1000059416
05.11.2019,ADULT SOCIAL CARE,SUPREME CARE SERVICES LTD,"1,104.16",PHY LTS 18-64,HOMECARE - C&V,2103023681,1000059416
05.11.2019,ADULT SOCIAL CARE,SUPREME CARE SERVICES LTD,"1,145.21",PHY LTS 18-64,HOMECARE - C&V,2103023645,1000059416
05.11.2019,ADULT SOCIAL CARE,SUPREME CARE SERVICES LTD,"1,257.71",PHY LTS 18-64,HOMECARE - C&V,2103023806,1000059416
05.11.2019,ADULT SOCIAL CARE,SUPREME CARE SERVICES LTD,"1,308.90",PHY LTS 18-64,HOMECARE - C&V,2103024074,1000059416
05.11.2019,ADULT SOCIAL CARE,SUPREME CARE SERVICES LTD,"1,325.93",PHY LTS 18-64,HOMECARE - C&V,2103023679,1000059416
05.11.2019,ADULT SOCIAL CARE,SUPREME CARE SERVICES LTD,"1,531.45",PHY LTS 18-64,HOMECARE - C&V,2103023676,1000059416
05.11.2019,ADULT SOCIAL CARE,SUPREME CARE SERVICES LTD,"1,666.77",PHY LTS 18-64,HOMECARE - C&V,2103023915,1000059416
05.11.2019,ADULT SOCIAL CARE,SUPREME CARE SERVICES LTD,"1,842.08",PHY LTS 18-64,HOMECARE - C&V,2103024046,1000059416
05.11.2019,ADULT SOCIAL CARE,SUPREME CARE SERVICES LTD,"1,983.11",PHY LTS 18-64,HOMECARE - C&V,2103023678,1000059416
05.11.2019,ADULT SOCIAL CARE,SUPREME CARE SERVICES LTD,"2,204.69",PHY LTS 18-64,HOMECARE - C&V,2103023906,1000059416
05.11.2019,ADULT SOCIAL CARE,SUPREME CARE SERVICES LTD,"2,230.22",PHY LTS 18-64,HOMECARE - C&V,2103023838,1000059416
05.11.2019,ADULT SOCIAL CARE,SUPREME CARE SERVICES LTD,"3,035.31",PHY LTS 18-64,HOMECARE - C&V,2103024041,1000059416
05.11.2019,ADULT SOCIAL CARE,SUPREME CARE SERVICES LTD,"3,206.94",PHY LTS 18-64,HOMECARE - C&V,2103024054,1000059416
05.11.2019,ADULT SOCIAL CARE,SERVESOUL LTD,408.91,PHY LTS 18-64,HOMECARE - SPOT,2103023613,1000081503
05.11.2019,ADULT SOCIAL CARE,SUPREME CARE SERVICES LTD,255.8,PHY LTS 65+,HOMECARE - C&V,2103023689,1000059416
05.11.2019,ADULT SOCIAL CARE,SUPREME CARE SERVICES LTD,255.84,PHY LTS 65+,HOMECARE - C&V,2103023846,1000059416
05.11.2019,ADULT SOCIAL CARE,SUPREME CARE SERVICES LTD,255.88,PHY LTS 65+,HOMECARE - C&V,2103023688,1000059416
05.11.2019,ADULT SOCIAL CARE,SUPREME CARE SERVICES LTD,257.77,PHY LTS 65+,HOMECARE - C&V,2103023781,1000059416
05.11.2019,ADULT SOCIAL CARE,SUPREME CARE SERVICES LTD,260.05,PHY LTS 65+,HOMECARE - C&V,2103023991,1000059416
05.11.2019,ADULT SOCIAL CARE,SUPREME CARE SERVICES LTD,260.06,PHY LTS 65+,HOMECARE - C&V,2103023861,1000059416
05.11.2019,ADULT SOCIAL CARE,SUPREME CARE SERVICES LTD,264.33,PHY LTS 65+,HOMECARE - C&V,2103024063,1000059416
05.11.2019,ADULT SOCIAL CARE,SUPREME CARE SERVICES LTD,268.65,PHY LTS 65+,HOMECARE - C&V,2103023707,1000059416
05.11.2019,ADULT SOCIAL CARE,SUPREME CARE SERVICES LTD,278.48,PHY LTS 65+,HOMECARE - C&V,2103023824,1000059416
05.11.2019,ADULT SOCIAL CARE,SUPREME CARE SERVICES LTD,285.04,PHY LTS 65+,HOMECARE - C&V,2103023691,1000059416
05.11.2019,ADULT SOCIAL CARE,SUPREME CARE SERVICES LTD,285.6,PHY LTS 65+,HOMECARE - C&V,2103023954,1000059416
05.11.2019,ADULT SOCIAL CARE,SUPREME CARE SERVICES LTD,294.11,PHY LTS 65+,HOMECARE - C&V,2103024033,1000059416
05.11.2019,ADULT SOCIAL CARE,SUPREME CARE SERVICES LTD,295.59,PHY LTS 65+,HOMECARE - C&V,2103023652,1000059416
05.11.2019,ADULT SOCIAL CARE,SUPREME CARE SERVICES LTD,296.27,PHY LTS 65+,HOMECARE - C&V,2103023776,1000059416
05.11.2019,ADULT SOCIAL CARE,SUPREME CARE SERVICES LTD,296.99,PHY LTS 65+,HOMECARE - C&V,2103023910,1000059416
05.11.2019,ADULT SOCIAL CARE,SUPREME CARE SERVICES LTD,302.72,PHY LTS 65+,HOMECARE - C&V,2103023905,1000059416
05.11.2019,ADULT SOCIAL CARE,SUPREME CARE SERVICES LTD,302.77,PHY LTS 65+,HOMECARE - C&V,2103023817,1000059416
05.11.2019,ADULT SOCIAL CARE,SUPREME CARE SERVICES LTD,304.12,PHY LTS 65+,HOMECARE - C&V,2103023762,1000059416
05.11.2019,ADULT SOCIAL CARE,SUPREME CARE SERVICES LTD,306.95,PHY LTS 65+,HOMECARE - C&V,2103023908,1000059416
05.11.2019,ADULT SOCIAL CARE,SUPREME CARE SERVICES LTD,311.21,PHY LTS 65+,HOMECARE - C&V,2103023727,1000059416
05.11.2019,ADULT SOCIAL CARE,SUPREME CARE SERVICES LTD,319.87,PHY LTS 65+,HOMECARE - C&V,2103023853,1000059416
05.11.2019,ADULT SOCIAL CARE,SUPREME CARE SERVICES LTD,320.28,PHY LTS 65+,HOMECARE - C&V,2103023867,1000059416
05.11.2019,ADULT SOCIAL CARE,SUPREME CARE SERVICES LTD,324.13,PHY LTS 65+,HOMECARE - C&V,2103023890,1000059416
05.11.2019,ADULT SOCIAL CARE,SUPREME CARE SERVICES LTD,328.26,PHY LTS 65+,HOMECARE - C&V,2103023802,1000059416
05.11.2019,ADULT SOCIAL CARE,SUPREME CARE SERVICES LTD,332.58,PHY LTS 65+,HOMECARE - C&V,2103024044,1000059416
05.11.2019,ADULT SOCIAL CARE,SUPREME CARE SERVICES LTD,333.45,PHY LTS 65+,HOMECARE - C&V,2103023656,1000059416
05.11.2019,ADULT SOCIAL CARE,SUPREME CARE SERVICES LTD,336.81,PHY LTS 65+,HOMECARE - C&V,2103023856,1000059416
05.11.2019,ADULT SOCIAL CARE,SUPREME CARE SERVICES LTD,337.02,PHY LTS 65+,HOMECARE - C&V,2103023649,1000059416
05.11.2019,ADULT SOCIAL CARE,SUPREME CARE SERVICES LTD,341.03,PHY LTS 65+,HOMECARE - C&V,2103023830,1000059416
05.11.2019,ADULT SOCIAL CARE,SUPREME CARE SERVICES LTD,349.59,PHY LTS 65+,HOMECARE - C&V,2103024008,1000059416
05.11.2019,ADULT SOCIAL CARE,SUPREME CARE SERVICES LTD,356.65,PHY LTS 65+,HOMECARE - C&V,2103023976,1000059416
05.11.2019,ADULT SOCIAL CARE,SUPREME CARE SERVICES LTD,358.05,PHY LTS 65+,HOMECARE - C&V,2103023718,1000059416
05.11.2019,ADULT SOCIAL CARE,SUPREME CARE SERVICES LTD,358.1,PHY LTS 65+,HOMECARE - C&V,2103024072,1000059416
05.11.2019,ADULT SOCIAL CARE,SUPREME CARE SERVICES LTD,358.12,PHY LTS 65+,HOMECARE - C&V,2103023943,1000059416
05.11.2019,ADULT SOCIAL CARE,SUPREME CARE SERVICES LTD,358.13,PHY LTS 65+,HOMECARE - C&V,2103023899,1000059416
05.11.2019,ADULT SOCIAL CARE,SUPREME CARE SERVICES LTD,366.62,PHY LTS 65+,HOMECARE - C&V,2103023953,1000059416
05.11.2019,ADULT SOCIAL CARE,SUPREME CARE SERVICES LTD,366.63,PHY LTS 65+,HOMECARE - C&V,2103023888,1000059416
05.11.2019,ADULT SOCIAL CARE,SUPREME CARE SERVICES LTD,366.64,PHY LTS 65+,HOMECARE - C&V,2103023851,1000059416
05.11.2019,ADULT SOCIAL CARE,SUPREME CARE SERVICES LTD,366.64,PHY LTS 65+,HOMECARE - C&V,2103023989,1000059416
05.11.2019,ADULT SOCIAL CARE,SUPREME CARE SERVICES LTD,370.9,PHY LTS 65+,HOMECARE - C&V,2103023912,1000059416
05.11.2019,ADULT SOCIAL CARE,SUPREME CARE SERVICES LTD,379.42,PHY LTS 65+,HOMECARE - C&V,2103023828,1000059416
05.11.2019,ADULT SOCIAL CARE,SUPREME CARE SERVICES LTD,379.53,PHY LTS 65+,HOMECARE - C&V,2103023712,1000059416
05.11.2019,ADULT SOCIAL CARE,SUPREME CARE SERVICES LTD,409.2,PHY LTS 65+,HOMECARE - C&V,2103023731,1000059416
05.11.2019,ADULT SOCIAL CARE,SUPREME CARE SERVICES LTD,411.51,PHY LTS 65+,HOMECARE - C&V,2103023811,1000059416
05.11.2019,ADULT SOCIAL CARE,SUPREME CARE SERVICES LTD,411.6,PHY LTS 65+,HOMECARE - C&V,2103023725,1000059416
05.11.2019,ADULT SOCIAL CARE,SUPREME CARE SERVICES LTD,415.74,PHY LTS 65+,HOMECARE - C&V,2103023982,1000059416
05.11.2019,ADULT SOCIAL CARE,SUPREME CARE SERVICES LTD,422.05,PHY LTS 65+,HOMECARE - C&V,2103023794,1000059416
05.11.2019,ADULT SOCIAL CARE,SUPREME CARE SERVICES LTD,422.15,PHY LTS 65+,HOMECARE - C&V,2103024031,1000059416
05.11.2019,ADULT SOCIAL CARE,SUPREME CARE SERVICES LTD,422.22,PHY LTS 65+,HOMECARE - C&V,2103023860,1000059416
05.11.2019,ADULT SOCIAL CARE,SUPREME CARE SERVICES LTD,426.25,PHY LTS 65+,HOMECARE - C&V,2103023700,1000059416
05.11.2019,ADULT SOCIAL CARE,SUPREME CARE SERVICES LTD,430.58,PHY LTS 65+,HOMECARE - C&V,2103023648,1000059416
05.11.2019,ADULT SOCIAL CARE,SUPREME CARE SERVICES LTD,454.45,PHY LTS 65+,HOMECARE - C&V,2103023884,1000059416
05.11.2019,ADULT SOCIAL CARE,SUPREME CARE SERVICES LTD,460.46,PHY LTS 65+,HOMECARE - C&V,2103023999,1000059416
05.11.2019,ADULT SOCIAL CARE,SUPREME CARE SERVICES LTD,460.49,PHY LTS 65+,HOMECARE - C&V,2103023981,1000059416
05.11.2019,ADULT SOCIAL CARE,SUPREME CARE SERVICES LTD,474.63,PHY LTS 65+,HOMECARE - C&V,2103024009,1000059416
05.11.2019,ADULT SOCIAL CARE,SUPREME CARE SERVICES LTD,477.68,PHY LTS 65+,HOMECARE - C&V,2103023970,1000059416
05.11.2019,ADULT SOCIAL CARE,SUPREME CARE SERVICES LTD,485.76,PHY LTS 65+,HOMECARE - C&V,2103023736,1000059416
05.11.2019,ADULT SOCIAL CARE,SUPREME CARE SERVICES LTD,494.7,PHY LTS 65+,HOMECARE - C&V,2103023719,1000059416
05.11.2019,ADULT SOCIAL CARE,SUPREME CARE SERVICES LTD,499.14,PHY LTS 65+,HOMECARE - C&V,2103023923,1000059416
05.11.2019,ADULT SOCIAL CARE,SUPREME CARE SERVICES LTD,503.01,PHY LTS 65+,HOMECARE - C&V,2103024056,1000059416
05.11.2019,ADULT SOCIAL CARE,SUPREME CARE SERVICES LTD,508.73,PHY LTS 65+,HOMECARE - C&V,2103023650,1000059416
05.11.2019,ADULT SOCIAL CARE,SUPREME CARE SERVICES LTD,524.53,PHY LTS 65+,HOMECARE - C&V,2103023940,1000059416
05.11.2019,ADULT SOCIAL CARE,SUPREME CARE SERVICES LTD,529.46,PHY LTS 65+,HOMECARE - C&V,2103023760,1000059416
05.11.2019,ADULT SOCIAL CARE,SUPREME CARE SERVICES LTD,536.22,PHY LTS 65+,HOMECARE - C&V,2103023932,1000059416
05.11.2019,ADULT SOCIAL CARE,SUPREME CARE SERVICES LTD,537.1,PHY LTS 65+,HOMECARE - C&V,2103023744,1000059416
05.11.2019,ADULT SOCIAL CARE,SUPREME CARE SERVICES LTD,537.35,PHY LTS 65+,HOMECARE - C&V,2103024002,1000059416
05.11.2019,ADULT SOCIAL CARE,SUPREME CARE SERVICES LTD,537.38,PHY LTS 65+,HOMECARE - C&V,2103023764,1000059416
05.11.2019,ADULT SOCIAL CARE,SUPREME CARE SERVICES LTD,538.8,PHY LTS 65+,HOMECARE - C&V,2103024082,1000059416
05.11.2019,ADULT SOCIAL CARE,SUPREME CARE SERVICES LTD,541.36,PHY LTS 65+,HOMECARE - C&V,2103023873,1000059416
05.11.2019,ADULT SOCIAL CARE,SUPREME CARE SERVICES LTD,541.43,PHY LTS 65+,HOMECARE - C&V,2103023745,1000059416
05.11.2019,ADULT SOCIAL CARE,SUPREME CARE SERVICES LTD,541.49,PHY LTS 65+,HOMECARE - C&V,2103023715,1000059416
05.11.2019,ADULT SOCIAL CARE,SUPREME CARE SERVICES LTD,541.6,PHY LTS 65+,HOMECARE - C&V,2103023957,1000059416
05.11.2019,ADULT SOCIAL CARE,SUPREME CARE SERVICES LTD,543.41,PHY LTS 65+,HOMECARE - C&V,2103023723,1000059416
05.11.2019,ADULT SOCIAL CARE,SUPREME CARE SERVICES LTD,545.66,PHY LTS 65+,HOMECARE - C&V,2103023758,1000059416
05.11.2019,ADULT SOCIAL CARE,SUPREME CARE SERVICES LTD,551.57,PHY LTS 65+,HOMECARE - C&V,2103024084,1000059416
05.11.2019,ADULT SOCIAL CARE,SUPREME CARE SERVICES LTD,558.58,PHY LTS 65+,HOMECARE - C&V,2103023930,1000059416
05.11.2019,ADULT SOCIAL CARE,SUPREME CARE SERVICES LTD,569.86,PHY LTS 65+,HOMECARE - C&V,2103023967,1000059416
05.11.2019,ADULT SOCIAL CARE,SUPREME CARE SERVICES LTD,570.45,PHY LTS 65+,HOMECARE - C&V,2103024060,1000059416
05.11.2019,ADULT SOCIAL CARE,SUPREME CARE SERVICES LTD,575.57,PHY LTS 65+,HOMECARE - C&V,2103023996,1000059416
05.11.2019,ADULT SOCIAL CARE,SUPREME CARE SERVICES LTD,579.87,PHY LTS 65+,HOMECARE - C&V,2103023907,1000059416
05.11.2019,ADULT SOCIAL CARE,SUPREME CARE SERVICES LTD,584.11,PHY LTS 65+,HOMECARE - C&V,2103023732,1000059416
05.11.2019,ADULT SOCIAL CARE,SUPREME CARE SERVICES LTD,588.42,PHY LTS 65+,HOMECARE - C&V,2103023686,1000059416
05.11.2019,ADULT SOCIAL CARE,SUPREME CARE SERVICES LTD,601.21,PHY LTS 65+,HOMECARE - C&V,2103023973,1000059416
05.11.2019,ADULT SOCIAL CARE,SUPREME CARE SERVICES LTD,604.57,PHY LTS 65+,HOMECARE - C&V,2103023840,1000059416
05.11.2019,ADULT SOCIAL CARE,SUPREME CARE SERVICES LTD,605.55,PHY LTS 65+,HOMECARE - C&V,2103023675,1000059416
05.11.2019,ADULT SOCIAL CARE,SUPREME CARE SERVICES LTD,609.71,PHY LTS 65+,HOMECARE - C&V,2103023661,1000059416
05.11.2019,ADULT SOCIAL CARE,SUPREME CARE SERVICES LTD,611.09,PHY LTS 65+,HOMECARE - C&V,2103023900,1000059416
05.11.2019,ADULT SOCIAL CARE,SUPREME CARE SERVICES LTD,621.47,PHY LTS 65+,HOMECARE - C&V,2103023735,1000059416
05.11.2019,ADULT SOCIAL CARE,SUPREME CARE SERVICES LTD,622.54,PHY LTS 65+,HOMECARE - C&V,2103023832,1000059416
05.11.2019,ADULT SOCIAL CARE,SUPREME CARE SERVICES LTD,628.36,PHY LTS 65+,HOMECARE - C&V,2103023871,1000059416
05.11.2019,ADULT SOCIAL CARE,SUPREME CARE SERVICES LTD,631,PHY LTS 65+,HOMECARE - C&V,2103023701,1000059416
05.11.2019,ADULT SOCIAL CARE,SUPREME CARE SERVICES LTD,655.29,PHY LTS 65+,HOMECARE - C&V,2103023697,1000059416
05.11.2019,ADULT SOCIAL CARE,SUPREME CARE SERVICES LTD,656.42,PHY LTS 65+,HOMECARE - C&V,2103023925,1000059416
05.11.2019,ADULT SOCIAL CARE,SUPREME CARE SERVICES LTD,660.88,PHY LTS 65+,HOMECARE - C&V,2103023984,1000059416
05.11.2019,ADULT SOCIAL CARE,SUPREME CARE SERVICES LTD,660.97,PHY LTS 65+,HOMECARE - C&V,2103023772,1000059416
05.11.2019,ADULT SOCIAL CARE,SUPREME CARE SERVICES LTD,665.12,PHY LTS 65+,HOMECARE - C&V,2103023757,1000059416
05.11.2019,ADULT SOCIAL CARE,SUPREME CARE SERVICES LTD,669.4,PHY LTS 65+,HOMECARE - C&V,2103023845,1000059416
05.11.2019,ADULT SOCIAL CARE,SUPREME CARE SERVICES LTD,679.16,PHY LTS 65+,HOMECARE - C&V,2103023706,1000059416
05.11.2019,ADULT SOCIAL CARE,SUPREME CARE SERVICES LTD,695.12,PHY LTS 65+,HOMECARE - C&V,2103023879,1000059416
05.11.2019,ADULT SOCIAL CARE,SUPREME CARE SERVICES LTD,703.41,PHY LTS 65+,HOMECARE - C&V,2103023667,1000059416
05.11.2019,ADULT SOCIAL CARE,SUPREME CARE SERVICES LTD,707.63,PHY LTS 65+,HOMECARE - C&V,2103023639,1000059416
05.11.2019,ADULT SOCIAL CARE,SUPREME CARE SERVICES LTD,711.96,PHY LTS 65+,HOMECARE - C&V,2103023809,1000059416
05.11.2019,ADULT SOCIAL CARE,SUPREME CARE SERVICES LTD,713.79,PHY LTS 65+,HOMECARE - C&V,2103023850,1000059416
05.11.2019,ADULT SOCIAL CARE,SUPREME CARE SERVICES LTD,714.77,PHY LTS 65+,HOMECARE - C&V,2103023726,1000059416
05.11.2019,ADULT SOCIAL CARE,SUPREME CARE SERVICES LTD,717.24,PHY LTS 65+,HOMECARE - C&V,2103023773,1000059416
05.11.2019,ADULT SOCIAL CARE,SUPREME CARE SERVICES LTD,720.57,PHY LTS 65+,HOMECARE - C&V,2103024069,1000059416
05.11.2019,ADULT SOCIAL CARE,SUPREME CARE SERVICES LTD,720.78,PHY LTS 65+,HOMECARE - C&V,2103023826,1000059416
05.11.2019,ADULT SOCIAL CARE,SUPREME CARE SERVICES LTD,728.91,PHY LTS 65+,HOMECARE - C&V,2103023855,1000059416
05.11.2019,ADULT SOCIAL CARE,SUPREME CARE SERVICES LTD,729.07,PHY LTS 65+,HOMECARE - C&V,2103023740,1000059416
05.11.2019,ADULT SOCIAL CARE,SUPREME CARE SERVICES LTD,731.84,PHY LTS 65+,HOMECARE - C&V,2103023668,1000059416
05.11.2019,ADULT SOCIAL CARE,SUPREME CARE SERVICES LTD,731.87,PHY LTS 65+,HOMECARE - C&V,2103023979,1000059416
05.11.2019,ADULT SOCIAL CARE,SUPREME CARE SERVICES LTD,733.36,PHY LTS 65+,HOMECARE - C&V,2103024003,1000059416
05.11.2019,ADULT SOCIAL CARE,SUPREME CARE SERVICES LTD,737.66,PHY LTS 65+,HOMECARE - C&V,2103023690,1000059416
05.11.2019,ADULT SOCIAL CARE,SUPREME CARE SERVICES LTD,737.67,PHY LTS 65+,HOMECARE - C&V,2103023797,1000059416
05.11.2019,ADULT SOCIAL CARE,SUPREME CARE SERVICES LTD,746.12,PHY LTS 65+,HOMECARE - C&V,2103024049,1000059416
05.11.2019,ADULT SOCIAL CARE,SUPREME CARE SERVICES LTD,750.44,PHY LTS 65+,HOMECARE - C&V,2103023992,1000059416
05.11.2019,ADULT SOCIAL CARE,SUPREME CARE SERVICES LTD,754.86,PHY LTS 65+,HOMECARE - C&V,2103023695,1000059416
05.11.2019,ADULT SOCIAL CARE,SUPREME CARE SERVICES LTD,760.44,PHY LTS 65+,HOMECARE - C&V,2103023641,1000059416
05.11.2019,ADULT SOCIAL CARE,SUPREME CARE SERVICES LTD,763.16,PHY LTS 65+,HOMECARE - C&V,2103023704,1000059416
05.11.2019,ADULT SOCIAL CARE,SUPREME CARE SERVICES LTD,780.32,PHY LTS 65+,HOMECARE - C&V,2103023662,1000059416
05.11.2019,ADULT SOCIAL CARE,SUPREME CARE SERVICES LTD,787.71,PHY LTS 65+,HOMECARE - C&V,2103023767,1000059416
05.11.2019,ADULT SOCIAL CARE,SUPREME CARE SERVICES LTD,794.38,PHY LTS 65+,HOMECARE - C&V,2103023694,1000059416
05.11.2019,ADULT SOCIAL CARE,SUPREME CARE SERVICES LTD,797.4,PHY LTS 65+,HOMECARE - C&V,2103024024,1000059416
05.11.2019,ADULT SOCIAL CARE,SUPREME CARE SERVICES LTD,805.69,PHY LTS 65+,HOMECARE - C&V,2103023765,1000059416
05.11.2019,ADULT SOCIAL CARE,SUPREME CARE SERVICES LTD,805.73,PHY LTS 65+,HOMECARE - C&V,2103023801,1000059416
05.11.2019,ADULT SOCIAL CARE,SUPREME CARE SERVICES LTD,809.9,PHY LTS 65+,HOMECARE - C&V,2103023944,1000059416
05.11.2019,ADULT SOCIAL CARE,SUPREME CARE SERVICES LTD,810.02,PHY LTS 65+,HOMECARE - C&V,2103023841,1000059416
05.11.2019,ADULT SOCIAL CARE,SUPREME CARE SERVICES LTD,810.03,PHY LTS 65+,HOMECARE - C&V,2103023950,1000059416
05.11.2019,ADULT SOCIAL CARE,SUPREME CARE SERVICES LTD,814.47,PHY LTS 65+,HOMECARE - C&V,2103023876,1000059416
05.11.2019,ADULT SOCIAL CARE,SUPREME CARE SERVICES LTD,815.9,PHY LTS 65+,HOMECARE - C&V,2103023729,1000059416
05.11.2019,ADULT SOCIAL CARE,SUPREME CARE SERVICES LTD,818.67,PHY LTS 65+,HOMECARE - C&V,2103023685,1000059416
05.11.2019,ADULT SOCIAL CARE,SUPREME CARE SERVICES LTD,822.77,PHY LTS 65+,HOMECARE - C&V,2103023705,1000059416
05.11.2019,ADULT SOCIAL CARE,SUPREME CARE SERVICES LTD,828.71,PHY LTS 65+,HOMECARE - C&V,2103023659,1000059416
05.11.2019,ADULT SOCIAL CARE,SUPREME CARE SERVICES LTD,835.8,PHY LTS 65+,HOMECARE - C&V,2103023692,1000059416
05.11.2019,ADULT SOCIAL CARE,SUPREME CARE SERVICES LTD,835.8,PHY LTS 65+,HOMECARE - C&V,2103023921,1000059416
05.11.2019,ADULT SOCIAL CARE,SUPREME CARE SERVICES LTD,836.61,PHY LTS 65+,HOMECARE - C&V,2103024017,1000059416
05.11.2019,ADULT SOCIAL CARE,SUPREME CARE SERVICES LTD,840.03,PHY LTS 65+,HOMECARE - C&V,2103024062,1000059416
05.11.2019,ADULT SOCIAL CARE,SUPREME CARE SERVICES LTD,842.8,PHY LTS 65+,HOMECARE - C&V,2103023696,1000059416
05.11.2019,ADULT SOCIAL CARE,SUPREME CARE SERVICES LTD,855.91,PHY LTS 65+,HOMECARE - C&V,2103023698,1000059416
05.11.2019,ADULT SOCIAL CARE,SUPREME CARE SERVICES LTD,861.38,PHY LTS 65+,HOMECARE - C&V,2103024014,1000059416
05.11.2019,ADULT SOCIAL CARE,SUPREME CARE SERVICES LTD,865.41,PHY LTS 65+,HOMECARE - C&V,2103023842,1000059416
05.11.2019,ADULT SOCIAL CARE,SUPREME CARE SERVICES LTD,882.47,PHY LTS 65+,HOMECARE - C&V,2103024015,1000059416
05.11.2019,ADULT SOCIAL CARE,SUPREME CARE SERVICES LTD,884.52,PHY LTS 65+,HOMECARE - C&V,2103023753,1000059416
05.11.2019,ADULT SOCIAL CARE,SUPREME CARE SERVICES LTD,885.24,PHY LTS 65+,HOMECARE - C&V,2103023927,1000059416
05.11.2019,ADULT SOCIAL CARE,SUPREME CARE SERVICES LTD,886.87,PHY LTS 65+,HOMECARE - C&V,2103023654,1000059416
05.11.2019,ADULT SOCIAL CARE,SUPREME CARE SERVICES LTD,892.72,PHY LTS 65+,HOMECARE - C&V,2103023708,1000059416
05.11.2019,ADULT SOCIAL CARE,SUPREME CARE SERVICES LTD,908.21,PHY LTS 65+,HOMECARE - C&V,2103023863,1000059416
05.11.2019,ADULT SOCIAL CARE,SUPREME CARE SERVICES LTD,929.55,PHY LTS 65+,HOMECARE - C&V,2103023728,1000059416
05.11.2019,ADULT SOCIAL CARE,SUPREME CARE SERVICES LTD,940.43,PHY LTS 65+,HOMECARE - C&V,2103023833,1000059416
05.11.2019,ADULT SOCIAL CARE,SUPREME CARE SERVICES LTD,942.37,PHY LTS 65+,HOMECARE - C&V,2103023653,1000059416
05.11.2019,ADULT SOCIAL CARE,SUPREME CARE SERVICES LTD,946.6,PHY LTS 65+,HOMECARE - C&V,2103024083,1000059416
05.11.2019,ADULT SOCIAL CARE,SUPREME CARE SERVICES LTD,955.37,PHY LTS 65+,HOMECARE - C&V,2103023812,1000059416
05.11.2019,ADULT SOCIAL CARE,SUPREME CARE SERVICES LTD,956.74,PHY LTS 65+,HOMECARE - C&V,2103024065,1000059416
05.11.2019,ADULT SOCIAL CARE,SUPREME CARE SERVICES LTD,959.45,PHY LTS 65+,HOMECARE - C&V,2103023807,1000059416
05.11.2019,ADULT SOCIAL CARE,SUPREME CARE SERVICES LTD,963.6,PHY LTS 65+,HOMECARE - C&V,2103023784,1000059416
05.11.2019,ADULT SOCIAL CARE,SUPREME CARE SERVICES LTD,963.65,PHY LTS 65+,HOMECARE - C&V,2103023777,1000059416
05.11.2019,ADULT SOCIAL CARE,SUPREME CARE SERVICES LTD,963.66,PHY LTS 65+,HOMECARE - C&V,2103023752,1000059416
05.11.2019,ADULT SOCIAL CARE,SUPREME CARE SERVICES LTD,965.97,PHY LTS 65+,HOMECARE - C&V,2103023778,1000059416
05.11.2019,ADULT SOCIAL CARE,SUPREME CARE SERVICES LTD,967.93,PHY LTS 65+,HOMECARE - C&V,2103023839,1000059416
05.11.2019,ADULT SOCIAL CARE,SUPREME CARE SERVICES LTD,967.94,PHY LTS 65+,HOMECARE - C&V,2103023738,1000059416
05.11.2019,ADULT SOCIAL CARE,SUPREME CARE SERVICES LTD,967.99,PHY LTS 65+,HOMECARE - C&V,2103023831,1000059416
05.11.2019,ADULT SOCIAL CARE,SUPREME CARE SERVICES LTD,972.14,PHY LTS 65+,HOMECARE - C&V,2103024053,1000059416
05.11.2019,ADULT SOCIAL CARE,SUPREME CARE SERVICES LTD,972.21,PHY LTS 65+,HOMECARE - C&V,2103023893,1000059416
05.11.2019,ADULT SOCIAL CARE,SUPREME CARE SERVICES LTD,978.7,PHY LTS 65+,HOMECARE - C&V,2103023646,1000059416
05.11.2019,ADULT SOCIAL CARE,SUPREME CARE SERVICES LTD,980.36,PHY LTS 65+,HOMECARE - C&V,2103023741,1000059416
05.11.2019,ADULT SOCIAL CARE,SUPREME CARE SERVICES LTD,996.01,PHY LTS 65+,HOMECARE - C&V,2103023835,1000059416
05.11.2019,ADULT SOCIAL CARE,SUPREME CARE SERVICES LTD,997.69,PHY LTS 65+,HOMECARE - C&V,2103023956,1000059416
05.11.2019,ADULT SOCIAL CARE,SUPREME CARE SERVICES LTD,"1,010.26",PHY LTS 65+,HOMECARE - C&V,2103023865,1000059416
05.11.2019,ADULT SOCIAL CARE,SUPREME CARE SERVICES LTD,"1,010.62",PHY LTS 65+,HOMECARE - C&V,2103023642,1000059416
05.11.2019,ADULT SOCIAL CARE,SUPREME CARE SERVICES LTD,"1,010.63",PHY LTS 65+,HOMECARE - C&V,2103023810,1000059416
05.11.2019,ADULT SOCIAL CARE,SUPREME CARE SERVICES LTD,"1,010.70",PHY LTS 65+,HOMECARE - C&V,2103023791,1000059416
05.11.2019,ADULT SOCIAL CARE,SUPREME CARE SERVICES LTD,"1,014.78",PHY LTS 65+,HOMECARE - C&V,2103023717,1000059416
05.11.2019,ADULT SOCIAL CARE,SUPREME CARE SERVICES LTD,"1,022.97",PHY LTS 65+,HOMECARE - C&V,2103023894,1000059416
05.11.2019,ADULT SOCIAL CARE,SUPREME CARE SERVICES LTD,"1,023.28",PHY LTS 65+,HOMECARE - C&V,2103023829,1000059416
05.11.2019,ADULT SOCIAL CARE,SUPREME CARE SERVICES LTD,"1,027.53",PHY LTS 65+,HOMECARE - C&V,2103023924,1000059416
05.11.2019,ADULT SOCIAL CARE,SUPREME CARE SERVICES LTD,"1,048.89",PHY LTS 65+,HOMECARE - C&V,2103023852,1000059416
05.11.2019,ADULT SOCIAL CARE,SUPREME CARE SERVICES LTD,"1,051.42",PHY LTS 65+,HOMECARE - C&V,2103023945,1000059416
05.11.2019,ADULT SOCIAL CARE,SUPREME CARE SERVICES LTD,"1,057.57",PHY LTS 65+,HOMECARE - C&V,2103023926,1000059416
05.11.2019,ADULT SOCIAL CARE,SUPREME CARE SERVICES LTD,"1,060.11",PHY LTS 65+,HOMECARE - C&V,2103023878,1000059416
05.11.2019,ADULT SOCIAL CARE,SUPREME CARE SERVICES LTD,"1,074.42",PHY LTS 65+,HOMECARE - C&V,2103024036,1000059416
05.11.2019,ADULT SOCIAL CARE,SUPREME CARE SERVICES LTD,"1,074.59",PHY LTS 65+,HOMECARE - C&V,2103023948,1000059416
05.11.2019,ADULT SOCIAL CARE,SUPREME CARE SERVICES LTD,"1,078.67",PHY LTS 65+,HOMECARE - C&V,2103023933,1000059416
05.11.2019,ADULT SOCIAL CARE,SUPREME CARE SERVICES LTD,"1,089.50",PHY LTS 65+,HOMECARE - C&V,2103024028,1000059416
05.11.2019,ADULT SOCIAL CARE,SUPREME CARE SERVICES LTD,"1,092.71",PHY LTS 65+,HOMECARE - C&V,2103024045,1000059416
05.11.2019,ADULT SOCIAL CARE,SUPREME CARE SERVICES LTD,"1,097.38",PHY LTS 65+,HOMECARE - C&V,2103023975,1000059416
05.11.2019,ADULT SOCIAL CARE,SUPREME CARE SERVICES LTD,"1,100.09",PHY LTS 65+,HOMECARE - C&V,2103024016,1000059416
05.11.2019,ADULT SOCIAL CARE,SUPREME CARE SERVICES LTD,"1,108.65",PHY LTS 65+,HOMECARE - C&V,2103023795,1000059416
05.11.2019,ADULT SOCIAL CARE,SUPREME CARE SERVICES LTD,"1,117.05",PHY LTS 65+,HOMECARE - C&V,2103023966,1000059416
05.11.2019,ADULT SOCIAL CARE,SUPREME CARE SERVICES LTD,"1,132.13",PHY LTS 65+,HOMECARE - C&V,2103023638,1000059416
05.11.2019,ADULT SOCIAL CARE,SUPREME CARE SERVICES LTD,"1,140.06",PHY LTS 65+,HOMECARE - C&V,2103023674,1000059416
05.11.2019,ADULT SOCIAL CARE,SUPREME CARE SERVICES LTD,"1,155.35",PHY LTS 65+,HOMECARE - C&V,2103023687,1000059416
05.11.2019,ADULT SOCIAL CARE,SUPREME CARE SERVICES LTD,"1,155.61",PHY LTS 65+,HOMECARE - C&V,2103023734,1000059416
05.11.2019,ADULT SOCIAL CARE,SUPREME CARE SERVICES LTD,"1,159.62",PHY LTS 65+,HOMECARE - C&V,2103023673,1000059416
05.11.2019,ADULT SOCIAL CARE,SUPREME CARE SERVICES LTD,"1,164.11",PHY LTS 65+,HOMECARE - C&V,2103023803,1000059416
05.11.2019,ADULT SOCIAL CARE,SUPREME CARE SERVICES LTD,"1,185.32",PHY LTS 65+,HOMECARE - C&V,2103024043,1000059416
05.11.2019,ADULT SOCIAL CARE,SUPREME CARE SERVICES LTD,"1,189.52",PHY LTS 65+,HOMECARE - C&V,2103024076,1000059416
05.11.2019,ADULT SOCIAL CARE,SUPREME CARE SERVICES LTD,"1,196.35",PHY LTS 65+,HOMECARE - C&V,2103023664,1000059416
05.11.2019,ADULT SOCIAL CARE,SUPREME CARE SERVICES LTD,"1,198.25",PHY LTS 65+,HOMECARE - C&V,2103023937,1000059416
05.11.2019,ADULT SOCIAL CARE,SUPREME CARE SERVICES LTD,"1,219.47",PHY LTS 65+,HOMECARE - C&V,2103023857,1000059416
05.11.2019,ADULT SOCIAL CARE,SUPREME CARE SERVICES LTD,"1,228.08",PHY LTS 65+,HOMECARE - C&V,2103023872,1000059416
05.11.2019,ADULT SOCIAL CARE,SUPREME CARE SERVICES LTD,"1,232.31",PHY LTS 65+,HOMECARE - C&V,2103023834,1000059416
05.11.2019,ADULT SOCIAL CARE,SUPREME CARE SERVICES LTD,"1,244.97",PHY LTS 65+,HOMECARE - C&V,2103023770,1000059416
05.11.2019,ADULT SOCIAL CARE,SUPREME CARE SERVICES LTD,"1,285.56",PHY LTS 65+,HOMECARE - C&V,2103024027,1000059416
05.11.2019,ADULT SOCIAL CARE,SUPREME CARE SERVICES LTD,"1,300.26",PHY LTS 65+,HOMECARE - C&V,2103023755,1000059416
05.11.2019,ADULT SOCIAL CARE,SUPREME CARE SERVICES LTD,"1,321.70",PHY LTS 65+,HOMECARE - C&V,2103023939,1000059416
05.11.2019,ADULT SOCIAL CARE,SUPREME CARE SERVICES LTD,"1,338.84",PHY LTS 65+,HOMECARE - C&V,2103023782,1000059416
05.11.2019,ADULT SOCIAL CARE,SUPREME CARE SERVICES LTD,"1,407.11",PHY LTS 65+,HOMECARE - C&V,2103023892,1000059416
05.11.2019,ADULT SOCIAL CARE,SUPREME CARE SERVICES LTD,"1,415.22",PHY LTS 65+,HOMECARE - C&V,2103023672,1000059416
05.11.2019,ADULT SOCIAL CARE,SUPREME CARE SERVICES LTD,"1,448.97",PHY LTS 65+,HOMECARE - C&V,2103023761,1000059416
05.11.2019,ADULT SOCIAL CARE,SUPREME CARE SERVICES LTD,"1,449.79",PHY LTS 65+,HOMECARE - C&V,2103023792,1000059416
05.11.2019,ADULT SOCIAL CARE,SUPREME CARE SERVICES LTD,"1,464.63",PHY LTS 65+,HOMECARE - C&V,2103023651,1000059416
05.11.2019,ADULT SOCIAL CARE,SUPREME CARE SERVICES LTD,"1,496.27",PHY LTS 65+,HOMECARE - C&V,2103024077,1000059416
05.11.2019,ADULT SOCIAL CARE,SUPREME CARE SERVICES LTD,"1,539.20",PHY LTS 65+,HOMECARE - C&V,2103023978,1000059416
05.11.2019,ADULT SOCIAL CARE,SUPREME CARE SERVICES LTD,"1,569.22",PHY LTS 65+,HOMECARE - C&V,2103023647,1000059416
05.11.2019,ADULT SOCIAL CARE,SUPREME CARE SERVICES LTD,"1,590.10",PHY LTS 65+,HOMECARE - C&V,2103024032,1000059416
05.11.2019,ADULT SOCIAL CARE,SUPREME CARE SERVICES LTD,"1,640.21",PHY LTS 65+,HOMECARE - C&V,2103023902,1000059416
05.11.2019,ADULT SOCIAL CARE,SUPREME CARE SERVICES LTD,"1,675.81",PHY LTS 65+,HOMECARE - C&V,2103023993,1000059416
05.11.2019,ADULT SOCIAL CARE,SUPREME CARE SERVICES LTD,"1,816.53",PHY LTS 65+,HOMECARE - C&V,2103023749,1000059416
05.11.2019,ADULT SOCIAL CARE,SUPREME CARE SERVICES LTD,"1,820.73",PHY LTS 65+,HOMECARE - C&V,2103023997,1000059416
05.11.2019,ADULT SOCIAL CARE,SUPREME CARE SERVICES LTD,"1,893.12",PHY LTS 65+,HOMECARE - C&V,2103023788,1000059416
05.11.2019,ADULT SOCIAL CARE,SUPREME CARE SERVICES LTD,"1,911.59",PHY LTS 65+,HOMECARE - C&V,2103023763,1000059416
05.11.2019,ADULT SOCIAL CARE,SUPREME CARE SERVICES LTD,"1,968.14",PHY LTS 65+,HOMECARE - C&V,2103023655,1000059416
05.11.2019,ADULT SOCIAL CARE,SUPREME CARE SERVICES LTD,"1,982.67",PHY LTS 65+,HOMECARE - C&V,2103023680,1000059416
05.11.2019,ADULT SOCIAL CARE,SUPREME CARE SERVICES LTD,"2,081.03",PHY LTS 65+,HOMECARE - C&V,2103023754,1000059416
05.11.2019,ADULT SOCIAL CARE,SUPREME CARE SERVICES LTD,"2,085.29",PHY LTS 65+,HOMECARE - C&V,2103023864,1000059416
05.11.2019,ADULT SOCIAL CARE,SUPREME CARE SERVICES LTD,"2,119.35",PHY LTS 65+,HOMECARE - C&V,2103024047,1000059416
05.11.2019,ADULT SOCIAL CARE,SUPREME CARE SERVICES LTD,"2,136.24",PHY LTS 65+,HOMECARE - C&V,2103023800,1000059416
05.11.2019,ADULT SOCIAL CARE,SUPREME CARE SERVICES LTD,"2,144.91",PHY LTS 65+,HOMECARE - C&V,2103023848,1000059416
05.11.2019,ADULT SOCIAL CARE,SUPREME CARE SERVICES LTD,"2,203.76",PHY LTS 65+,HOMECARE - C&V,2103024030,1000059416
05.11.2019,ADULT SOCIAL CARE,SUPREME CARE SERVICES LTD,"2,221.55",PHY LTS 65+,HOMECARE - C&V,2103023711,1000059416
05.11.2019,ADULT SOCIAL CARE,SUPREME CARE SERVICES LTD,"2,250.88",PHY LTS 65+,HOMECARE - C&V,2103023805,1000059416
05.11.2019,ADULT SOCIAL CARE,SUPREME CARE SERVICES LTD,"2,259.69",PHY LTS 65+,HOMECARE - C&V,2103023733,1000059416
05.11.2019,ADULT SOCIAL CARE,SUPREME CARE SERVICES LTD,"2,259.98",PHY LTS 65+,HOMECARE - C&V,2103024000,1000059416
05.11.2019,ADULT SOCIAL CARE,SUPREME CARE SERVICES LTD,"2,319.23",PHY LTS 65+,HOMECARE - C&V,2103023987,1000059416
05.11.2019,ADULT SOCIAL CARE,SUPREME CARE SERVICES LTD,"2,348.79",PHY LTS 65+,HOMECARE - C&V,2103023702,1000059416
05.11.2019,ADULT SOCIAL CARE,SUPREME CARE SERVICES LTD,"2,379.31",PHY LTS 65+,HOMECARE - C&V,2103023911,1000059416
05.11.2019,ADULT SOCIAL CARE,SUPREME CARE SERVICES LTD,"2,383.12",PHY LTS 65+,HOMECARE - C&V,2103024029,1000059416
05.11.2019,ADULT SOCIAL CARE,SUPREME CARE SERVICES LTD,"2,401.17",PHY LTS 65+,HOMECARE - C&V,2103023919,1000059416
05.11.2019,ADULT SOCIAL CARE,SUPREME CARE SERVICES LTD,"2,409.18",PHY LTS 65+,HOMECARE - C&V,2103023849,1000059416
05.11.2019,ADULT SOCIAL CARE,SUPREME CARE SERVICES LTD,"2,438.96",PHY LTS 65+,HOMECARE - C&V,2103023914,1000059416
05.11.2019,ADULT SOCIAL CARE,SUPREME CARE SERVICES LTD,"2,545.26",PHY LTS 65+,HOMECARE - C&V,2103023868,1000059416
05.11.2019,ADULT SOCIAL CARE,SUPREME CARE SERVICES LTD,"2,747.19",PHY LTS 65+,HOMECARE - C&V,2103023747,1000059416
05.11.2019,ADULT SOCIAL CARE,SUPREME CARE SERVICES LTD,"2,762.62",PHY LTS 65+,HOMECARE - C&V,2103023721,1000059416
05.11.2019,ADULT SOCIAL CARE,SUPREME CARE SERVICES LTD,"3,042.89",PHY LTS 65+,HOMECARE - C&V,2103023742,1000059416
05.11.2019,ADULT SOCIAL CARE,SUPREME CARE SERVICES LTD,"3,252.48",PHY LTS 65+,HOMECARE - C&V,2103024081,1000059416
05.11.2019,ADULT SOCIAL CARE,SUPREME CARE SERVICES LTD,272.04,PHY LTS 65+,HOMECARE - SPOT,2103023947,1000059416
05.11.2019,ADULT SOCIAL CARE,SUPREME CARE SERVICES LTD,379.4,PHY LTS 65+,HOMECARE - SPOT,2103023965,1000059416
05.11.2019,ADULT SOCIAL CARE,SUPREME CARE SERVICES LTD,639.6,PHY LTS 65+,HOMECARE - SPOT,2103023938,1000059416
05.11.2019,ADULT SOCIAL CARE,SUPREME CARE SERVICES LTD,865.61,PHY LTS 65+,HOMECARE - SPOT,2103023964,1000059416
05.11.2019,ADULT SOCIAL CARE,SUPREME CARE SERVICES LTD,"1,006.15",PHY LTS 65+,HOMECARE - SPOT,2103024039,1000059416
05.11.2019,ADULT SOCIAL CARE,SUPREME CARE SERVICES LTD,"1,094.67",PHY LTS 65+,HOMECARE - SPOT,2103023922,1000059416
05.11.2019,ADULT SOCIAL CARE,SERVESOUL LTD,262.87,PHY LTS 65+,HOMECARE - SPOT,2103023619,1000081503
05.11.2019,ADULT SOCIAL CARE,SERVESOUL LTD,292.08,PHY LTS 65+,HOMECARE - SPOT,2103023605,1000081503
05.11.2019,ADULT SOCIAL CARE,SERVESOUL LTD,308.77,PHY LTS 65+,HOMECARE - SPOT,2103023608,1000081503
05.11.2019,ADULT SOCIAL CARE,SERVESOUL LTD,346.32,PHY LTS 65+,HOMECARE - SPOT,2103023620,1000081503
05.11.2019,ADULT SOCIAL CARE,SERVESOUL LTD,421.42,PHY LTS 65+,HOMECARE - SPOT,2103023633,1000081503
05.11.2019,ADULT SOCIAL CARE,SERVESOUL LTD,433.94,PHY LTS 65+,HOMECARE - SPOT,2103023603,1000081503
05.11.2019,ADULT SOCIAL CARE,SERVESOUL LTD,517.39,PHY LTS 65+,HOMECARE - SPOT,2103023629,1000081503
05.11.2019,ADULT SOCIAL CARE,SERVESOUL LTD,525.74,PHY LTS 65+,HOMECARE - SPOT,2103023601,1000081503
05.11.2019,ADULT SOCIAL CARE,SERVESOUL LTD,525.74,PHY LTS 65+,HOMECARE - SPOT,2103023602,1000081503
05.11.2019,ADULT SOCIAL CARE,SERVESOUL LTD,559.12,PHY LTS 65+,HOMECARE - SPOT,2103023607,1000081503
05.11.2019,ADULT SOCIAL CARE,SERVESOUL LTD,579.98,PHY LTS 65+,HOMECARE - SPOT,2103023618,1000081503
05.11.2019,ADULT SOCIAL CARE,SERVESOUL LTD,584.15,PHY LTS 65+,HOMECARE - SPOT,2103023612,1000081503
05.11.2019,ADULT SOCIAL CARE,SERVESOUL LTD,642.57,PHY LTS 65+,HOMECARE - SPOT,2103023624,1000081503
05.11.2019,ADULT SOCIAL CARE,SUPREME CARE SERVICES LTD,427.68,PHY STS 18-64,HOMECARE - IC,2103024070,1000059416
05.11.2019,ADULT SOCIAL CARE,SUPREME CARE SERVICES LTD,"2,421.84",SEN LTS 65+,HOMECARE - C&V,2103023942,1000059416
05.11.2019,ADULT SOCIAL CARE,BEDE CAFE PROJECT,"1,168.00",SOCIAL ISOLATION,DAYCARE,2103024094,1553877
05.11.2019,ADULT SOCIAL CARE,SUPREME CARE SERVICES LTD,250.38,SOCIAL ISOLATION,HOMECARE - C&V,2103023825,1000059416
05.11.2019,ADULT SOCIAL CARE,SUPREME CARE SERVICES LTD,315.24,SOCIAL ISOLATION,HOMECARE - C&V,2103023815,1000059416
05.11.2019,ADULT SOCIAL CARE,SUPREME CARE SERVICES LTD,350.99,SOCIAL ISOLATION,HOMECARE - C&V,2103023743,1000059416
05.11.2019,ADULT SOCIAL CARE,SUPREME CARE SERVICES LTD,383.71,SOCIAL ISOLATION,HOMECARE - C&V,2103023827,1000059416
05.11.2019,ADULT SOCIAL CARE,SUPREME CARE SERVICES LTD,409.4,SOCIAL ISOLATION,HOMECARE - C&V,2103023917,1000059416
05.11.2019,ADULT SOCIAL CARE,SUPREME CARE SERVICES LTD,612.21,SOCIAL ISOLATION,HOMECARE - C&V,2103023820,1000059416
05.11.2019,ADULT SOCIAL CARE,SUPREME CARE SERVICES LTD,652.35,SOCIAL ISOLATION,HOMECARE - C&V,2103023774,1000059416
05.11.2019,ADULT SOCIAL CARE,SUPREME CARE SERVICES LTD,"3,295.18",SOCIAL ISOLATION,HOMECARE - C&V,2103024021,1000059416
05.11.2019,ADULT SOCIAL CARE,SUPREME CARE SERVICES LTD,294.34,SOCIAL ISOLATION,HOMECARE - IC,2103023814,1000059416
05.11.2019,ADULT SOCIAL CARE,SUPREME CARE SERVICES LTD,729.08,SUB LTS 18-64,HOMECARE - C&V,2103023837,1000059416
05.11.2019,ADULT SOCIAL CARE,SERVESOUL LTD,375.53,SUB LTS 18-64,HOMECARE - SPOT,2103023610,1000081503
05.11.2019,ADULT SOCIAL CARE,FREEDOM RECOVERY CENTRE,798.6,SUB LTS 18-64,RESIDENTIAL CARE,2103024090,1000046185
05.11.2019,ADULT SOCIAL CARE,FOCUSED HEALTHCARE LTD,"7,869.84",TRANSITIONS 14-18YRS,SECTION 17 PAYMENTS TO AGENCIES/CARERS,2103023543,1000069262
05.11.2019,CHIEF EXECUTIVE,RED R DESIGN,525,CAPITAL PS (REGEN),CONSTR'N SUB CONTRACT - NON CERTIFICATED,5902386239,1000035984
05.11.2019,CHIEF EXECUTIVE,SOMETHING & SON LTD,"13,646.73",CAPITAL PS (REGEN),CONSTRUCTION FEES,5902386291,1000076291
05.11.2019,CHIEF EXECUTIVE,TRITON BUILDING RESTORATION LTD,"43,783.46",CAPITAL PS (REGEN),CONSTRUCTION FEES  - EXTERNAL,2103024144,3000002061
05.11.2019,CHIEF EXECUTIVE,KENT COUNTY COUNCIL - LASER,"1,928.90",CAPITAL PS (REGEN),CONSTRUCTION MAIN CONTRACT -CERTIFICATED,5902386307,1000012926
05.11.2019,CHILDREN AND ADULT,PROPERTY FACILITIES GROUP PLC,"4,413.76",CAPITAL PS (EDUCATION),CONSTRUCTION,2103024139,3000001420
05.11.2019,CHILDREN AND ADULT,SHARPE PRITCHARD LLP,314,CAPITAL PS (EDUCATION),CONSTRUCTION FEES - LEGAL,5902386181,1790085
05.11.2019,CHILDREN AND ADULT,SHARPE PRITCHARD LLP,"1,204.00",CAPITAL PS (EDUCATION),CONSTRUCTION FEES - LEGAL,5902386180,1790085
05.11.2019,CHILDREN AND ADULT,FAITHFUL & GOULD,"26,599.70",CAPITAL PS (SOC SERV),CONSTRUCTION FEES,5902386198,1000061390
05.11.2019,CHILDREN'S SERVICES,RED R DESIGN,"3,190.00",ADMISSIONS,MARKETING & PUBLICITY SERVICES,5902386343,1000035984
05.11.2019,CHILDREN'S SERVICES,KENT COUNTY COUNCIL - LASER,"2,065.16",BUILDING SUMNER,ELECTRICITY,5902386313,1000012926
05.11.2019,CHILDREN'S SERVICES,RED R DESIGN,"2,800.00",DIRECT DELIVERY,MARKETING & PUBLICITY SERVICES,5902386344,1000035984
05.11.2019,CHILDREN'S SERVICES,TTS GROUP LTD,302.49,EARLY YEARS IMPROVEMENT,BOOKS & PUBLICATIONS,5902386238,1000015308
05.11.2019,CHILDREN'S SERVICES,TTS GROUP LTD,304.5,EARLY YEARS IMPROVEMENT,BOOKS & PUBLICATIONS,5902386237,1000015308
05.11.2019,CHILDREN'S SERVICES,CAMELOT PRIMARY SCHOOL,"1,200.00",EARLY YEARS IMPROVEMENT,CONSULTANTS SERVICES,5902386235,5001000014
05.11.2019,CHILDREN'S SERVICES,REDACTED PERSONAL DATA,"6,171.36",FAMILY ASSESSMENTS,RESIDENTIAL CARE,REDACTED,REDACTED
05.11.2019,CHILDREN'S SERVICES,REDACTED PERSONAL DATA,"6,171.36",FAMILY ASSESSMENTS,RESIDENTIAL CARE,REDACTED,REDACTED
05.11.2019,CHILDREN'S SERVICES,HEATH FARM FAMILY SOLUTION (FOSTERING),"5,913.25",FRIENDS & FAMILY FOSTERING,EXTERNAL AGENCIES AND BODIES,2103023552,11271268
05.11.2019,CHILDREN'S SERVICES,TACT,"3,933.00",FRIENDS & FAMILY FOSTERING,EXTERNAL AGENCIES AND BODIES,2103023556,1000012941
05.11.2019,CHILDREN'S SERVICES,ACTION FOR CHILDREN,"6,887.68",FRIENDS & FAMILY FOSTERING,EXTERNAL AGENCIES AND BODIES,2103023553,1000049964
05.11.2019,CHILDREN'S SERVICES,RAINBOW FOSTERING SERVICES LTD,"3,268.80",FRIENDS & FAMILY FOSTERING,EXTERNAL AGENCIES AND BODIES,2103023550,1000076620
05.11.2019,CHILDREN'S SERVICES,FOSTERING LONDON LTD,"3,942.96",FRIENDS & FAMILY FOSTERING,EXTERNAL AGENCIES AND BODIES,2103023549,1000077541
05.11.2019,CHILDREN'S SERVICES,FOSTERING LONDON LTD,"4,625.00",FRIENDS & FAMILY FOSTERING,EXTERNAL AGENCIES AND BODIES,2103023548,1000077541
05.11.2019,CHILDREN'S SERVICES,FOSTERING LONDON LTD,"4,928.70",FRIENDS & FAMILY FOSTERING,EXTERNAL AGENCIES AND BODIES,2103023555,1000077541
05.11.2019,CHILDREN'S SERVICES,FOSTERING LONDON LTD,"6,832.50",FRIENDS & FAMILY FOSTERING,EXTERNAL AGENCIES AND BODIES,2103023557,1000077541
05.11.2019,CHILDREN'S SERVICES,PARENT AND CHILD FOSTERING ASSESSMENTS,"2,750.00",FRIENDS & FAMILY FOSTERING,EXTERNAL AGENCIES AND BODIES,2103023551,1000078962
05.11.2019,CHILDREN'S SERVICES,REDACTED PERSONAL DATA,300,FURTHER EDUCATION SUPPORT,CLIENT TRANSPORT,REDACTED,REDACTED
05.11.2019,CHILDREN'S SERVICES,REDACTED PERSONAL DATA,300,FURTHER EDUCATION SUPPORT,CLIENT TRANSPORT,REDACTED,REDACTED
05.11.2019,CHILDREN'S SERVICES,REDACTED PERSONAL DATA,300,FURTHER EDUCATION SUPPORT,CLIENT TRANSPORT,REDACTED,REDACTED
05.11.2019,CHILDREN'S SERVICES,REDACTED PERSONAL DATA,300,FURTHER EDUCATION SUPPORT,CLIENT TRANSPORT,REDACTED,REDACTED
05.11.2019,CHILDREN'S SERVICES,REDACTED PERSONAL DATA,300,FURTHER EDUCATION SUPPORT,CLIENT TRANSPORT,REDACTED,REDACTED
05.11.2019,CHILDREN'S SERVICES,REDACTED PERSONAL DATA,500,FURTHER EDUCATION SUPPORT,OTHER PAYMENTS FOR CLIENTS,REDACTED,REDACTED
05.11.2019,CHILDREN'S SERVICES,REDACTED PERSONAL DATA,500,FURTHER EDUCATION SUPPORT,OTHER PAYMENTS FOR CLIENTS,REDACTED,REDACTED
05.11.2019,CHILDREN'S SERVICES,REDACTED PERSONAL DATA,500,FURTHER EDUCATION SUPPORT,OTHER PAYMENTS FOR CLIENTS,REDACTED,REDACTED
05.11.2019,CHILDREN'S SERVICES,JOHN GUEST SAFEGUARDING LIMITED,325,GOVERNOR TRAINING,CONSULTANTS SERVICES,5902386252,1000065465
05.11.2019,CHILDREN'S SERVICES,JOHN GUEST SAFEGUARDING LIMITED,325,GOVERNOR TRAINING,CONSULTANTS SERVICES,5902386256,1000065465
05.11.2019,CHILDREN'S SERVICES,THE DRIVE CARE HOMES LTD,"1,280.00",RESIDENTIAL,RESIDENTIAL CARE,2103023545,1000003889
05.11.2019,CHILDREN'S SERVICES,OUTBOUND CARE LTD,"1,714.29",RESIDENTIAL,RESIDENTIAL CARE,2103023544,1000083072
05.11.2019,CHILDREN'S SERVICES,UNIQUE CARE HOMES SUPPORT LTD,"19,691.43",RESIDENTIAL,RESIDENTIAL CARE,2103023546,1000083349
05.11.2019,CHILDREN'S SERVICES,UNIQUE CARE HOMES SUPPORT LTD,"33,578.57",RESIDENTIAL,RESIDENTIAL CARE,2103023547,1000083349
05.11.2019,CHILDREN'S SERVICES,PURPLE PEBBLES(CHILD CARE) SERVICES,"1,882.14",RESOURCE PANEL,OTHER PAYMENTS FOR CLIENTS,2103023600,1000070705
05.11.2019,CHILDREN'S SERVICES,CARE R US LTD,"2,541.42",SEMI INDEPENDENT CARE LEAVERS,EXTERNAL AGENCIES AND BODIES,2103023579,1000053515
05.11.2019,CHILDREN'S SERVICES,HEARTWOOD OUTREACH SERVICES LTD,"1,826.70",SEMI INDEPENDENT CARE LEAVERS,EXTERNAL AGENCIES AND BODIES,2103023590,1000075021
05.11.2019,CHILDREN'S SERVICES,MY LIFE SEMI-INDEPENDENT PROJECT LTD,"1,780.00",SEMI INDEPENDENT CARE LEAVERS,EXTERNAL AGENCIES AND BODIES,2103023571,1000075301
05.11.2019,CHILDREN'S SERVICES,FINEFAIR LTD,"1,627.24",SEMI INDEPENDENT CARE LEAVERS,EXTERNAL AGENCIES AND BODIES,2103023572,1000075570
05.11.2019,CHILDREN'S SERVICES,FINEFAIR LTD,"1,632.90",SEMI INDEPENDENT CARE LEAVERS,EXTERNAL AGENCIES AND BODIES,2103023576,1000075570
05.11.2019,CHILDREN'S SERVICES,FINEFAIR LTD,"1,632.90",SEMI INDEPENDENT CARE LEAVERS,EXTERNAL AGENCIES AND BODIES,2103023589,1000075570
05.11.2019,CHILDREN'S SERVICES,FINEFAIR LTD,"3,289.20",SEMI INDEPENDENT CARE LEAVERS,EXTERNAL AGENCIES AND BODIES,2103023584,1000075570
05.11.2019,CHILDREN'S SERVICES,CREATING LIFESTYLES LTD,"2,680.00",SEMI INDEPENDENT CARE LEAVERS,EXTERNAL AGENCIES AND BODIES,2103023583,1000075830
05.11.2019,CHILDREN'S SERVICES,CREATING LIFESTYLES LTD,"3,000.00",SEMI INDEPENDENT CARE LEAVERS,EXTERNAL AGENCIES AND BODIES,2103023588,1000075830
05.11.2019,CHILDREN'S SERVICES,CREATING LIFESTYLES LTD,"3,180.00",SEMI INDEPENDENT CARE LEAVERS,EXTERNAL AGENCIES AND BODIES,2103023593,1000075830
05.11.2019,CHILDREN'S SERVICES,SILVER BIRCH CARE LTD,625,SEMI INDEPENDENT CARE LEAVERS,EXTERNAL AGENCIES AND BODIES,2103023586,1000076525
05.11.2019,CHILDREN'S SERVICES,IDEAL CARE SOLUTIONS LTD,"1,885.72",SEMI INDEPENDENT CARE LEAVERS,EXTERNAL AGENCIES AND BODIES,2103023592,1000080804
05.11.2019,CHILDREN'S SERVICES,THE MEDUSA PROJECT LTD,"7,928.40",SEMI INDEPENDENT LAC,EXTERNAL AGENCIES AND BODIES,2103023561,1000014392
05.11.2019,CHILDREN'S SERVICES,HOLMDENE HOUSING LTD,"2,080.00",SEMI INDEPENDENT LAC,EXTERNAL AGENCIES AND BODIES,2103023562,1000032598
05.11.2019,CHILDREN'S SERVICES,HOLMDENE HOUSING LTD,"2,080.00",SEMI INDEPENDENT LAC,EXTERNAL AGENCIES AND BODIES,2103023567,1000032598
05.11.2019,CHILDREN'S SERVICES,THE ARTEMIS TEAM LTD,"2,350.00",SEMI INDEPENDENT LAC,EXTERNAL AGENCIES AND BODIES,2103023558,1000057937
05.11.2019,CHILDREN'S SERVICES,THE ARTEMIS TEAM LTD,"2,350.00",SEMI INDEPENDENT LAC,EXTERNAL AGENCIES AND BODIES,2103023560,1000057937
05.11.2019,CHILDREN'S SERVICES,THE ARTEMIS TEAM LTD,"3,776.76",SEMI INDEPENDENT LAC,EXTERNAL AGENCIES AND BODIES,2103023566,1000057937
05.11.2019,CHILDREN'S SERVICES,TLK PROPERTY & INVESTMENTS LTD,887.5,SEMI INDEPENDENT LAC,EXTERNAL AGENCIES AND BODIES,2103023569,1000065661
05.11.2019,CHILDREN'S SERVICES,RELA SUPPORT SERVICES LTD,"4,172.42",SEMI INDEPENDENT LAC,EXTERNAL AGENCIES AND BODIES,2103023559,1000073128
05.11.2019,CHILDREN'S SERVICES,HEARTWOOD OUTREACH SERVICES LTD,"13,542.90",SEMI INDEPENDENT LAC,EXTERNAL AGENCIES AND BODIES,2103023564,1000075021
05.11.2019,CHILDREN'S SERVICES,CREATING LIFESTYLES LTD,"2,500.00",SEMI INDEPENDENT LAC,EXTERNAL AGENCIES AND BODIES,2103023563,1000075830
05.11.2019,CHILDREN'S SERVICES,CREATING LIFESTYLES LTD,"21,280.00",SEMI INDEPENDENT LAC,EXTERNAL AGENCIES AND BODIES,2103023568,1000075830
05.11.2019,CHILDREN'S SERVICES,RED R DESIGN,"1,400.00",SOUTHWARK CHOICES,MARKETING & PUBLICITY SERVICES,5902386339,1000035984
05.11.2019,CHILDREN'S SERVICES,ARC COMMUNITY TRUSTEES,650,SPECIAL GUARDIANSHIP,EXTERNAL AGENCIES AND BODIES,5902386327,1000046206
05.11.2019,CHILDREN'S SERVICES,HOLMDENE HOUSING LTD,"1,480.00",UASC CARE LEAVERS,EXTERNAL AGENCIES AND BODIES,2103023570,1000032598
05.11.2019,CHILDREN'S SERVICES,HOLMDENE HOUSING LTD,"1,480.00",UASC CARE LEAVERS,EXTERNAL AGENCIES AND BODIES,2103023573,1000032598
05.11.2019,CHILDREN'S SERVICES,HOLMDENE HOUSING LTD,"1,480.00",UASC CARE LEAVERS,EXTERNAL AGENCIES AND BODIES,2103023577,1000032598
05.11.2019,CHILDREN'S SERVICES,HOLMDENE HOUSING LTD,"1,480.00",UASC CARE LEAVERS,EXTERNAL AGENCIES AND BODIES,2103023580,1000032598
05.11.2019,CHILDREN'S SERVICES,HOLMDENE HOUSING LTD,"1,480.00",UASC CARE LEAVERS,EXTERNAL AGENCIES AND BODIES,2103023582,1000032598
05.11.2019,CHILDREN'S SERVICES,HOLMDENE HOUSING LTD,"1,480.00",UASC CARE LEAVERS,EXTERNAL AGENCIES AND BODIES,2103023585,1000032598
05.11.2019,CHILDREN'S SERVICES,HOLMDENE HOUSING LTD,"1,480.00",UASC CARE LEAVERS,EXTERNAL AGENCIES AND BODIES,2103023591,1000032598
05.11.2019,CHILDREN'S SERVICES,HOLMDENE HOUSING LTD,"1,480.00",UASC CARE LEAVERS,EXTERNAL AGENCIES AND BODIES,2103023594,1000032598
05.11.2019,CHILDREN'S SERVICES,CREATING LIFESTYLES LTD,"1,800.00",UASC CARE LEAVERS,EXTERNAL AGENCIES AND BODIES,2103023587,1000075830
05.11.2019,CHILDREN'S SERVICES,REDACTED PERSONAL DATA,300,UASC UNIVERSITY SUPPORT,CLIENT TRANSPORT,REDACTED,REDACTED
05.11.2019,CHILDREN'S SERVICES,REDACTED PERSONAL DATA,800,UASC UNIVERSITY SUPPORT,OTHER PAYMENTS FOR CLIENTS,REDACTED,REDACTED
05.11.2019,COMMISSIONING & CENTRAL,WEB-LABS LTD,"2,000.00",C&AS SOFTWARE APPS,SOFTWARE,5902386182,1000039819
05.11.2019,COMMISSIONING & CENTRAL,QUICKSILVA LTD,"1,920.00",C&AS SOFTWARE APPS,SOFTWARE,5902386246,1000081467
05.11.2019,COMMISSIONING & CENTRAL,VACHERIN LTD,"1,223.00",COMMISSIONING TEAM,EXTERNAL AGENCIES AND BODIES,5902386348,1000079946
05.11.2019,COMMUNITIES,WILLOW ESTATE AGENTS (LONDON) LTD,"2,310.00",NO RECOURSE TO PUBLIC FUNDS,ACCOMMODATION CHARGES,5902386245,1000060607
05.11.2019,COMMUNITIES,TAAKSVALE HOUSING LTD,"40,292.50",NO RECOURSE TO PUBLIC FUNDS,ACCOMMODATION CHARGES,5902386224,1000073665
05.11.2019,COMMUNITIES,METRO CENTRE LTD,"1,400.00",WEST CENTRAL,GRANTS,5902386300,1000073797
05.11.2019,CUSTOMER EXPERIENCE HGF,VENTURE HOUSING (LONDON) LTD,720,NIGHTLY TA (NSC),EXTERNAL AGENCIES AND BODIES,5902386201,1000056686
05.11.2019,CUSTOMER EXPERIENCE HGF,VENTURE HOUSING (LONDON) LTD,"2,407.50",NIGHTLY TA (NSC),EXTERNAL AGENCIES AND BODIES,5902386206,1000056686
05.11.2019,CUSTOMER EXPERIENCE HGF,VENTURE HOUSING (LONDON) LTD,"5,778.00",NIGHTLY TA (NSC),EXTERNAL AGENCIES AND BODIES,5902386195,1000056686
05.11.2019,CUSTOMER EXPERIENCE HGF,VENTURE HOUSING (LONDON) LTD,"111,524.50",NIGHTLY TA (NSC),EXTERNAL AGENCIES AND BODIES,5902386312,1000056686
05.11.2019,CUSTOMER EXPERIENCE HGF,TAAKSVALE HOUSING LTD,"-5,156.00",NIGHTLY TA (NSC),EXTERNAL AGENCIES AND BODIES,5902384644,1000073665
05.11.2019,CUSTOMER EXPERIENCE HGF,NATIONWIDE ACCOMMODATION,"2,698.00",NIGHTLY TA (NSC),EXTERNAL AGENCIES AND BODIES,5902386320,1000076112
05.11.2019,CUSTOMER EXPERIENCE HGF,POSTURITE (UK) LTD,760.45,NIGHTLY TA (NSC),FURNITURE PURCHASE & REPAIR,5902386241,11015468
05.11.2019,ENVIRONMENT AND LEISURE,TURNKEY INSTRUMENTALS LTD,350,CAPITAL PS (LEISURE),"PLANT, MACHINERY & EQUIPMENT ACQUISITION",5902386233,1000063343
05.11.2019,ENVIRONMENT AND LEISURE,TURNKEY INSTRUMENTALS LTD,"1,390.00",CAPITAL PS (LEISURE),"PLANT, MACHINERY & EQUIPMENT ACQUISITION",5902386233,1000063343
05.11.2019,ENVIRONMENT AND LEISURE,TURNKEY INSTRUMENTALS LTD,"3,850.00",CAPITAL PS (LEISURE),"PLANT, MACHINERY & EQUIPMENT ACQUISITION",5902386233,1000063343
05.11.2019,ENVIRONMENT DIRECTORATE,M & D AUTOS LTD,358.66,FLEET INSURANCE WORKS,TRANSPORT INSURANCE COSTS,5902386222,1000083400
05.11.2019,ENVIRONMENT DIRECTORATE,CONTEGO SAFETY SOLUTIONS LTD,"1,043.50",MANAGEMENT TEAM,MATERIALS,5902386284,1000077673
05.11.2019,ENVIRONMENT DIRECTORATE,GRAFTON MERCHANTING GB LTD,266,PARKS TECH UNIT (PREMISES),MATERIALS,5902386208,11296147
05.11.2019,ENVIRONMENT DIRECTORATE,CROMWELL POLYTHENE LTD,"1,819.60",STREET CLEANING-GENERAL,MATERIALS,5902386281,1000021159
05.11.2019,ENVIRONMENT DIRECTORATE,ELLIOT ENVIRONMENTAL LTD,400,STREET CLEANING-GENERAL,OTHER CONTRACTORS,5902386297,1000047392
05.11.2019,ENVIRONMENT DIRECTORATE,TYCO INTEGRATED FIRE & SECURITY,"13,429.83",TOWN CENTRE CCTV,EQUIPMENT PURCHASE & REPAIR,5902386302,1000077948
05.11.2019,ENVIRONMENT DIRECTORATE,TYCO INTEGRATED FIRE & SECURITY,623.88,TOWN CENTRE CCTV,OTHER CONTRACTORS,5902386303,1000077948
05.11.2019,ENVIRONMENT DIRECTORATE,CITY OF LONDON CORPORATION,"2,058.41",WASTE DISPOSAL,OTHER CONTRACTORS,5902386189,1000052061
05.11.2019,EXCHEQUER SERVICES,NORTHGATE PUBLIC SERVICES (UK) LTD,"1,265.25",ADMINISTRATIVE SUPPORT,POSTAGES,5902386286,1000037405
05.11.2019,EXCHEQUER SERVICES,DSI BILLING SERVICES LTD,"2,100.68",ADMINISTRATIVE SUPPORT,POSTAGES,5902386194,1000058640
05.11.2019,HOUSING GENERAL FUND,AMITY ESTATES LTD,"2,100.00",CAPITAL PS (HOUSING GF),CONSTRUCTION SITE COSTS,5902386187,1000050384
05.11.2019,HOUSING HRA,PARS LTD,"1,041.00",CAPITAL PS (HRA),CONST'N MAIN CONTRACT - NON CERTIFICATED,2103024137,3000001275
05.11.2019,HOUSING HRA,FAITHFUL & GOULD,"79,799.13",CAPITAL PS (HRA),CONSTRUCTION FEES,5902386198,1000061390
05.11.2019,HOUSING HRA,ENGIE REGENERATION (APOLLO) LTD,"25,360.07",CAPITAL PS (HRA),CONSTRUCTION MAIN CONTRACT -CERTIFICATED,2103024136,4000449
05.11.2019,HOUSING HRA,ENGIE REGENERATION (APOLLO) LTD,"72,263.99",CAPITAL PS (HRA),CONSTRUCTION MAIN CONTRACT -CERTIFICATED,2103024134,4000449
05.11.2019,HOUSING HRA,ENGIE REGENERATION (APOLLO) LTD,"131,481.68",CAPITAL PS (HRA),CONSTRUCTION MAIN CONTRACT -CERTIFICATED,2103024135,4000449
05.11.2019,HOUSING HRA,STANDAGE & CO LTD,"65,817.08",CAPITAL PS (HRA),CONSTRUCTION MAIN CONTRACT -CERTIFICATED,2103024143,4002817
05.11.2019,HOUSING HRA,STANDAGE & CO LTD,"445,871.02",CAPITAL PS (HRA),CONSTRUCTION MAIN CONTRACT -CERTIFICATED,2103024142,4002817
05.11.2019,HOUSING HRA,A & E ELKINS LTD,"64,101.99",CAPITAL PS (HRA),CONSTRUCTION MAIN CONTRACT -CERTIFICATED,2103024133,4012501
05.11.2019,HOUSING HRA,PURELAKE NEW HOMES LTD,"292,915.21",CAPITAL PS (REGEN),CONSTRUCTION FEES,2103024138,3000002110
05.11.2019,LEISURE DIRECTORATE,KENT COUNTY COUNCIL - LASER,551.68,BURGESS AREA TEAM,ELECTRICITY,5902386318,1000012926
05.11.2019,LEISURE DIRECTORATE,KENT COUNTY COUNCIL - LASER,715.05,BURGESS AREA TEAM,ELECTRICITY,5902386355,1000012926
05.11.2019,LEISURE DIRECTORATE,KENT COUNTY COUNCIL - LASER,"1,241.63",BURGESS AREA TEAM,ELECTRICITY,5902386306,1000012926
05.11.2019,LEISURE DIRECTORATE,NPOWER LTD,463.59,BURGESS AREA TEAM,ELECTRICITY,5902386375,1000078994
05.11.2019,LEISURE DIRECTORATE,NPOWER LTD,"1,281.83",BURGESS AREA TEAM,ELECTRICITY,5902386375,1000078994
05.11.2019,LEISURE DIRECTORATE,KENT COUNTY COUNCIL - LASER,452.6,BURGESS AREA TEAM,GAS,5902386356,1000012926
05.11.2019,LEISURE DIRECTORATE,BE ACTIVE SOCIAL ENTERPRISE CIC,"7,500.00",BURGESS AREA TEAM,PROFESSIONAL FEES,5902386354,1000066673
05.11.2019,LEISURE DIRECTORATE,JAIMIN PROPERTY MANAGEMENT LLP,450,BURGESS SPORTS CENTRE,OTHER R&M,5902386351,1000082767
05.11.2019,LEISURE DIRECTORATE,NPOWER LTD,649.12,CEMETERIES,ELECTRICITY,5902386321,1000078994
05.11.2019,LEISURE DIRECTORATE,R GRAY & SON,"2,620.70",CREMATORIUM,OTHER R&M,5902386335,11096273
05.11.2019,LEISURE DIRECTORATE,KENT COUNTY COUNCIL - LASER,332.26,DULWICH AREA TEAM,ELECTRICITY,5902386314,1000012926
05.11.2019,LEISURE DIRECTORATE,KENT COUNTY COUNCIL - LASER,334.98,DULWICH AREA TEAM,ELECTRICITY,5902386349,1000012926
05.11.2019,LEISURE DIRECTORATE,KENT COUNTY COUNCIL - LASER,"1,358.83",DULWICH AREA TEAM,ELECTRICITY,5902386322,1000012926
05.11.2019,LEISURE DIRECTORATE,NPOWER LTD,405.04,DULWICH AREA TEAM,ELECTRICITY,5902386377,1000078994
05.11.2019,LEISURE DIRECTORATE,NPOWER LTD,409.7,DULWICH AREA TEAM,ELECTRICITY,5902386368,1000078994
05.11.2019,LEISURE DIRECTORATE,NPOWER LTD,470.16,DULWICH AREA TEAM,ELECTRICITY,5902386360,1000078994
05.11.2019,LEISURE DIRECTORATE,NPOWER LTD,474.26,DULWICH AREA TEAM,ELECTRICITY,5902386366,1000078994
05.11.2019,LEISURE DIRECTORATE,NPOWER LTD,548,DULWICH AREA TEAM,ELECTRICITY,5902386362,1000078994
05.11.2019,LEISURE DIRECTORATE,NPOWER LTD,718.41,DULWICH AREA TEAM,ELECTRICITY,5902386377,1000078994
05.11.2019,LEISURE DIRECTORATE,QUADRON SERVICES LIMITED,"-1,672.32",DULWICH AREA TEAM,GROUNDS MAINTENANCE,5902386363,1000066528
05.11.2019,LEISURE DIRECTORATE,QUADRON SERVICES LIMITED,"1,672.32",DULWICH AREA TEAM,GROUNDS MAINTENANCE,5902386358,1000066528
05.11.2019,LEISURE DIRECTORATE,QUADRON SERVICES LIMITED,"1,672.32",DULWICH AREA TEAM,GROUNDS MAINTENANCE,5902386359,1000066528
05.11.2019,LEISURE DIRECTORATE,NPOWER LTD,752.94,NUNHEAD LIBRARY,ELECTRICITY,5902386186,1000078994
05.11.2019,LEISURE DIRECTORATE,KENT COUNTY COUNCIL - LASER,"2,026.31",SOUTHWARK AREA TEAM,ELECTRICITY,5902386330,1000012926
05.11.2019,LEISURE DIRECTORATE,NPOWER LTD,587.28,SOUTHWARK AREA TEAM,ELECTRICITY,5902386376,1000078994
05.11.2019,LEISURE DIRECTORATE,NPOWER LTD,949.01,SOUTHWARK AREA TEAM,ELECTRICITY,5902386376,1000078994
05.11.2019,LEISURE DIRECTORATE,ASKEWS & HOLTS LIBRARY SERVICES LTD,"5,844.27",STOCK SERVICES,BOOKS & PUBLICATIONS,5902386255,1494168
05.11.2019,MODERNISATION HGF,SITEMORSE LTD,"2,722.00",DIGITAL DELIVERY,SOFTWARE,5902386236,1000058898
05.11.2019,PLANNING AND TRANSPORT,SHARPE PRITCHARD LLP,"1,497.70",PECKHAM TOWNSCAPE HERITAGE INITIATIVE,PROFESSIONAL FEES,5902386340,1790085
05.11.2019,REGENERATION,KENT COUNTY COUNCIL - LASER,"1,077.13",TOWER WORKSHOPS,ELECTRICITY,5902386346,1000012926
05.11.2019,RESIDENT SERVICES,EDF ENERGY PLC,258.73,OPERATIONS/OFFICES ACCOMMODATION,ELECTRICITY,5902386369,1008746
05.11.2019,RESIDENT SERVICES,EDF ENERGY PLC,"1,586.20",OPERATIONS/OFFICES ACCOMMODATION,ELECTRICITY,5902386364,1008746
05.11.2019,RESIDENT SERVICES,INTEGRITY PRINT LTD,"1,139.00",PARKING CONTROL,OTHER CONTRACTORS,5902386324,1000083286
06.11.2019,ADULT SOCIAL CARE,THE RIVERSIDE GROUP LTD,"3,910.27",APPOINTEESHIPS,OTHER PAYMENTS FOR CLIENTS,5902386396,1000069625
06.11.2019,ADULT SOCIAL CARE,REDACTED PERSONAL DATA,396,FAMILY LINK,PAYMENTS TO CARERS,REDACTED,REDACTED
06.11.2019,ADULT SOCIAL CARE,REDACTED PERSONAL DATA,406,FAMILY LINK,PAYMENTS TO CARERS,REDACTED,REDACTED
06.11.2019,ADULT SOCIAL CARE,REDACTED PERSONAL DATA,428,FAMILY LINK,PAYMENTS TO CARERS,REDACTED,REDACTED
06.11.2019,ADULT SOCIAL CARE,REDACTED PERSONAL DATA,"2,375.52",MEM LTS 65+,PAYMENTS TO CLIENTS (DIRECT PAYMENTS),REDACTED,REDACTED
06.11.2019,ADULT SOCIAL CARE,ROMEDICAL LTD,376.26,SAFEGUARDING & DOLS,OTHER CONTRACTORS,5902386578,1000076318
06.11.2019,ADULT SOCIAL CARE,ROMEDICAL LTD,564.61,SAFEGUARDING & DOLS,OTHER CONTRACTORS,5902386572,1000076318
06.11.2019,ADULT SOCIAL CARE,ROMEDICAL LTD,921.61,SAFEGUARDING & DOLS,OTHER CONTRACTORS,5902386574,1000076318
06.11.2019,ASSET MANAGEMENT,GAS & ENVIRONMENTAL SERVICES LTD,538,HEALTH AND SAFETY,PROFESSIONAL FEES,5902386498,1000066947
06.11.2019,ASSET MANAGEMENT,CAMERON CONSULTING (UK) LTD,"4,950.00",INVESTMENT MANAGER,PROFESSIONAL FEES,5902386562,1000064510
06.11.2019,CENTRAL FUNCTIONS,STANBURY BUILDING SERVICES LTD,795,COMMERCIAL PROPERTIES,BUILDING R&M,5902386555,1000078207
06.11.2019,CENTRAL FUNCTIONS,PURCELL ARCHITECTURE LTD,"5,000.00",COMMERCIAL PROPERTIES,PROFESSIONAL FEES,5902386511,1000082955
06.11.2019,CENTRAL FUNCTIONS,RICHARD CLAYTON QC,281.25,OPERATIONAL TEAM,LEGAL FEES & COURT COSTS,2103023129,1000069039
06.11.2019,CENTRAL FUNCTIONS,RICHARD CLAYTON QC,600,OPERATIONAL TEAM,LEGAL FEES & COURT COSTS,2103023127,1000069039
06.11.2019,CENTRAL FUNCTIONS,RICHARD CLAYTON QC,843.75,OPERATIONAL TEAM,LEGAL FEES & COURT COSTS,2103023130,1000069039
06.11.2019,CENTRAL FUNCTIONS,RICHARD CLAYTON QC,"4,000.00",OPERATIONAL TEAM,LEGAL FEES & COURT COSTS,2103023128,1000069039
06.11.2019,CENTRAL FUNCTIONS,RICHARD CLAYTON QC,"4,462.50",OPERATIONAL TEAM,LEGAL FEES & COURT COSTS,2103023126,1000069039
06.11.2019,CENTRAL FUNCTIONS,RICHARD CLAYTON QC,"7,312.50",OPERATIONAL TEAM,LEGAL FEES & COURT COSTS,2103023131,1000069039
06.11.2019,CENTRAL FUNCTIONS,RICHARD CLAYTON QC,"15,200.00",OPERATIONAL TEAM,LEGAL FEES & COURT COSTS,2103023132,1000069039
06.11.2019,CHIEF EXECUTIVE,CONWAY AECOM LTD,"13,449.94",CAPITAL PS (REGEN),CONSTRUCTION,2103025123,3000001595
06.11.2019,CHIEF EXECUTIVE,CONWAY AECOM LTD,"25,942.58",CAPITAL PS (REGEN),CONSTRUCTION,2103025118,3000001595
06.11.2019,CHIEF EXECUTIVE,CONTAINER TRAK LTD,"2,130.00",CAPITAL PS (REGEN),CONSTRUCTION SUB CONTRACT -CERTIFICATED,5902386386,1000058576
06.11.2019,CHILDREN AND ADULT,ART INSTALLATION SERVICES LTD,270,CASTLEMEAD,PROFESSIONAL FEES,CHEQUE PAYMENT,CHEQUE PAYMENT
06.11.2019,CHILDREN'S,FAITHFUL & GOULD,"7,388.00",CAPITAL PS (EDUCATION),CONSTRUCTION FEES,5902386440,1000061390
06.11.2019,CHILDREN'S SERVICES,REDACTED PERSONAL DATA,465.52,ADOPTION PLACEMENTS & INTER AGENCY,PAYMENTS TO CARERS,REDACTED,REDACTED
06.11.2019,CHILDREN'S SERVICES,REDACTED PERSONAL DATA,304.64,ADOPTION PLACEMENTS & INTER AGENCY,PAYMENTS TO CARERS,REDACTED,REDACTED
06.11.2019,CHILDREN'S SERVICES,REDACTED PERSONAL DATA,559.06,ADOPTION PLACEMENTS & INTER AGENCY,PAYMENTS TO CARERS,REDACTED,REDACTED
06.11.2019,CHILDREN'S SERVICES,REDACTED PERSONAL DATA,695.04,ADOPTION PLACEMENTS & INTER AGENCY,PAYMENTS TO CARERS,REDACTED,REDACTED
06.11.2019,CHILDREN'S SERVICES,REDACTED PERSONAL DATA,375.54,ADOPTION PLACEMENTS & INTER AGENCY,PAYMENTS TO CARERS,REDACTED,REDACTED
06.11.2019,CHILDREN'S SERVICES,REDACTED PERSONAL DATA,375.54,ADOPTION PLACEMENTS & INTER AGENCY,PAYMENTS TO CARERS,REDACTED,REDACTED
06.11.2019,CHILDREN'S SERVICES,REDACTED PERSONAL DATA,500,ADOPTION PLACEMENTS & INTER AGENCY,PAYMENTS TO CARERS,REDACTED,REDACTED
06.11.2019,CHILDREN'S SERVICES,REDACTED PERSONAL DATA,404.46,ADOPTION PLACEMENTS & INTER AGENCY,PAYMENTS TO CARERS,REDACTED,REDACTED
06.11.2019,CHILDREN'S SERVICES,REDACTED PERSONAL DATA,400.84,ADOPTION PLACEMENTS & INTER AGENCY,PAYMENTS TO CARERS,REDACTED,REDACTED
06.11.2019,CHILDREN'S SERVICES,REDACTED PERSONAL DATA,635.34,ADOPTION PLACEMENTS & INTER AGENCY,PAYMENTS TO CARERS,REDACTED,REDACTED
06.11.2019,CHILDREN'S SERVICES,REDACTED PERSONAL DATA,375.54,ADOPTION PLACEMENTS & INTER AGENCY,PAYMENTS TO CARERS,REDACTED,REDACTED
06.11.2019,CHILDREN'S SERVICES,REDACTED PERSONAL DATA,653.06,ADOPTION PLACEMENTS & INTER AGENCY,PAYMENTS TO CARERS,REDACTED,REDACTED
06.11.2019,CHILDREN'S SERVICES,REDACTED PERSONAL DATA,465.54,ADOPTION PLACEMENTS & INTER AGENCY,PAYMENTS TO CARERS,REDACTED,REDACTED
06.11.2019,CHILDREN'S SERVICES,REDACTED PERSONAL DATA,465.54,ADOPTION PLACEMENTS & INTER AGENCY,PAYMENTS TO CARERS,REDACTED,REDACTED
06.11.2019,CHILDREN'S SERVICES,REDACTED PERSONAL DATA,400.84,ADOPTION PLACEMENTS & INTER AGENCY,PAYMENTS TO CARERS,REDACTED,REDACTED
06.11.2019,CHILDREN'S SERVICES,REDACTED PERSONAL DATA,400.84,ADOPTION PLACEMENTS & INTER AGENCY,PAYMENTS TO CARERS,REDACTED,REDACTED
06.11.2019,CHILDREN'S SERVICES,REDACTED PERSONAL DATA,255.22,ADOPTION PLACEMENTS & INTER AGENCY,PAYMENTS TO CARERS,REDACTED,REDACTED
06.11.2019,CHILDREN'S SERVICES,REDACTED PERSONAL DATA,279.26,ADOPTION PLACEMENTS & INTER AGENCY,PAYMENTS TO CARERS,REDACTED,REDACTED
06.11.2019,CHILDREN'S SERVICES,REDACTED PERSONAL DATA,359.44,ADOPTION PLACEMENTS & INTER AGENCY,PAYMENTS TO CARERS,REDACTED,REDACTED
06.11.2019,CHILDREN'S SERVICES,REDACTED PERSONAL DATA,375.54,ADOPTION PLACEMENTS & INTER AGENCY,PAYMENTS TO CARERS,REDACTED,REDACTED
06.11.2019,CHILDREN'S SERVICES,REDACTED PERSONAL DATA,451.8,ADOPTION PLACEMENTS & INTER AGENCY,PAYMENTS TO CARERS,REDACTED,REDACTED
06.11.2019,CHILDREN'S SERVICES,REDACTED PERSONAL DATA,359.44,ADOPTION PLACEMENTS & INTER AGENCY,PAYMENTS TO CARERS,REDACTED,REDACTED
06.11.2019,CHILDREN'S SERVICES,REDACTED PERSONAL DATA,262.44,ADOPTION PLACEMENTS & INTER AGENCY,PAYMENTS TO CARERS,REDACTED,REDACTED
06.11.2019,CHILDREN'S SERVICES,REDACTED PERSONAL DATA,465.48,ADOPTION PLACEMENTS & INTER AGENCY,PAYMENTS TO CARERS,REDACTED,REDACTED
06.11.2019,CHILDREN'S SERVICES,REDACTED PERSONAL DATA,375.54,ADOPTION PLACEMENTS & INTER AGENCY,PAYMENTS TO CARERS,REDACTED,REDACTED
06.11.2019,CHILDREN'S SERVICES,REDACTED PERSONAL DATA,465.54,ADOPTION PLACEMENTS & INTER AGENCY,PAYMENTS TO CARERS,REDACTED,REDACTED
06.11.2019,CHILDREN'S SERVICES,REDACTED PERSONAL DATA,465.54,ADOPTION PLACEMENTS & INTER AGENCY,PAYMENTS TO CARERS,REDACTED,REDACTED
06.11.2019,CHILDREN'S SERVICES,REDACTED PERSONAL DATA,255.22,ADOPTION PLACEMENTS & INTER AGENCY,PAYMENTS TO CARERS,REDACTED,REDACTED
06.11.2019,CHILDREN'S SERVICES,REDACTED PERSONAL DATA,705.24,ADOPTION PLACEMENTS & INTER AGENCY,PAYMENTS TO CARERS,REDACTED,REDACTED
06.11.2019,CHILDREN'S SERVICES,REDACTED PERSONAL DATA,777.36,ADOPTION PLACEMENTS & INTER AGENCY,PAYMENTS TO CARERS,REDACTED,REDACTED
06.11.2019,CHILDREN'S SERVICES,REDACTED PERSONAL DATA,512.02,ADOPTION PLACEMENTS & INTER AGENCY,PAYMENTS TO CARERS,REDACTED,REDACTED
06.11.2019,CHILDREN'S SERVICES,REDACTED PERSONAL DATA,717.14,ADOPTION PLACEMENTS & INTER AGENCY,PAYMENTS TO CARERS,REDACTED,REDACTED
06.11.2019,CHILDREN'S SERVICES,REDACTED PERSONAL DATA,552.16,ADOPTION PLACEMENTS & INTER AGENCY,PAYMENTS TO CARERS,REDACTED,REDACTED
06.11.2019,CHILDREN'S SERVICES,REDACTED PERSONAL DATA,251.12,ADOPTION PLACEMENTS & INTER AGENCY,PAYMENTS TO CARERS,REDACTED,REDACTED
06.11.2019,CHILDREN'S SERVICES,REDACTED PERSONAL DATA,375.54,ADOPTION PLACEMENTS & INTER AGENCY,PAYMENTS TO CARERS,REDACTED,REDACTED
06.11.2019,CHILDREN'S SERVICES,REDACTED PERSONAL DATA,375.54,ADOPTION PLACEMENTS & INTER AGENCY,PAYMENTS TO CARERS,REDACTED,REDACTED
06.11.2019,CHILDREN'S SERVICES,REDACTED PERSONAL DATA,457.14,ADOPTION PLACEMENTS & INTER AGENCY,PAYMENTS TO CARERS,REDACTED,REDACTED
06.11.2019,CHILDREN'S SERVICES,REDACTED PERSONAL DATA,502,ADOPTION PLACEMENTS & INTER AGENCY,PAYMENTS TO CARERS,REDACTED,REDACTED
06.11.2019,CHILDREN'S SERVICES,REDACTED PERSONAL DATA,375.54,ADOPTION PLACEMENTS & INTER AGENCY,PAYMENTS TO CARERS,REDACTED,REDACTED
06.11.2019,CHILDREN'S SERVICES,REDACTED PERSONAL DATA,640.9,ADOPTION PLACEMENTS & INTER AGENCY,PAYMENTS TO CARERS,REDACTED,REDACTED
06.11.2019,CHILDREN'S SERVICES,REDACTED PERSONAL DATA,382.3,ADOPTION PLACEMENTS & INTER AGENCY,PAYMENTS TO CARERS,REDACTED,REDACTED
06.11.2019,CHILDREN'S SERVICES,REDACTED PERSONAL DATA,382.3,ADOPTION PLACEMENTS & INTER AGENCY,PAYMENTS TO CARERS,REDACTED,REDACTED
06.11.2019,CHILDREN'S SERVICES,REDACTED PERSONAL DATA,375.54,ADOPTION PLACEMENTS & INTER AGENCY,PAYMENTS TO CARERS,REDACTED,REDACTED
06.11.2019,CHILDREN'S SERVICES,REDACTED PERSONAL DATA,623.94,ADOPTION PLACEMENTS & INTER AGENCY,PAYMENTS TO CARERS,REDACTED,REDACTED
06.11.2019,CHILDREN'S SERVICES,REDACTED PERSONAL DATA,278.54,ADOPTION PLACEMENTS & INTER AGENCY,PAYMENTS TO CARERS,REDACTED,REDACTED
06.11.2019,CHILDREN'S SERVICES,REDACTED PERSONAL DATA,485.22,ADOPTION PLACEMENTS & INTER AGENCY,PAYMENTS TO CARERS,REDACTED,REDACTED
06.11.2019,CHILDREN'S SERVICES,REDACTED PERSONAL DATA,368.52,ADOPTION PLACEMENTS & INTER AGENCY,PAYMENTS TO CARERS,REDACTED,REDACTED
06.11.2019,CHILDREN'S SERVICES,REDACTED PERSONAL DATA,252.9,ADOPTION PLACEMENTS & INTER AGENCY,PAYMENTS TO CARERS,REDACTED,REDACTED
06.11.2019,CHILDREN'S SERVICES,REDACTED PERSONAL DATA,253.56,ADOPTION PLACEMENTS & INTER AGENCY,PAYMENTS TO CARERS,REDACTED,REDACTED
06.11.2019,CHILDREN'S SERVICES,REDACTED PERSONAL DATA,382.3,ADOPTION PLACEMENTS & INTER AGENCY,PAYMENTS TO CARERS,REDACTED,REDACTED
06.11.2019,CHILDREN'S SERVICES,REDACTED PERSONAL DATA,382.3,ADOPTION PLACEMENTS & INTER AGENCY,PAYMENTS TO CARERS,REDACTED,REDACTED
06.11.2019,CHILDREN'S SERVICES,REDACTED PERSONAL DATA,282.76,ADOPTION PLACEMENTS & INTER AGENCY,PAYMENTS TO CARERS,REDACTED,REDACTED
06.11.2019,CHILDREN'S SERVICES,REDACTED PERSONAL DATA,484.92,ADOPTION PLACEMENTS & INTER AGENCY,PAYMENTS TO CARERS,REDACTED,REDACTED
06.11.2019,CHILDREN'S SERVICES,REDACTED PERSONAL DATA,530,ADOPTION PLACEMENTS & INTER AGENCY,PAYMENTS TO CARERS,REDACTED,REDACTED
06.11.2019,CHILDREN'S SERVICES,REDACTED PERSONAL DATA,908,ADOPTION PLACEMENTS & INTER AGENCY,PAYMENTS TO CARERS,REDACTED,REDACTED
06.11.2019,CHILDREN'S SERVICES,REDACTED PERSONAL DATA,738.32,ADOPTION PLACEMENTS & INTER AGENCY,PAYMENTS TO CARERS,REDACTED,REDACTED
06.11.2019,CHILDREN'S SERVICES,REDACTED PERSONAL DATA,695.12,ADOPTION PLACEMENTS & INTER AGENCY,PAYMENTS TO CARERS,REDACTED,REDACTED
06.11.2019,CHILDREN'S SERVICES,REDACTED PERSONAL DATA,293.98,ADOPTION PLACEMENTS & INTER AGENCY,PAYMENTS TO CARERS,REDACTED,REDACTED
06.11.2019,CHILDREN'S SERVICES,REDACTED PERSONAL DATA,251.94,ADOPTION PLACEMENTS & INTER AGENCY,PAYMENTS TO CARERS,REDACTED,REDACTED
06.11.2019,CHILDREN'S SERVICES,REDACTED PERSONAL DATA,652.9,ADOPTION PLACEMENTS & INTER AGENCY,PAYMENTS TO CARERS,REDACTED,REDACTED
06.11.2019,CHILDREN'S SERVICES,REDACTED PERSONAL DATA,652.9,ADOPTION PLACEMENTS & INTER AGENCY,PAYMENTS TO CARERS,REDACTED,REDACTED
06.11.2019,CHILDREN'S SERVICES,REDACTED PERSONAL DATA,854.28,ADOPTION PLACEMENTS & INTER AGENCY,PAYMENTS TO CARERS,REDACTED,REDACTED
06.11.2019,CHILDREN'S SERVICES,REDACTED PERSONAL DATA,712.3,ADOPTION PLACEMENTS & INTER AGENCY,PAYMENTS TO CARERS,REDACTED,REDACTED
06.11.2019,CHILDREN'S SERVICES,REDACTED PERSONAL DATA,767.68,ADOPTION PLACEMENTS & INTER AGENCY,PAYMENTS TO CARERS,REDACTED,REDACTED
06.11.2019,CHILDREN'S SERVICES,REDACTED PERSONAL DATA,400.18,ADOPTION PLACEMENTS & INTER AGENCY,PAYMENTS TO CARERS,REDACTED,REDACTED
06.11.2019,CHILDREN'S SERVICES,REDACTED PERSONAL DATA,682.3,ADOPTION PLACEMENTS & INTER AGENCY,PAYMENTS TO CARERS,REDACTED,REDACTED
06.11.2019,CHILDREN'S SERVICES,REDACTED PERSONAL DATA,682.3,ADOPTION PLACEMENTS & INTER AGENCY,PAYMENTS TO CARERS,REDACTED,REDACTED
06.11.2019,CHILDREN'S SERVICES,REDACTED PERSONAL DATA,588.42,ADOPTION PLACEMENTS & INTER AGENCY,PAYMENTS TO CARERS,REDACTED,REDACTED
06.11.2019,CHILDREN'S SERVICES,REDACTED PERSONAL DATA,"1,053.20",ADOPTION PLACEMENTS & INTER AGENCY,PAYMENTS TO CARERS,REDACTED,REDACTED
06.11.2019,CHILDREN'S SERVICES,REDACTED PERSONAL DATA,386,ADOPTION PLACEMENTS & INTER AGENCY,PAYMENTS TO CARERS,REDACTED,REDACTED
06.11.2019,CHILDREN'S SERVICES,REDACTED PERSONAL DATA,281.95,CARE LEAVERS SERVICES 16+,OTHER PAYMENTS FOR CLIENTS,REDACTED,REDACTED
06.11.2019,CHILDREN'S SERVICES,CONTACT PROFESSIONALS,380,CARE SERVICES 0-15,OTHER PAYMENTS FOR CLIENTS,5902386530,1000057263
06.11.2019,CHILDREN'S SERVICES,REDACTED PERSONAL DATA,"1,000.00",CARE SERVICES 0-15,OTHER PAYMENTS FOR CLIENTS,REDACTED,REDACTED
06.11.2019,CHILDREN'S SERVICES,REDACTED PERSONAL DATA,350,CARE SERVICES 0-15,OTHER PAYMENTS FOR CLIENTS,REDACTED,REDACTED
06.11.2019,CHILDREN'S SERVICES,KALA PATEL,320,CARE SERVICES 0-15,PROFESSIONAL FEES,5902386523,1000082882
06.11.2019,CHILDREN'S SERVICES,BRIGHT HORIZONS FAMILY SOLUTIONS,"1,574.23",CASEWORK SOUTHWARK 0-8,OTHER LOCAL AUTHORITIES,2103025105,1000082438
06.11.2019,CHILDREN'S SERVICES,BRIGHT HORIZONS FAMILY SOLUTIONS,"2,916.96",CASEWORK SOUTHWARK 0-8,OTHER LOCAL AUTHORITIES,2103025108,1000082438
06.11.2019,CHILDREN'S SERVICES,BRIGHT HORIZONS FAMILY SOLUTIONS,"2,916.96",CASEWORK SOUTHWARK 0-8,OTHER LOCAL AUTHORITIES,2103025109,1000082438
06.11.2019,CHILDREN'S SERVICES,BRIGHT HORIZONS FAMILY SOLUTIONS,"3,426.28",CASEWORK SOUTHWARK 0-8,OTHER LOCAL AUTHORITIES,2103025107,1000082438
06.11.2019,CHILDREN'S SERVICES,BRIGHT HORIZONS FAMILY SOLUTIONS,"4,000.00",CASEWORK SOUTHWARK 0-8,OTHER LOCAL AUTHORITIES,2103025106,1000082438
06.11.2019,CHILDREN'S SERVICES,UNIVERSITY ENGINEERING ACADEMY,"1,326.53",CASEWORK SOUTHWARK 0-8,STATEMENTED FEES,2103025093,1000074104
06.11.2019,CHILDREN'S SERVICES,UNIVERSITY ENGINEERING ACADEMY,"2,653.06",CASEWORK SOUTHWARK 0-8,STATEMENTED FEES,2103025096,1000074104
06.11.2019,CHILDREN'S SERVICES,UNIVERSITY ENGINEERING ACADEMY,"2,653.06",CASEWORK SOUTHWARK 0-8,STATEMENTED FEES,2103025103,1000074104
06.11.2019,CHILDREN'S SERVICES,UNIVERSITY ENGINEERING ACADEMY,"3,979.59",CASEWORK SOUTHWARK 0-8,STATEMENTED FEES,2103025104,1000074104
06.11.2019,CHILDREN'S SERVICES,UNIVERSITY ENGINEERING ACADEMY,"4,216.71",CASEWORK SOUTHWARK 0-8,STATEMENTED FEES,2103025095,1000074104
06.11.2019,CHILDREN'S SERVICES,UNIVERSITY ENGINEERING ACADEMY,"4,216.71",CASEWORK SOUTHWARK 0-8,STATEMENTED FEES,2103025101,1000074104
06.11.2019,CHILDREN'S SERVICES,UNIVERSITY ENGINEERING ACADEMY,"4,216.71",CASEWORK SOUTHWARK 0-8,STATEMENTED FEES,2103025102,1000074104
06.11.2019,CHILDREN'S SERVICES,SPA EDUCATION TRUST,"1,456.38",CASEWORK SOUTHWARK 0-8,STATEMENTED FEES,2103025087,1000081600
06.11.2019,CHILDREN'S SERVICES,SPA EDUCATION TRUST,"8,425.71",CASEWORK SOUTHWARK 0-8,STATEMENTED FEES,2103024987,1000081600
06.11.2019,CHILDREN'S SERVICES,SPA EDUCATION TRUST,"8,425.71",CASEWORK SOUTHWARK 0-8,STATEMENTED FEES,2103024992,1000081600
06.11.2019,CHILDREN'S SERVICES,SPA EDUCATION TRUST,"8,425.71",CASEWORK SOUTHWARK 0-8,STATEMENTED FEES,2103024993,1000081600
06.11.2019,CHILDREN'S SERVICES,SPA EDUCATION TRUST,"8,425.71",CASEWORK SOUTHWARK 0-8,STATEMENTED FEES,2103024996,1000081600
06.11.2019,CHILDREN'S SERVICES,ISABELLE GRAVENSTEIN T/A REVIVAL,870,CENTRAL SUPPORT,OTHER PAYMENTS FOR CLIENTS,5902386534,1000027424
06.11.2019,CHILDREN'S SERVICES,STEELDECK RENTALS LTD,"1,317.09",CHILDREN IN CARE EVENTS,EXTERNAL AGENCIES AND BODIES,5902385543,1000020680
06.11.2019,CHILDREN'S SERVICES,AIDHOUR LIMITED,358.35,CLA TEAM SAFEGUARDING,PROFESSIONAL FEES,5902386504,1000057345
06.11.2019,CHILDREN'S SERVICES,AIDHOUR LIMITED,370.35,CLA TEAM SAFEGUARDING,PROFESSIONAL FEES,5902386503,1000057345
06.11.2019,CHILDREN'S SERVICES,AIDHOUR LIMITED,573.2,CLA TEAM SAFEGUARDING,PROFESSIONAL FEES,5902386476,1000057345
06.11.2019,CHILDREN'S SERVICES,AIDHOUR LIMITED,758.85,CLA TEAM SAFEGUARDING,PROFESSIONAL FEES,5902386499,1000057345
06.11.2019,CHILDREN'S SERVICES,REDACTED PERSONAL DATA,300,DISABILITY & HIV,ADDITIONAL PAYMENTS TO AGENCIES/CARERS,REDACTED,REDACTED
06.11.2019,CHILDREN'S SERVICES,REDACTED PERSONAL DATA,400,DISABILITY & HIV,ADDITIONAL PAYMENTS TO AGENCIES/CARERS,REDACTED,REDACTED
06.11.2019,CHILDREN'S SERVICES,REDACTED PERSONAL DATA,300,DISABILITY & HIV,ADDITIONAL PAYMENTS TO AGENCIES/CARERS,REDACTED,REDACTED
06.11.2019,CHILDREN'S SERVICES,REDACTED PERSONAL DATA,500,DISABILITY & HIV,COMPUTER CONSUMABLES,REDACTED,REDACTED
06.11.2019,CHILDREN'S SERVICES,REDACTED PERSONAL DATA,300,DISABILITY & HIV,OTHER PAYMENTS FOR CLIENTS,REDACTED,REDACTED
06.11.2019,CHILDREN'S SERVICES,REDACTED PERSONAL DATA,540,DISABILITY & HIV,OTHER PAYMENTS FOR CLIENTS,REDACTED,REDACTED
06.11.2019,CHILDREN'S SERVICES,REDACTED PERSONAL DATA,726,DISABILITY & HIV,PAYMENTS TO CARERS,REDACTED,REDACTED
06.11.2019,CHILDREN'S SERVICES,REDACTED PERSONAL DATA,581.43,DISABILITY & HIV,PAYMENTS TO CARERS,REDACTED,REDACTED
06.11.2019,CHILDREN'S SERVICES,REDACTED PERSONAL DATA,814,DISABILITY & HIV,PAYMENTS TO CARERS,REDACTED,REDACTED
06.11.2019,CHILDREN'S SERVICES,REDACTED PERSONAL DATA,820,DISABILITY & HIV,PAYMENTS TO CARERS,REDACTED,REDACTED
06.11.2019,CHILDREN'S SERVICES,REDACTED PERSONAL DATA,904,DISABILITY & HIV,PAYMENTS TO CARERS,REDACTED,REDACTED
06.11.2019,CHILDREN'S SERVICES,REDACTED PERSONAL DATA,"1,114.00",DISABILITY & HIV,PAYMENTS TO CARERS,REDACTED,REDACTED
06.11.2019,CHILDREN'S SERVICES,REDACTED PERSONAL DATA,"1,120.00",DISABILITY & HIV,PAYMENTS TO CARERS,REDACTED,REDACTED
06.11.2019,CHILDREN'S SERVICES,REDACTED PERSONAL DATA,784,DISABILITY & HIV,PAYMENTS TO CARERS,REDACTED,REDACTED
06.11.2019,CHILDREN'S SERVICES,REDACTED PERSONAL DATA,874,DISABILITY & HIV,PAYMENTS TO CARERS,REDACTED,REDACTED
06.11.2019,CHILDREN'S SERVICES,REDACTED PERSONAL DATA,814,DISABILITY & HIV,PAYMENTS TO CARERS,REDACTED,REDACTED
06.11.2019,CHILDREN'S SERVICES,REDACTED PERSONAL DATA,814,DISABILITY & HIV,PAYMENTS TO CARERS,REDACTED,REDACTED
06.11.2019,CHILDREN'S SERVICES,REDACTED PERSONAL DATA,"1,120.00",DISABILITY & HIV,PAYMENTS TO CARERS,REDACTED,REDACTED
06.11.2019,CHILDREN'S SERVICES,REDACTED PERSONAL DATA,"1,120.00",DISABILITY & HIV,PAYMENTS TO CARERS,REDACTED,REDACTED
06.11.2019,CHILDREN'S SERVICES,REDACTED PERSONAL DATA,814,DISABILITY & HIV,PAYMENTS TO CARERS,REDACTED,REDACTED
06.11.2019,CHILDREN'S SERVICES,REDACTED PERSONAL DATA,814,DISABILITY & HIV,PAYMENTS TO CARERS,REDACTED,REDACTED
06.11.2019,CHILDREN'S SERVICES,REDACTED PERSONAL DATA,"1,120.00",DISABILITY & HIV,PAYMENTS TO CARERS,REDACTED,REDACTED
06.11.2019,CHILDREN'S SERVICES,REDACTED PERSONAL DATA,726,DISABILITY & HIV,PAYMENTS TO CARERS,REDACTED,REDACTED
06.11.2019,CHILDREN'S SERVICES,REDACTED PERSONAL DATA,820,DISABILITY & HIV,PAYMENTS TO CARERS,REDACTED,REDACTED
06.11.2019,CHILDREN'S SERVICES,REDACTED PERSONAL DATA,820,DISABILITY & HIV,PAYMENTS TO CARERS,REDACTED,REDACTED
06.11.2019,CHILDREN'S SERVICES,REDACTED PERSONAL DATA,814,DISABILITY & HIV,PAYMENTS TO CARERS,REDACTED,REDACTED
06.11.2019,CHILDREN'S SERVICES,REDACTED PERSONAL DATA,934,DISABILITY & HIV,PAYMENTS TO CARERS,REDACTED,REDACTED
06.11.2019,CHILDREN'S SERVICES,REDACTED PERSONAL DATA,904,DISABILITY & HIV,PAYMENTS TO CARERS,REDACTED,REDACTED
06.11.2019,CHILDREN'S SERVICES,REDACTED PERSONAL DATA,-728.57,DISABILITY & HIV,PAYMENTS TO CARERS,REDACTED,REDACTED
06.11.2019,CHILDREN'S SERVICES,REDACTED PERSONAL DATA,820,DISABILITY & HIV,PAYMENTS TO CARERS,REDACTED,REDACTED
06.11.2019,CHILDREN'S SERVICES,REDACTED PERSONAL DATA,"1,171.42",DISABILITY & HIV,PAYMENTS TO CARERS,REDACTED,REDACTED
06.11.2019,CHILDREN'S SERVICES,REDACTED PERSONAL DATA,"1,700.00",DISABILITY & HIV,PAYMENTS TO CARERS,REDACTED,REDACTED
06.11.2019,CHILDREN'S SERVICES,REDACTED PERSONAL DATA,820,DISABILITY & HIV,PAYMENTS TO CARERS,REDACTED,REDACTED
06.11.2019,CHILDREN'S SERVICES,REDACTED PERSONAL DATA,850,DISABILITY & HIV,PAYMENTS TO CARERS,REDACTED,REDACTED
06.11.2019,CHILDREN'S SERVICES,REDACTED PERSONAL DATA,"1,120.00",DISABILITY & HIV,PAYMENTS TO CARERS,REDACTED,REDACTED
06.11.2019,CHILDREN'S SERVICES,REDACTED PERSONAL DATA,646,DISABILITY & HIV,PAYMENTS TO CARERS,REDACTED,REDACTED
06.11.2019,CHILDREN'S SERVICES,REDACTED PERSONAL DATA,"1,224.20",DISABILITY & HIV,PAYMENTS TO CARERS,REDACTED,REDACTED
06.11.2019,CHILDREN'S SERVICES,REDACTED PERSONAL DATA,912.3,DISABILITY & HIV,PAYMENTS TO CARERS,REDACTED,REDACTED
06.11.2019,CHILDREN'S SERVICES,REDACTED PERSONAL DATA,726,DISABILITY & HIV,PAYMENTS TO CARERS,REDACTED,REDACTED
06.11.2019,CHILDREN'S SERVICES,REDACTED PERSONAL DATA,926,DISABILITY & HIV,PAYMENTS TO CARERS,REDACTED,REDACTED
06.11.2019,CHILDREN'S SERVICES,REDACTED PERSONAL DATA,300,DISABILITY & HIV,PAYMENTS TO CARERS,REDACTED,REDACTED
06.11.2019,CHILDREN'S SERVICES,REDACTED PERSONAL DATA,820,DISABILITY & HIV,PAYMENTS TO CARERS,REDACTED,REDACTED
06.11.2019,CHILDREN'S SERVICES,REDACTED PERSONAL DATA,814,DISABILITY & HIV,PAYMENTS TO CARERS,REDACTED,REDACTED
06.11.2019,CHILDREN'S SERVICES,REDACTED PERSONAL DATA,814,DISABILITY & HIV,PAYMENTS TO CARERS,REDACTED,REDACTED
06.11.2019,CHILDREN'S SERVICES,REDACTED PERSONAL DATA,-774.86,DISABILITY & HIV,PAYMENTS TO CARERS,REDACTED,REDACTED
06.11.2019,CHILDREN'S SERVICES,REDACTED PERSONAL DATA,814,DISABILITY & HIV,PAYMENTS TO CARERS,REDACTED,REDACTED
06.11.2019,CHILDREN'S SERVICES,REDACTED PERSONAL DATA,820,DISABILITY & HIV,PAYMENTS TO CARERS,REDACTED,REDACTED
06.11.2019,CHILDREN'S SERVICES,REDACTED PERSONAL DATA,814,DISABILITY & HIV,PAYMENTS TO CARERS,REDACTED,REDACTED
06.11.2019,CHILDREN'S SERVICES,REDACTED PERSONAL DATA,814,DISABILITY & HIV,PAYMENTS TO CARERS,REDACTED,REDACTED
06.11.2019,CHILDREN'S SERVICES,REDACTED PERSONAL DATA,904,DISABILITY & HIV,PAYMENTS TO CARERS,REDACTED,REDACTED
06.11.2019,CHILDREN'S SERVICES,REDACTED PERSONAL DATA,904,DISABILITY & HIV,PAYMENTS TO CARERS,REDACTED,REDACTED
06.11.2019,CHILDREN'S SERVICES,REDACTED PERSONAL DATA,904,DISABILITY & HIV,PAYMENTS TO CARERS,REDACTED,REDACTED
06.11.2019,CHILDREN'S SERVICES,REDACTED PERSONAL DATA,820,DISABILITY & HIV,PAYMENTS TO CARERS,REDACTED,REDACTED
06.11.2019,CHILDREN'S SERVICES,REDACTED PERSONAL DATA,904,DISABILITY & HIV,PAYMENTS TO CARERS,REDACTED,REDACTED
06.11.2019,CHILDREN'S SERVICES,REDACTED PERSONAL DATA,814,DISABILITY & HIV,PAYMENTS TO CARERS,REDACTED,REDACTED
06.11.2019,CHILDREN'S SERVICES,REDACTED PERSONAL DATA,837.99,DISABILITY & HIV,PAYMENTS TO CARERS,REDACTED,REDACTED
06.11.2019,CHILDREN'S SERVICES,REDACTED PERSONAL DATA,726,DISABILITY & HIV,PAYMENTS TO CARERS,REDACTED,REDACTED
06.11.2019,CHILDREN'S SERVICES,REDACTED PERSONAL DATA,"1,700.00",DISABILITY & HIV,PAYMENTS TO CARERS,REDACTED,REDACTED
06.11.2019,CHILDREN'S SERVICES,REDACTED PERSONAL DATA,814,DISABILITY & HIV,PAYMENTS TO CARERS,REDACTED,REDACTED
06.11.2019,CHILDREN'S SERVICES,REDACTED PERSONAL DATA,660,DISABILITY & HIV,PAYMENTS TO CARERS,REDACTED,REDACTED
06.11.2019,CHILDREN'S SERVICES,REDACTED PERSONAL DATA,"1,120.00",DISABILITY & HIV,PAYMENTS TO CARERS,REDACTED,REDACTED
06.11.2019,CHILDREN'S SERVICES,REDACTED PERSONAL DATA,"1,120.00",DISABILITY & HIV,PAYMENTS TO CARERS,REDACTED,REDACTED
06.11.2019,CHILDREN'S SERVICES,REDACTED PERSONAL DATA,"1,120.00",DISABILITY & HIV,PAYMENTS TO CARERS,REDACTED,REDACTED
06.11.2019,CHILDREN'S SERVICES,REDACTED PERSONAL DATA,"1,204.00",DISABILITY & HIV,PAYMENTS TO CARERS,REDACTED,REDACTED
06.11.2019,CHILDREN'S SERVICES,REDACTED PERSONAL DATA,814,DISABILITY & HIV,PAYMENTS TO CARERS,REDACTED,REDACTED
06.11.2019,CHILDREN'S SERVICES,REDACTED PERSONAL DATA,676,DISABILITY & HIV,PAYMENTS TO CARERS,REDACTED,REDACTED
06.11.2019,CHILDREN'S SERVICES,REDACTED PERSONAL DATA,-407,DISABILITY & HIV,PAYMENTS TO CARERS,REDACTED,REDACTED
06.11.2019,CHILDREN'S SERVICES,REDACTED PERSONAL DATA,820,DISABILITY & HIV,PAYMENTS TO CARERS,REDACTED,REDACTED
06.11.2019,CHILDREN'S SERVICES,REDACTED PERSONAL DATA,"1,120.00",DISABILITY & HIV,PAYMENTS TO CARERS,REDACTED,REDACTED
06.11.2019,CHILDREN'S SERVICES,REDACTED PERSONAL DATA,"1,120.00",DISABILITY & HIV,PAYMENTS TO CARERS,REDACTED,REDACTED
06.11.2019,CHILDREN'S SERVICES,REDACTED PERSONAL DATA,726,DISABILITY & HIV,PAYMENTS TO CARERS,REDACTED,REDACTED
06.11.2019,CHILDREN'S SERVICES,REDACTED PERSONAL DATA,820,DISABILITY & HIV,PAYMENTS TO CARERS,REDACTED,REDACTED
06.11.2019,CHILDREN'S SERVICES,REDACTED PERSONAL DATA,844,DISABILITY & HIV,PAYMENTS TO CARERS,REDACTED,REDACTED
06.11.2019,CHILDREN'S SERVICES,REDACTED PERSONAL DATA,934,DISABILITY & HIV,PAYMENTS TO CARERS,REDACTED,REDACTED
06.11.2019,CHILDREN'S SERVICES,REDACTED PERSONAL DATA,814,DISABILITY & HIV,PAYMENTS TO CARERS,REDACTED,REDACTED
06.11.2019,CHILDREN'S SERVICES,REDACTED PERSONAL DATA,"1,937.14",DISABILITY & HIV,PAYMENTS TO CARERS,REDACTED,REDACTED
06.11.2019,CHILDREN'S SERVICES,REDACTED PERSONAL DATA,726,DISABILITY & HIV,PAYMENTS TO CARERS,REDACTED,REDACTED
06.11.2019,CHILDREN'S SERVICES,REDACTED PERSONAL DATA,820,DISABILITY & HIV,PAYMENTS TO CARERS,REDACTED,REDACTED
06.11.2019,CHILDREN'S SERVICES,REDACTED PERSONAL DATA,991.42,DISABILITY & HIV,PAYMENTS TO CARERS,REDACTED,REDACTED
06.11.2019,CHILDREN'S SERVICES,REDACTED PERSONAL DATA,"1,294.60",DISABILITY & HIV,PAYMENTS TO CARERS,REDACTED,REDACTED
06.11.2019,CHILDREN'S SERVICES,REDACTED PERSONAL DATA,676,DISABILITY & HIV,PAYMENTS TO CARERS,REDACTED,REDACTED
06.11.2019,CHILDREN'S SERVICES,REDACTED PERSONAL DATA,676,DISABILITY & HIV,PAYMENTS TO CARERS,REDACTED,REDACTED
06.11.2019,CHILDREN'S SERVICES,REDACTED PERSONAL DATA,"1,120.00",DISABILITY & HIV,PAYMENTS TO CARERS,REDACTED,REDACTED
06.11.2019,CHILDREN'S SERVICES,REDACTED PERSONAL DATA,"1,120.00",DISABILITY & HIV,PAYMENTS TO CARERS,REDACTED,REDACTED
06.11.2019,CHILDREN'S SERVICES,REDACTED PERSONAL DATA,814,DISABILITY & HIV,PAYMENTS TO CARERS,REDACTED,REDACTED
06.11.2019,CHILDREN'S SERVICES,REDACTED PERSONAL DATA,-345.46,DISABILITY & HIV,PAYMENTS TO CARERS,REDACTED,REDACTED
06.11.2019,CHILDREN'S SERVICES,REDACTED PERSONAL DATA,"1,692.86",DISABILITY & HIV,PAYMENTS TO CARERS,REDACTED,REDACTED
06.11.2019,CHILDREN'S SERVICES,REDACTED PERSONAL DATA,820,DISABILITY & HIV,PAYMENTS TO CARERS,REDACTED,REDACTED
06.11.2019,CHILDREN'S SERVICES,REDACTED PERSONAL DATA,"1,120.00",DISABILITY & HIV,PAYMENTS TO CARERS,REDACTED,REDACTED
06.11.2019,CHILDREN'S SERVICES,REDACTED PERSONAL DATA,926,DISABILITY & HIV,PAYMENTS TO CARERS,REDACTED,REDACTED
06.11.2019,CHILDREN'S SERVICES,REDACTED PERSONAL DATA,"1,394.60",DISABILITY & HIV,PAYMENTS TO CARERS,REDACTED,REDACTED
06.11.2019,CHILDREN'S SERVICES,REDACTED PERSONAL DATA,"1,026.00",DISABILITY & HIV,PAYMENTS TO CARERS,REDACTED,REDACTED
06.11.2019,CHILDREN'S SERVICES,REDACTED PERSONAL DATA,"1,120.00",DISABILITY & HIV,PAYMENTS TO CARERS,REDACTED,REDACTED
06.11.2019,CHILDREN'S SERVICES,REDACTED PERSONAL DATA,"1,120.00",DISABILITY & HIV,PAYMENTS TO CARERS,REDACTED,REDACTED
06.11.2019,CHILDREN'S SERVICES,REDACTED PERSONAL DATA,814,DISABILITY & HIV,PAYMENTS TO CARERS,REDACTED,REDACTED
06.11.2019,CHILDREN'S SERVICES,REDACTED PERSONAL DATA,790,DISABILITY & HIV,PAYMENTS TO CARERS,REDACTED,REDACTED
06.11.2019,CHILDREN'S SERVICES,REDACTED PERSONAL DATA,820,DISABILITY & HIV,PAYMENTS TO CARERS,REDACTED,REDACTED
06.11.2019,CHILDREN'S SERVICES,REDACTED PERSONAL DATA,904,DISABILITY & HIV,PAYMENTS TO CARERS,REDACTED,REDACTED
06.11.2019,CHILDREN'S SERVICES,REDACTED PERSONAL DATA,"1,291.42",DISABILITY & HIV,PAYMENTS TO CARERS,REDACTED,REDACTED
06.11.2019,CHILDREN'S SERVICES,REDACTED PERSONAL DATA,676,DISABILITY & HIV,PAYMENTS TO CARERS,REDACTED,REDACTED
06.11.2019,CHILDREN'S SERVICES,REDACTED PERSONAL DATA,"1,420.00",DISABILITY & HIV,PAYMENTS TO CARERS,REDACTED,REDACTED
06.11.2019,CHILDREN'S SERVICES,REDACTED PERSONAL DATA,"1,120.00",DISABILITY & HIV,PAYMENTS TO CARERS,REDACTED,REDACTED
06.11.2019,CHILDREN'S SERVICES,REDACTED PERSONAL DATA,"1,120.00",DISABILITY & HIV,PAYMENTS TO CARERS,REDACTED,REDACTED
06.11.2019,CHILDREN'S SERVICES,REDACTED PERSONAL DATA,676,DISABILITY & HIV,PAYMENTS TO CARERS,REDACTED,REDACTED
06.11.2019,CHILDREN'S SERVICES,REDACTED PERSONAL DATA,820,DISABILITY & HIV,PAYMENTS TO CARERS,REDACTED,REDACTED
06.11.2019,CHILDREN'S SERVICES,REDACTED PERSONAL DATA,676,DISABILITY & HIV,PAYMENTS TO CARERS,REDACTED,REDACTED
06.11.2019,CHILDREN'S SERVICES,REDACTED PERSONAL DATA,814,DISABILITY & HIV,PAYMENTS TO CARERS,REDACTED,REDACTED
06.11.2019,CHILDREN'S SERVICES,REDACTED PERSONAL DATA,820,DISABILITY & HIV,PAYMENTS TO CARERS,REDACTED,REDACTED
06.11.2019,CHILDREN'S SERVICES,REDACTED PERSONAL DATA,300,DISABILITY & HIV,PAYMENTS TO CARERS,REDACTED,REDACTED
06.11.2019,CHILDREN'S SERVICES,REDACTED PERSONAL DATA,820,DISABILITY & HIV,PAYMENTS TO CARERS,REDACTED,REDACTED
06.11.2019,CHILDREN'S SERVICES,REDACTED PERSONAL DATA,854.28,DISABILITY & HIV,PAYMENTS TO CARERS,REDACTED,REDACTED
06.11.2019,CHILDREN'S SERVICES,REDACTED PERSONAL DATA,"1,120.00",DISABILITY & HIV,PAYMENTS TO CARERS,REDACTED,REDACTED
06.11.2019,CHILDREN'S SERVICES,REDACTED PERSONAL DATA,"1,204.00",DISABILITY & HIV,PAYMENTS TO CARERS,REDACTED,REDACTED
06.11.2019,CHILDREN'S SERVICES,REDACTED PERSONAL DATA,"1,204.00",DISABILITY & HIV,PAYMENTS TO CARERS,REDACTED,REDACTED
06.11.2019,CHILDREN'S SERVICES,REDACTED PERSONAL DATA,"1,700.00",DISABILITY & HIV,PAYMENTS TO CARERS,REDACTED,REDACTED
06.11.2019,CHILDREN'S SERVICES,REDACTED PERSONAL DATA,676,DISABILITY & HIV,PAYMENTS TO CARERS,REDACTED,REDACTED
06.11.2019,CHILDREN'S SERVICES,REDACTED PERSONAL DATA,676,DISABILITY & HIV,PAYMENTS TO CARERS,REDACTED,REDACTED
06.11.2019,CHILDREN'S SERVICES,REDACTED PERSONAL DATA,820,DISABILITY & HIV,PAYMENTS TO CARERS,REDACTED,REDACTED
06.11.2019,CHILDREN'S SERVICES,REDACTED PERSONAL DATA,"1,120.00",DISABILITY & HIV,PAYMENTS TO CARERS,REDACTED,REDACTED
06.11.2019,CHILDREN'S SERVICES,REDACTED PERSONAL DATA,300,DISABILITY & HIV,PAYMENTS TO CARERS,REDACTED,REDACTED
06.11.2019,CHILDREN'S SERVICES,REDACTED PERSONAL DATA,904,DISABILITY & HIV,PAYMENTS TO CARERS,REDACTED,REDACTED
06.11.2019,CHILDREN'S SERVICES,REDACTED PERSONAL DATA,820,DISABILITY & HIV,PAYMENTS TO CARERS,REDACTED,REDACTED
06.11.2019,CHILDREN'S SERVICES,REDACTED PERSONAL DATA,"1,120.00",DISABILITY & HIV,PAYMENTS TO CARERS,REDACTED,REDACTED
06.11.2019,CHILDREN'S SERVICES,REDACTED PERSONAL DATA,726,DISABILITY & HIV,PAYMENTS TO CARERS,REDACTED,REDACTED
06.11.2019,CHILDREN'S SERVICES,REDACTED PERSONAL DATA,820,DISABILITY & HIV,PAYMENTS TO CARERS,REDACTED,REDACTED
06.11.2019,CHILDREN'S SERVICES,REDACTED PERSONAL DATA,874,DISABILITY & HIV,PAYMENTS TO CARERS,REDACTED,REDACTED
06.11.2019,CHILDREN'S SERVICES,REDACTED PERSONAL DATA,-820,DISABILITY & HIV,PAYMENTS TO CARERS,REDACTED,REDACTED
06.11.2019,CHILDREN'S SERVICES,REDACTED PERSONAL DATA,814,DISABILITY & HIV,PAYMENTS TO CARERS,REDACTED,REDACTED
06.11.2019,CHILDREN'S SERVICES,REDACTED PERSONAL DATA,726,DISABILITY & HIV,PAYMENTS TO CARERS,REDACTED,REDACTED
06.11.2019,CHILDREN'S SERVICES,REDACTED PERSONAL DATA,726,DISABILITY & HIV,PAYMENTS TO CARERS,REDACTED,REDACTED
06.11.2019,CHILDREN'S SERVICES,REDACTED PERSONAL DATA,726,DISABILITY & HIV,PAYMENTS TO CARERS,REDACTED,REDACTED
06.11.2019,CHILDREN'S SERVICES,REDACTED PERSONAL DATA,820,DISABILITY & HIV,PAYMENTS TO CARERS,REDACTED,REDACTED
06.11.2019,CHILDREN'S SERVICES,REDACTED PERSONAL DATA,790,DISABILITY & HIV,PAYMENTS TO CARERS,REDACTED,REDACTED
06.11.2019,CHILDREN'S SERVICES,REDACTED PERSONAL DATA,676,DISABILITY & HIV,PAYMENTS TO CARERS,REDACTED,REDACTED
06.11.2019,CHILDREN'S SERVICES,REDACTED PERSONAL DATA,820,DISABILITY & HIV,PAYMENTS TO CARERS,REDACTED,REDACTED
06.11.2019,CHILDREN'S SERVICES,REDACTED PERSONAL DATA,"1,120.00",DISABILITY & HIV,PAYMENTS TO CARERS,REDACTED,REDACTED
06.11.2019,CHILDREN'S SERVICES,REDACTED PERSONAL DATA,"1,090.00",DISABILITY & HIV,PAYMENTS TO CARERS,REDACTED,REDACTED
06.11.2019,CHILDREN'S SERVICES,REDACTED PERSONAL DATA,"1,090.00",DISABILITY & HIV,PAYMENTS TO CARERS,REDACTED,REDACTED
06.11.2019,CHILDREN'S SERVICES,REDACTED PERSONAL DATA,"1,090.00",DISABILITY & HIV,PAYMENTS TO CARERS,REDACTED,REDACTED
06.11.2019,CHILDREN'S SERVICES,REDACTED PERSONAL DATA,"1,547.14",DISABILITY & HIV,PAYMENTS TO CARERS,REDACTED,REDACTED
06.11.2019,CHILDREN'S SERVICES,REDACTED PERSONAL DATA,696,DISABILITY & HIV,PAYMENTS TO CARERS,REDACTED,REDACTED
06.11.2019,CHILDREN'S SERVICES,REDACTED PERSONAL DATA,904,DISABILITY & HIV,PAYMENTS TO CARERS,REDACTED,REDACTED
06.11.2019,CHILDREN'S SERVICES,REDACTED PERSONAL DATA,696,DISABILITY & HIV,PAYMENTS TO CARERS,REDACTED,REDACTED
06.11.2019,CHILDREN'S SERVICES,REDACTED PERSONAL DATA,696,DISABILITY & HIV,PAYMENTS TO CARERS,REDACTED,REDACTED
06.11.2019,CHILDREN'S SERVICES,REDACTED PERSONAL DATA,820,DISABILITY & HIV,PAYMENTS TO CARERS,REDACTED,REDACTED
06.11.2019,CHILDREN'S SERVICES,REDACTED PERSONAL DATA,"1,090.00",DISABILITY & HIV,PAYMENTS TO CARERS,REDACTED,REDACTED
06.11.2019,CHILDREN'S SERVICES,REDACTED PERSONAL DATA,"1,174.00",DISABILITY & HIV,PAYMENTS TO CARERS,REDACTED,REDACTED
06.11.2019,CHILDREN'S SERVICES,REDACTED PERSONAL DATA,776.08,DISABILITY & HIV,PAYMENTS TO CARERS,REDACTED,REDACTED
06.11.2019,CHILDREN'S SERVICES,REDACTED PERSONAL DATA,820,DISABILITY & HIV,PAYMENTS TO CARERS,REDACTED,REDACTED
06.11.2019,CHILDREN'S SERVICES,REDACTED PERSONAL DATA,904,DISABILITY & HIV,PAYMENTS TO CARERS,REDACTED,REDACTED
06.11.2019,CHILDREN'S SERVICES,REDACTED PERSONAL DATA,676,DISABILITY & HIV,PAYMENTS TO CARERS,REDACTED,REDACTED
06.11.2019,CHILDREN'S SERVICES,REDACTED PERSONAL DATA,820,DISABILITY & HIV,PAYMENTS TO CARERS,REDACTED,REDACTED
06.11.2019,CHILDREN'S SERVICES,REDACTED PERSONAL DATA,"1,734.00",DISABILITY & HIV,PAYMENTS TO CARERS,REDACTED,REDACTED
06.11.2019,CHILDREN'S SERVICES,REDACTED PERSONAL DATA,676,DISABILITY & HIV,PAYMENTS TO CARERS,REDACTED,REDACTED
06.11.2019,CHILDREN'S SERVICES,REDACTED PERSONAL DATA,874,DISABILITY & HIV,PAYMENTS TO CARERS,REDACTED,REDACTED
06.11.2019,CHILDREN'S SERVICES,REDACTED PERSONAL DATA,820,DISABILITY & HIV,PAYMENTS TO CARERS,REDACTED,REDACTED
06.11.2019,CHILDREN'S SERVICES,REDACTED PERSONAL DATA,646,DISABILITY & HIV,PAYMENTS TO CARERS,REDACTED,REDACTED
06.11.2019,CHILDREN'S SERVICES,REDACTED PERSONAL DATA,874,DISABILITY & HIV,PAYMENTS TO CARERS,REDACTED,REDACTED
06.11.2019,CHILDREN'S SERVICES,REDACTED PERSONAL DATA,"1,297.86",DISABILITY & HIV,PAYMENTS TO CARERS,REDACTED,REDACTED
06.11.2019,CHILDREN'S SERVICES,REDACTED PERSONAL DATA,865.43,DISABILITY & HIV,PAYMENTS TO CARERS,REDACTED,REDACTED
06.11.2019,CHILDREN'S SERVICES,REDACTED PERSONAL DATA,926,DISABILITY & HIV,PAYMENTS TO CARERS,REDACTED,REDACTED
06.11.2019,CHILDREN'S SERVICES,REDACTED PERSONAL DATA,926,DISABILITY & HIV,PAYMENTS TO CARERS,REDACTED,REDACTED
06.11.2019,CHILDREN'S SERVICES,REDACTED PERSONAL DATA,784,DISABILITY & HIV,PAYMENTS TO CARERS,REDACTED,REDACTED
06.11.2019,CHILDREN'S SERVICES,REDACTED PERSONAL DATA,726,DISABILITY & HIV,PAYMENTS TO CARERS,REDACTED,REDACTED
06.11.2019,CHILDREN'S SERVICES,REDACTED PERSONAL DATA,904,DISABILITY & HIV,PAYMENTS TO CARERS,REDACTED,REDACTED
06.11.2019,CHILDREN'S SERVICES,REDACTED PERSONAL DATA,790,DISABILITY & HIV,PAYMENTS TO CARERS,REDACTED,REDACTED
06.11.2019,CHILDREN'S SERVICES,JOHN RUSKIN PRIMARY SCHOOL,"1,200.00",EARLY YEARS IMPROVEMENT,CONSULTANTS SERVICES,5902386443,5001000040
06.11.2019,CHILDREN'S SERVICES,REDACTED PERSONAL DATA,300,FRIENDS & FAMILY FOSTERING,ADDITIONAL PAYMENTS TO AGENCIES/CARERS,REDACTED,REDACTED
06.11.2019,CHILDREN'S SERVICES,REDACTED PERSONAL DATA,400,FRIENDS & FAMILY FOSTERING,ADDITIONAL PAYMENTS TO AGENCIES/CARERS,REDACTED,REDACTED
06.11.2019,CHILDREN'S SERVICES,REDACTED PERSONAL DATA,"2,252.04",FRIENDS & FAMILY FOSTERING,ADDITIONAL PAYMENTS TO AGENCIES/CARERS,REDACTED,REDACTED
06.11.2019,CHILDREN'S SERVICES,REDACTED PERSONAL DATA,402,FRIENDS & FAMILY FOSTERING,PAYMENTS TO CARERS,REDACTED,REDACTED
06.11.2019,CHILDREN'S SERVICES,REDACTED PERSONAL DATA,335.34,FRIENDS & FAMILY FOSTERING,PAYMENTS TO CARERS,REDACTED,REDACTED
06.11.2019,CHILDREN'S SERVICES,REDACTED PERSONAL DATA,382.3,FRIENDS & FAMILY FOSTERING,PAYMENTS TO CARERS,REDACTED,REDACTED
06.11.2019,CHILDREN'S SERVICES,REDACTED PERSONAL DATA,476.08,FRIENDS & FAMILY FOSTERING,PAYMENTS TO CARERS,REDACTED,REDACTED
06.11.2019,CHILDREN'S SERVICES,REDACTED PERSONAL DATA,"1,067.66",FRIENDS & FAMILY FOSTERING,PAYMENTS TO CARERS,REDACTED,REDACTED
06.11.2019,CHILDREN'S SERVICES,REDACTED PERSONAL DATA,776.08,FRIENDS & FAMILY FOSTERING,PAYMENTS TO CARERS,REDACTED,REDACTED
06.11.2019,CHILDREN'S SERVICES,REDACTED PERSONAL DATA,982.3,FRIENDS & FAMILY FOSTERING,PAYMENTS TO CARERS,REDACTED,REDACTED
06.11.2019,CHILDREN'S SERVICES,REDACTED PERSONAL DATA,300,FRIENDS & FAMILY FOSTERING,PAYMENTS TO CARERS,REDACTED,REDACTED
06.11.2019,CHILDREN'S SERVICES,REDACTED PERSONAL DATA,874,FRIENDS & FAMILY FOSTERING,PAYMENTS TO CARERS,REDACTED,REDACTED
06.11.2019,CHILDREN'S SERVICES,REDACTED PERSONAL DATA,682.3,FRIENDS & FAMILY FOSTERING,PAYMENTS TO CARERS,REDACTED,REDACTED
06.11.2019,CHILDREN'S SERVICES,REDACTED PERSONAL DATA,882.3,FRIENDS & FAMILY FOSTERING,PAYMENTS TO CARERS,REDACTED,REDACTED
06.11.2019,CHILDREN'S SERVICES,REDACTED PERSONAL DATA,"1,076.08",FRIENDS & FAMILY FOSTERING,PAYMENTS TO CARERS,REDACTED,REDACTED
06.11.2019,CHILDREN'S SERVICES,REDACTED PERSONAL DATA,790,FRIENDS & FAMILY FOSTERING,PAYMENTS TO CARERS,REDACTED,REDACTED
06.11.2019,CHILDREN'S SERVICES,REDACTED PERSONAL DATA,882.3,FRIENDS & FAMILY FOSTERING,PAYMENTS TO CARERS,REDACTED,REDACTED
06.11.2019,CHILDREN'S SERVICES,REDACTED PERSONAL DATA,"1,076.08",FRIENDS & FAMILY FOSTERING,PAYMENTS TO CARERS,REDACTED,REDACTED
06.11.2019,CHILDREN'S SERVICES,REDACTED PERSONAL DATA,874,FRIENDS & FAMILY FOSTERING,PAYMENTS TO CARERS,REDACTED,REDACTED
06.11.2019,CHILDREN'S SERVICES,REDACTED PERSONAL DATA,776.08,FRIENDS & FAMILY FOSTERING,PAYMENTS TO CARERS,REDACTED,REDACTED
06.11.2019,CHILDREN'S SERVICES,REDACTED PERSONAL DATA,790,FRIENDS & FAMILY FOSTERING,PAYMENTS TO CARERS,REDACTED,REDACTED
06.11.2019,CHILDREN'S SERVICES,REDACTED PERSONAL DATA,682.3,FRIENDS & FAMILY FOSTERING,PAYMENTS TO CARERS,REDACTED,REDACTED
06.11.2019,CHILDREN'S SERVICES,REDACTED PERSONAL DATA,682.3,FRIENDS & FAMILY FOSTERING,PAYMENTS TO CARERS,REDACTED,REDACTED
06.11.2019,CHILDREN'S SERVICES,REDACTED PERSONAL DATA,386,FRIENDS & FAMILY FOSTERING,PAYMENTS TO CARERS,REDACTED,REDACTED
06.11.2019,CHILDREN'S SERVICES,REDACTED PERSONAL DATA,452,FRIENDS & FAMILY FOSTERING,PAYMENTS TO CARERS,REDACTED,REDACTED
06.11.2019,CHILDREN'S SERVICES,REDACTED PERSONAL DATA,586,FRIENDS & FAMILY FOSTERING,PAYMENTS TO CARERS,REDACTED,REDACTED
06.11.2019,CHILDREN'S SERVICES,REDACTED PERSONAL DATA,790,FRIENDS & FAMILY FOSTERING,PAYMENTS TO CARERS,REDACTED,REDACTED
06.11.2019,CHILDREN'S SERVICES,REDACTED PERSONAL DATA,696,FRIENDS & FAMILY FOSTERING,PAYMENTS TO CARERS,REDACTED,REDACTED
06.11.2019,CHILDREN'S SERVICES,REDACTED PERSONAL DATA,646,FRIENDS & FAMILY FOSTERING,PAYMENTS TO CARERS,REDACTED,REDACTED
06.11.2019,CHILDREN'S SERVICES,REDACTED PERSONAL DATA,790,FRIENDS & FAMILY FOSTERING,PAYMENTS TO CARERS,REDACTED,REDACTED
06.11.2019,CHILDREN'S SERVICES,REDACTED PERSONAL DATA,682.3,FRIENDS & FAMILY FOSTERING,PAYMENTS TO CARERS,REDACTED,REDACTED
06.11.2019,CHILDREN'S SERVICES,REDACTED PERSONAL DATA,682.3,FRIENDS & FAMILY FOSTERING,PAYMENTS TO CARERS,REDACTED,REDACTED
06.11.2019,CHILDREN'S SERVICES,REDACTED PERSONAL DATA,682.3,FRIENDS & FAMILY FOSTERING,PAYMENTS TO CARERS,REDACTED,REDACTED
06.11.2019,CHILDREN'S SERVICES,REDACTED PERSONAL DATA,"5,120.30",FRIENDS & FAMILY FOSTERING,PAYMENTS TO CARERS,REDACTED,REDACTED
06.11.2019,CHILDREN'S SERVICES,REDACTED PERSONAL DATA,452,FRIENDS & FAMILY FOSTERING,PAYMENTS TO CARERS,REDACTED,REDACTED
06.11.2019,CHILDREN'S SERVICES,REDACTED PERSONAL DATA,804,FRIENDS & FAMILY FOSTERING,PAYMENTS TO CARERS,REDACTED,REDACTED
06.11.2019,CHILDREN'S SERVICES,REDACTED PERSONAL DATA,298,FRIENDS & FAMILY FOSTERING,PAYMENTS TO CARERS,REDACTED,REDACTED
06.11.2019,CHILDREN'S SERVICES,REDACTED PERSONAL DATA,336,FRIENDS & FAMILY FOSTERING,PAYMENTS TO CARERS,REDACTED,REDACTED
06.11.2019,CHILDREN'S SERVICES,REDACTED PERSONAL DATA,660,FRIENDS & FAMILY FOSTERING,PAYMENTS TO CARERS,REDACTED,REDACTED
06.11.2019,CHILDREN'S SERVICES,REDACTED PERSONAL DATA,804,FRIENDS & FAMILY FOSTERING,PAYMENTS TO CARERS,REDACTED,REDACTED
06.11.2019,CHILDREN'S SERVICES,REDACTED PERSONAL DATA,380,FRIENDS & FAMILY FOSTERING,PAYMENTS TO CARERS,REDACTED,REDACTED
06.11.2019,CHILDREN'S SERVICES,REDACTED PERSONAL DATA,336,FRIENDS & FAMILY FOSTERING,PAYMENTS TO CARERS,REDACTED,REDACTED
06.11.2019,CHILDREN'S SERVICES,REDACTED PERSONAL DATA,380,FRIENDS & FAMILY FOSTERING,PAYMENTS TO CARERS,REDACTED,REDACTED
06.11.2019,CHILDREN'S SERVICES,REDACTED PERSONAL DATA,444,FRIENDS & FAMILY FOSTERING,PAYMENTS TO CARERS,REDACTED,REDACTED
06.11.2019,CHILDREN'S SERVICES,REDACTED PERSONAL DATA,380,FRIENDS & FAMILY FOSTERING,PAYMENTS TO CARERS,REDACTED,REDACTED
06.11.2019,CHILDREN'S SERVICES,REDACTED PERSONAL DATA,696,FRIENDS & FAMILY FOSTERING,PAYMENTS TO CARERS,REDACTED,REDACTED
06.11.2019,CHILDREN'S SERVICES,REDACTED PERSONAL DATA,790,FRIENDS & FAMILY FOSTERING,PAYMENTS TO CARERS,REDACTED,REDACTED
06.11.2019,CHILDREN'S SERVICES,REDACTED PERSONAL DATA,304,FRIENDS & FAMILY FOSTERING,PAYMENTS TO CARERS,REDACTED,REDACTED
06.11.2019,CHILDREN'S SERVICES,REDACTED PERSONAL DATA,342,FRIENDS & FAMILY FOSTERING,PAYMENTS TO CARERS,REDACTED,REDACTED
06.11.2019,CHILDREN'S SERVICES,REDACTED PERSONAL DATA,342,FRIENDS & FAMILY FOSTERING,PAYMENTS TO CARERS,REDACTED,REDACTED
06.11.2019,CHILDREN'S SERVICES,REDACTED PERSONAL DATA,738.29,FRIENDS & FAMILY FOSTERING,PAYMENTS TO CARERS,REDACTED,REDACTED
06.11.2019,CHILDREN'S SERVICES,REDACTED PERSONAL DATA,300,FURTHER EDUCATION SUPPORT,CLIENT TRANSPORT,REDACTED,REDACTED
06.11.2019,CHILDREN'S SERVICES,REDACTED PERSONAL DATA,300,FURTHER EDUCATION SUPPORT,CLIENT TRANSPORT,REDACTED,REDACTED
06.11.2019,CHILDREN'S SERVICES,REDACTED PERSONAL DATA,300,FURTHER EDUCATION SUPPORT,CLIENT TRANSPORT,REDACTED,REDACTED
06.11.2019,CHILDREN'S SERVICES,REDACTED PERSONAL DATA,300,FURTHER EDUCATION SUPPORT,CLIENT TRANSPORT,REDACTED,REDACTED
06.11.2019,CHILDREN'S SERVICES,GREATER LONDON FOSTERING,300,FURTHER EDUCATION SUPPORT,OTHER PAYMENTS FOR CLIENTS,5902386517,1000029184
06.11.2019,CHILDREN'S SERVICES,REDACTED PERSONAL DATA,400,FURTHER EDUCATION SUPPORT,OTHER PAYMENTS FOR CLIENTS,REDACTED,REDACTED
06.11.2019,CHILDREN'S SERVICES,REDACTED PERSONAL DATA,400,FURTHER EDUCATION SUPPORT,OTHER PAYMENTS FOR CLIENTS,REDACTED,REDACTED
06.11.2019,CHILDREN'S SERVICES,REDACTED PERSONAL DATA,"1,300.04",LEAVING CARE GRANT,OTHER PAYMENTS FOR CLIENTS,REDACTED,REDACTED
06.11.2019,CHILDREN'S SERVICES,REDACTED PERSONAL DATA,516.99,LEAVING CARE GRANT,OTHER PAYMENTS FOR CLIENTS,REDACTED,REDACTED
06.11.2019,CHILDREN'S SERVICES,REDACTED PERSONAL DATA,"1,100.00",PFA TEAM SOUTHWARK 9 PLUS,M&M ALLOWANCE CO-OPS,REDACTED,REDACTED
06.11.2019,CHILDREN'S SERVICES,UNIVERSITY ENGINEERING ACADEMY,"3,979.59",PFA TEAM SOUTHWARK 9 PLUS,STATEMENTED FEES,2103025094,1000074104
06.11.2019,CHILDREN'S SERVICES,UNIVERSITY ENGINEERING ACADEMY,"3,979.59",PFA TEAM SOUTHWARK 9 PLUS,STATEMENTED FEES,2103025097,1000074104
06.11.2019,CHILDREN'S SERVICES,UNIVERSITY ENGINEERING ACADEMY,"4,216.71",PFA TEAM SOUTHWARK 9 PLUS,STATEMENTED FEES,2103025098,1000074104
06.11.2019,CHILDREN'S SERVICES,UNIVERSITY ENGINEERING ACADEMY,"4,216.71",PFA TEAM SOUTHWARK 9 PLUS,STATEMENTED FEES,2103025100,1000074104
06.11.2019,CHILDREN'S SERVICES,UNIVERSITY ENGINEERING ACADEMY,"5,015.94",PFA TEAM SOUTHWARK 9 PLUS,STATEMENTED FEES,2103025099,1000074104
06.11.2019,CHILDREN'S SERVICES,SPA EDUCATION TRUST,"8,425.71",PFA TEAM SOUTHWARK 9 PLUS,STATEMENTED FEES,2103024984,1000081600
06.11.2019,CHILDREN'S SERVICES,SPA EDUCATION TRUST,"8,425.71",PFA TEAM SOUTHWARK 9 PLUS,STATEMENTED FEES,2103024985,1000081600
06.11.2019,CHILDREN'S SERVICES,SPA EDUCATION TRUST,"8,425.71",PFA TEAM SOUTHWARK 9 PLUS,STATEMENTED FEES,2103024986,1000081600
06.11.2019,CHILDREN'S SERVICES,SPA EDUCATION TRUST,"8,425.71",PFA TEAM SOUTHWARK 9 PLUS,STATEMENTED FEES,2103024988,1000081600
06.11.2019,CHILDREN'S SERVICES,SPA EDUCATION TRUST,"8,425.71",PFA TEAM SOUTHWARK 9 PLUS,STATEMENTED FEES,2103024989,1000081600
06.11.2019,CHILDREN'S SERVICES,SPA EDUCATION TRUST,"8,425.71",PFA TEAM SOUTHWARK 9 PLUS,STATEMENTED FEES,2103024990,1000081600
06.11.2019,CHILDREN'S SERVICES,SPA EDUCATION TRUST,"8,425.71",PFA TEAM SOUTHWARK 9 PLUS,STATEMENTED FEES,2103024991,1000081600
06.11.2019,CHILDREN'S SERVICES,SPA EDUCATION TRUST,"8,425.71",PFA TEAM SOUTHWARK 9 PLUS,STATEMENTED FEES,2103024994,1000081600
06.11.2019,CHILDREN'S SERVICES,SPA EDUCATION TRUST,"8,425.71",PFA TEAM SOUTHWARK 9 PLUS,STATEMENTED FEES,2103024995,1000081600
06.11.2019,CHILDREN'S SERVICES,SPA EDUCATION TRUST,"8,425.71",PFA TEAM SOUTHWARK 9 PLUS,STATEMENTED FEES,2103024997,1000081600
06.11.2019,CHILDREN'S SERVICES,SPA EDUCATION TRUST,"8,425.71",PFA TEAM SOUTHWARK 9 PLUS,STATEMENTED FEES,2103024998,1000081600
06.11.2019,CHILDREN'S SERVICES,SPA EDUCATION TRUST,"8,425.71",PFA TEAM SOUTHWARK 9 PLUS,STATEMENTED FEES,2103024999,1000081600
06.11.2019,CHILDREN'S SERVICES,SPA EDUCATION TRUST,"8,425.71",PFA TEAM SOUTHWARK 9 PLUS,STATEMENTED FEES,2103025000,1000081600
06.11.2019,CHILDREN'S SERVICES,SPA EDUCATION TRUST,"8,425.71",PFA TEAM SOUTHWARK 9 PLUS,STATEMENTED FEES,2103025001,1000081600
06.11.2019,CHILDREN'S SERVICES,SPA EDUCATION TRUST,"8,425.71",PFA TEAM SOUTHWARK 9 PLUS,STATEMENTED FEES,2103025002,1000081600
06.11.2019,CHILDREN'S SERVICES,SPA EDUCATION TRUST,"8,425.71",PFA TEAM SOUTHWARK 9 PLUS,STATEMENTED FEES,2103025003,1000081600
06.11.2019,CHILDREN'S SERVICES,SPA EDUCATION TRUST,"8,425.71",PFA TEAM SOUTHWARK 9 PLUS,STATEMENTED FEES,2103025004,1000081600
06.11.2019,CHILDREN'S SERVICES,SPA EDUCATION TRUST,"8,425.71",PFA TEAM SOUTHWARK 9 PLUS,STATEMENTED FEES,2103025005,1000081600
06.11.2019,CHILDREN'S SERVICES,SPA EDUCATION TRUST,"8,425.71",PFA TEAM SOUTHWARK 9 PLUS,STATEMENTED FEES,2103025006,1000081600
06.11.2019,CHILDREN'S SERVICES,SPA EDUCATION TRUST,"8,425.71",PFA TEAM SOUTHWARK 9 PLUS,STATEMENTED FEES,2103025007,1000081600
06.11.2019,CHILDREN'S SERVICES,SPA EDUCATION TRUST,"8,425.71",PFA TEAM SOUTHWARK 9 PLUS,STATEMENTED FEES,2103025008,1000081600
06.11.2019,CHILDREN'S SERVICES,SPA EDUCATION TRUST,"8,425.71",PFA TEAM SOUTHWARK 9 PLUS,STATEMENTED FEES,2103025009,1000081600
06.11.2019,CHILDREN'S SERVICES,SPA EDUCATION TRUST,"8,425.71",PFA TEAM SOUTHWARK 9 PLUS,STATEMENTED FEES,2103025010,1000081600
06.11.2019,CHILDREN'S SERVICES,SPA EDUCATION TRUST,"8,425.71",PFA TEAM SOUTHWARK 9 PLUS,STATEMENTED FEES,2103025011,1000081600
06.11.2019,CHILDREN'S SERVICES,SPA EDUCATION TRUST,"8,425.71",PFA TEAM SOUTHWARK 9 PLUS,STATEMENTED FEES,2103025012,1000081600
06.11.2019,CHILDREN'S SERVICES,SPA EDUCATION TRUST,"8,425.71",PFA TEAM SOUTHWARK 9 PLUS,STATEMENTED FEES,2103025013,1000081600
06.11.2019,CHILDREN'S SERVICES,SPA EDUCATION TRUST,"8,425.71",PFA TEAM SOUTHWARK 9 PLUS,STATEMENTED FEES,2103025014,1000081600
06.11.2019,CHILDREN'S SERVICES,SPA EDUCATION TRUST,"8,425.71",PFA TEAM SOUTHWARK 9 PLUS,STATEMENTED FEES,2103025015,1000081600
06.11.2019,CHILDREN'S SERVICES,SPA EDUCATION TRUST,"8,425.71",PFA TEAM SOUTHWARK 9 PLUS,STATEMENTED FEES,2103025016,1000081600
06.11.2019,CHILDREN'S SERVICES,SPA EDUCATION TRUST,"8,425.71",PFA TEAM SOUTHWARK 9 PLUS,STATEMENTED FEES,2103025017,1000081600
06.11.2019,CHILDREN'S SERVICES,SPA EDUCATION TRUST,"8,425.71",PFA TEAM SOUTHWARK 9 PLUS,STATEMENTED FEES,2103025018,1000081600
06.11.2019,CHILDREN'S SERVICES,SPA EDUCATION TRUST,"8,425.71",PFA TEAM SOUTHWARK 9 PLUS,STATEMENTED FEES,2103025019,1000081600
06.11.2019,CHILDREN'S SERVICES,SPA EDUCATION TRUST,"8,425.71",PFA TEAM SOUTHWARK 9 PLUS,STATEMENTED FEES,2103025020,1000081600
06.11.2019,CHILDREN'S SERVICES,SPA EDUCATION TRUST,"8,425.71",PFA TEAM SOUTHWARK 9 PLUS,STATEMENTED FEES,2103025021,1000081600
06.11.2019,CHILDREN'S SERVICES,SPA EDUCATION TRUST,"8,425.71",PFA TEAM SOUTHWARK 9 PLUS,STATEMENTED FEES,2103025022,1000081600
06.11.2019,CHILDREN'S SERVICES,SPA EDUCATION TRUST,"8,425.71",PFA TEAM SOUTHWARK 9 PLUS,STATEMENTED FEES,2103025023,1000081600
06.11.2019,CHILDREN'S SERVICES,SPA EDUCATION TRUST,"8,425.71",PFA TEAM SOUTHWARK 9 PLUS,STATEMENTED FEES,2103025024,1000081600
06.11.2019,CHILDREN'S SERVICES,SPA EDUCATION TRUST,"8,425.71",PFA TEAM SOUTHWARK 9 PLUS,STATEMENTED FEES,2103025025,1000081600
06.11.2019,CHILDREN'S SERVICES,SPA EDUCATION TRUST,"8,425.71",PFA TEAM SOUTHWARK 9 PLUS,STATEMENTED FEES,2103025026,1000081600
06.11.2019,CHILDREN'S SERVICES,SPA EDUCATION TRUST,"8,425.71",PFA TEAM SOUTHWARK 9 PLUS,STATEMENTED FEES,2103025027,1000081600
06.11.2019,CHILDREN'S SERVICES,SPA EDUCATION TRUST,"8,425.71",PFA TEAM SOUTHWARK 9 PLUS,STATEMENTED FEES,2103025028,1000081600
06.11.2019,CHILDREN'S SERVICES,SPA EDUCATION TRUST,"8,425.71",PFA TEAM SOUTHWARK 9 PLUS,STATEMENTED FEES,2103025029,1000081600
06.11.2019,CHILDREN'S SERVICES,SPA EDUCATION TRUST,"8,425.71",PFA TEAM SOUTHWARK 9 PLUS,STATEMENTED FEES,2103025030,1000081600
06.11.2019,CHILDREN'S SERVICES,SPA EDUCATION TRUST,"8,425.71",PFA TEAM SOUTHWARK 9 PLUS,STATEMENTED FEES,2103025031,1000081600
06.11.2019,CHILDREN'S SERVICES,SPA EDUCATION TRUST,"8,425.71",PFA TEAM SOUTHWARK 9 PLUS,STATEMENTED FEES,2103025032,1000081600
06.11.2019,CHILDREN'S SERVICES,SPA EDUCATION TRUST,"8,425.71",PFA TEAM SOUTHWARK 9 PLUS,STATEMENTED FEES,2103025033,1000081600
06.11.2019,CHILDREN'S SERVICES,SPA EDUCATION TRUST,"8,425.71",PFA TEAM SOUTHWARK 9 PLUS,STATEMENTED FEES,2103025034,1000081600
06.11.2019,CHILDREN'S SERVICES,SPA EDUCATION TRUST,"8,425.71",PFA TEAM SOUTHWARK 9 PLUS,STATEMENTED FEES,2103025035,1000081600
06.11.2019,CHILDREN'S SERVICES,SPA EDUCATION TRUST,"8,425.71",PFA TEAM SOUTHWARK 9 PLUS,STATEMENTED FEES,2103025036,1000081600
06.11.2019,CHILDREN'S SERVICES,SPA EDUCATION TRUST,"8,425.71",PFA TEAM SOUTHWARK 9 PLUS,STATEMENTED FEES,2103025037,1000081600
06.11.2019,CHILDREN'S SERVICES,SPA EDUCATION TRUST,"8,425.71",PFA TEAM SOUTHWARK 9 PLUS,STATEMENTED FEES,2103025038,1000081600
06.11.2019,CHILDREN'S SERVICES,SPA EDUCATION TRUST,"8,425.71",PFA TEAM SOUTHWARK 9 PLUS,STATEMENTED FEES,2103025039,1000081600
06.11.2019,CHILDREN'S SERVICES,SPA EDUCATION TRUST,"8,425.71",PFA TEAM SOUTHWARK 9 PLUS,STATEMENTED FEES,2103025040,1000081600
06.11.2019,CHILDREN'S SERVICES,SPA EDUCATION TRUST,"8,425.71",PFA TEAM SOUTHWARK 9 PLUS,STATEMENTED FEES,2103025041,1000081600
06.11.2019,CHILDREN'S SERVICES,SPA EDUCATION TRUST,"8,425.71",PFA TEAM SOUTHWARK 9 PLUS,STATEMENTED FEES,2103025042,1000081600
06.11.2019,CHILDREN'S SERVICES,SPA EDUCATION TRUST,"8,425.71",PFA TEAM SOUTHWARK 9 PLUS,STATEMENTED FEES,2103025043,1000081600
06.11.2019,CHILDREN'S SERVICES,SPA EDUCATION TRUST,"8,425.71",PFA TEAM SOUTHWARK 9 PLUS,STATEMENTED FEES,2103025044,1000081600
06.11.2019,CHILDREN'S SERVICES,SPA EDUCATION TRUST,"8,425.71",PFA TEAM SOUTHWARK 9 PLUS,STATEMENTED FEES,2103025045,1000081600
06.11.2019,CHILDREN'S SERVICES,SPA EDUCATION TRUST,"8,425.71",PFA TEAM SOUTHWARK 9 PLUS,STATEMENTED FEES,2103025046,1000081600
06.11.2019,CHILDREN'S SERVICES,SPA EDUCATION TRUST,"8,425.71",PFA TEAM SOUTHWARK 9 PLUS,STATEMENTED FEES,2103025047,1000081600
06.11.2019,CHILDREN'S SERVICES,SPA EDUCATION TRUST,"8,425.71",PFA TEAM SOUTHWARK 9 PLUS,STATEMENTED FEES,2103025048,1000081600
06.11.2019,CHILDREN'S SERVICES,SPA EDUCATION TRUST,"8,425.71",PFA TEAM SOUTHWARK 9 PLUS,STATEMENTED FEES,2103025049,1000081600
06.11.2019,CHILDREN'S SERVICES,SPA EDUCATION TRUST,"8,425.71",PFA TEAM SOUTHWARK 9 PLUS,STATEMENTED FEES,2103025050,1000081600
06.11.2019,CHILDREN'S SERVICES,SPA EDUCATION TRUST,"8,425.71",PFA TEAM SOUTHWARK 9 PLUS,STATEMENTED FEES,2103025051,1000081600
06.11.2019,CHILDREN'S SERVICES,SPA EDUCATION TRUST,"8,425.71",PFA TEAM SOUTHWARK 9 PLUS,STATEMENTED FEES,2103025052,1000081600
06.11.2019,CHILDREN'S SERVICES,SPA EDUCATION TRUST,"8,425.71",PFA TEAM SOUTHWARK 9 PLUS,STATEMENTED FEES,2103025053,1000081600
06.11.2019,CHILDREN'S SERVICES,SPA EDUCATION TRUST,"8,425.71",PFA TEAM SOUTHWARK 9 PLUS,STATEMENTED FEES,2103025054,1000081600
06.11.2019,CHILDREN'S SERVICES,SPA EDUCATION TRUST,"8,425.71",PFA TEAM SOUTHWARK 9 PLUS,STATEMENTED FEES,2103025055,1000081600
06.11.2019,CHILDREN'S SERVICES,SPA EDUCATION TRUST,"8,425.71",PFA TEAM SOUTHWARK 9 PLUS,STATEMENTED FEES,2103025056,1000081600
06.11.2019,CHILDREN'S SERVICES,SPA EDUCATION TRUST,"8,425.71",PFA TEAM SOUTHWARK 9 PLUS,STATEMENTED FEES,2103025057,1000081600
06.11.2019,CHILDREN'S SERVICES,SPA EDUCATION TRUST,"8,425.71",PFA TEAM SOUTHWARK 9 PLUS,STATEMENTED FEES,2103025058,1000081600
06.11.2019,CHILDREN'S SERVICES,SPA EDUCATION TRUST,"8,425.71",PFA TEAM SOUTHWARK 9 PLUS,STATEMENTED FEES,2103025059,1000081600
06.11.2019,CHILDREN'S SERVICES,SPA EDUCATION TRUST,"8,425.71",PFA TEAM SOUTHWARK 9 PLUS,STATEMENTED FEES,2103025060,1000081600
06.11.2019,CHILDREN'S SERVICES,SPA EDUCATION TRUST,"8,425.71",PFA TEAM SOUTHWARK 9 PLUS,STATEMENTED FEES,2103025061,1000081600
06.11.2019,CHILDREN'S SERVICES,SPA EDUCATION TRUST,"8,425.71",PFA TEAM SOUTHWARK 9 PLUS,STATEMENTED FEES,2103025062,1000081600
06.11.2019,CHILDREN'S SERVICES,SPA EDUCATION TRUST,"8,425.71",PFA TEAM SOUTHWARK 9 PLUS,STATEMENTED FEES,2103025063,1000081600
06.11.2019,CHILDREN'S SERVICES,SPA EDUCATION TRUST,"8,425.71",PFA TEAM SOUTHWARK 9 PLUS,STATEMENTED FEES,2103025064,1000081600
06.11.2019,CHILDREN'S SERVICES,SPA EDUCATION TRUST,"8,425.71",PFA TEAM SOUTHWARK 9 PLUS,STATEMENTED FEES,2103025065,1000081600
06.11.2019,CHILDREN'S SERVICES,SPA EDUCATION TRUST,"8,425.71",PFA TEAM SOUTHWARK 9 PLUS,STATEMENTED FEES,2103025066,1000081600
06.11.2019,CHILDREN'S SERVICES,SPA EDUCATION TRUST,"8,425.71",PFA TEAM SOUTHWARK 9 PLUS,STATEMENTED FEES,2103025067,1000081600
06.11.2019,CHILDREN'S SERVICES,SPA EDUCATION TRUST,"8,425.71",PFA TEAM SOUTHWARK 9 PLUS,STATEMENTED FEES,2103025068,1000081600
06.11.2019,CHILDREN'S SERVICES,SPA EDUCATION TRUST,"8,425.71",PFA TEAM SOUTHWARK 9 PLUS,STATEMENTED FEES,2103025069,1000081600
06.11.2019,CHILDREN'S SERVICES,SPA EDUCATION TRUST,"8,425.71",PFA TEAM SOUTHWARK 9 PLUS,STATEMENTED FEES,2103025070,1000081600
06.11.2019,CHILDREN'S SERVICES,SPA EDUCATION TRUST,"8,425.71",PFA TEAM SOUTHWARK 9 PLUS,STATEMENTED FEES,2103025071,1000081600
06.11.2019,CHILDREN'S SERVICES,SPA EDUCATION TRUST,"8,425.71",PFA TEAM SOUTHWARK 9 PLUS,STATEMENTED FEES,2103025072,1000081600
06.11.2019,CHILDREN'S SERVICES,SPA EDUCATION TRUST,"8,425.71",PFA TEAM SOUTHWARK 9 PLUS,STATEMENTED FEES,2103025073,1000081600
06.11.2019,CHILDREN'S SERVICES,SPA EDUCATION TRUST,"8,425.71",PFA TEAM SOUTHWARK 9 PLUS,STATEMENTED FEES,2103025074,1000081600
06.11.2019,CHILDREN'S SERVICES,SPA EDUCATION TRUST,"8,425.71",PFA TEAM SOUTHWARK 9 PLUS,STATEMENTED FEES,2103025075,1000081600
06.11.2019,CHILDREN'S SERVICES,SPA EDUCATION TRUST,"8,425.71",PFA TEAM SOUTHWARK 9 PLUS,STATEMENTED FEES,2103025076,1000081600
06.11.2019,CHILDREN'S SERVICES,SPA EDUCATION TRUST,"8,425.71",PFA TEAM SOUTHWARK 9 PLUS,STATEMENTED FEES,2103025077,1000081600
06.11.2019,CHILDREN'S SERVICES,SPA EDUCATION TRUST,"8,425.71",PFA TEAM SOUTHWARK 9 PLUS,STATEMENTED FEES,2103025078,1000081600
06.11.2019,CHILDREN'S SERVICES,SPA EDUCATION TRUST,"8,425.71",PFA TEAM SOUTHWARK 9 PLUS,STATEMENTED FEES,2103025079,1000081600
06.11.2019,CHILDREN'S SERVICES,SPA EDUCATION TRUST,"8,425.71",PFA TEAM SOUTHWARK 9 PLUS,STATEMENTED FEES,2103025080,1000081600
06.11.2019,CHILDREN'S SERVICES,SPA EDUCATION TRUST,"8,425.71",PFA TEAM SOUTHWARK 9 PLUS,STATEMENTED FEES,2103025081,1000081600
06.11.2019,CHILDREN'S SERVICES,SPA EDUCATION TRUST,"8,425.71",PFA TEAM SOUTHWARK 9 PLUS,STATEMENTED FEES,2103025082,1000081600
06.11.2019,CHILDREN'S SERVICES,SPA EDUCATION TRUST,"8,425.71",PFA TEAM SOUTHWARK 9 PLUS,STATEMENTED FEES,2103025083,1000081600
06.11.2019,CHILDREN'S SERVICES,SPA EDUCATION TRUST,"8,425.71",PFA TEAM SOUTHWARK 9 PLUS,STATEMENTED FEES,2103025084,1000081600
06.11.2019,CHILDREN'S SERVICES,SPA EDUCATION TRUST,"8,425.71",PFA TEAM SOUTHWARK 9 PLUS,STATEMENTED FEES,2103025085,1000081600
06.11.2019,CHILDREN'S SERVICES,SPA EDUCATION TRUST,"8,425.71",PFA TEAM SOUTHWARK 9 PLUS,STATEMENTED FEES,2103025086,1000081600
06.11.2019,CHILDREN'S SERVICES,SPA EDUCATION TRUST,"8,425.71",PFA TEAM SOUTHWARK 9 PLUS,STATEMENTED FEES,2103025088,1000081600
06.11.2019,CHILDREN'S SERVICES,SPA EDUCATION TRUST,"8,425.71",PFA TEAM SOUTHWARK 9 PLUS,STATEMENTED FEES,2103025089,1000081600
06.11.2019,CHILDREN'S SERVICES,SPA EDUCATION TRUST,"8,425.71",PFA TEAM SOUTHWARK 9 PLUS,STATEMENTED FEES,2103025090,1000081600
06.11.2019,CHILDREN'S SERVICES,SPA EDUCATION TRUST,"8,425.71",PFA TEAM SOUTHWARK 9 PLUS,STATEMENTED FEES,2103025091,1000081600
06.11.2019,CHILDREN'S SERVICES,SPA EDUCATION TRUST,"8,425.71",PFA TEAM SOUTHWARK 9 PLUS,STATEMENTED FEES,2103025092,1000081600
06.11.2019,CHILDREN'S SERVICES,REDACTED PERSONAL DATA,269.08,RESIDENCE ORDERS,PAYMENTS TO CARERS,REDACTED,REDACTED
06.11.2019,CHILDREN'S SERVICES,CHARLIE CHAPLIN ADVENTURE PLAYGROUND,-670.55,S & FAM SUPP - PRAC GRP F SET 29-31,PAYMENTS TO CLIENTS (DIRECT PAYMENTS),5902386510,1000058003
06.11.2019,CHILDREN'S SERVICES,CHARLIE CHAPLIN ADVENTURE PLAYGROUND,402.33,S & FAM SUPP - PRAC GRP F SET 29-31,PAYMENTS TO CLIENTS (DIRECT PAYMENTS),5902386507,1000058003
06.11.2019,CHILDREN'S SERVICES,CHARLIE CHAPLIN ADVENTURE PLAYGROUND,804.66,S & FAM SUPP - PRAC GRP F SET 29-31,PAYMENTS TO CLIENTS (DIRECT PAYMENTS),5902386505,1000058003
06.11.2019,CHILDREN'S SERVICES,CHARLIE CHAPLIN ADVENTURE PLAYGROUND,804.66,S & FAM SUPP - PRAC GRP F SET 29-31,PAYMENTS TO CLIENTS (DIRECT PAYMENTS),5902386508,1000058003
06.11.2019,CHILDREN'S SERVICES,REDACTED PERSONAL DATA,269.08,SPECIAL GUARDIANSHIP,PAYMENTS TO CARERS,REDACTED,REDACTED
06.11.2019,CHILDREN'S SERVICES,REDACTED PERSONAL DATA,388.04,SPECIAL GUARDIANSHIP,PAYMENTS TO CARERS,REDACTED,REDACTED
06.11.2019,CHILDREN'S SERVICES,REDACTED PERSONAL DATA,342.45,SPECIAL GUARDIANSHIP,PAYMENTS TO CARERS,REDACTED,REDACTED
06.11.2019,CHILDREN'S SERVICES,REDACTED PERSONAL DATA,389.34,SPECIAL GUARDIANSHIP,PAYMENTS TO CARERS,REDACTED,REDACTED
06.11.2019,CHILDREN'S SERVICES,REDACTED PERSONAL DATA,356.15,SPECIAL GUARDIANSHIP,PAYMENTS TO CARERS,REDACTED,REDACTED
06.11.2019,CHILDREN'S SERVICES,REDACTED PERSONAL DATA,403.04,SPECIAL GUARDIANSHIP,PAYMENTS TO CARERS,REDACTED,REDACTED
06.11.2019,CHILDREN'S SERVICES,REDACTED PERSONAL DATA,269.08,SPECIAL GUARDIANSHIP,PAYMENTS TO CARERS,REDACTED,REDACTED
06.11.2019,CHILDREN'S SERVICES,REDACTED PERSONAL DATA,343.05,SPECIAL GUARDIANSHIP,PAYMENTS TO CARERS,REDACTED,REDACTED
06.11.2019,CHILDREN'S SERVICES,REDACTED PERSONAL DATA,525,SPECIAL GUARDIANSHIP,PAYMENTS TO CARERS,REDACTED,REDACTED
06.11.2019,CHILDREN'S SERVICES,REDACTED PERSONAL DATA,525,SPECIAL GUARDIANSHIP,PAYMENTS TO CARERS,REDACTED,REDACTED
06.11.2019,CHILDREN'S SERVICES,REDACTED PERSONAL DATA,525,SPECIAL GUARDIANSHIP,PAYMENTS TO CARERS,REDACTED,REDACTED
06.11.2019,CHILDREN'S SERVICES,REDACTED PERSONAL DATA,395,SPECIAL GUARDIANSHIP,PAYMENTS TO CARERS,REDACTED,REDACTED
06.11.2019,CHILDREN'S SERVICES,REDACTED PERSONAL DATA,341.15,SPECIAL GUARDIANSHIP,PAYMENTS TO CARERS,REDACTED,REDACTED
06.11.2019,CHILDREN'S SERVICES,REDACTED PERSONAL DATA,500,STAYING PUT,PAYMENTS TO CARERS,REDACTED,REDACTED
06.11.2019,CHILDREN'S SERVICES,REDACTED PERSONAL DATA,500,STAYING PUT,PAYMENTS TO CARERS,REDACTED,REDACTED
06.11.2019,CHILDREN'S SERVICES,REDACTED PERSONAL DATA,500,STAYING PUT,PAYMENTS TO CARERS,REDACTED,REDACTED
06.11.2019,CHILDREN'S SERVICES,REDACTED PERSONAL DATA,500,STAYING PUT,PAYMENTS TO CARERS,REDACTED,REDACTED
06.11.2019,CHILDREN'S SERVICES,REDACTED PERSONAL DATA,500,STAYING PUT,PAYMENTS TO CARERS,REDACTED,REDACTED
06.11.2019,CHILDREN'S SERVICES,REDACTED PERSONAL DATA,500,STAYING PUT,PAYMENTS TO CARERS,REDACTED,REDACTED
06.11.2019,CHILDREN'S SERVICES,REDACTED PERSONAL DATA,500,STAYING PUT,PAYMENTS TO CARERS,REDACTED,REDACTED
06.11.2019,CHILDREN'S SERVICES,REDACTED PERSONAL DATA,500,STAYING PUT,PAYMENTS TO CARERS,REDACTED,REDACTED
06.11.2019,CHILDREN'S SERVICES,REDACTED PERSONAL DATA,500,STAYING PUT,PAYMENTS TO CARERS,REDACTED,REDACTED
06.11.2019,CHILDREN'S SERVICES,REDACTED PERSONAL DATA,"1,214.28",STAYING PUT,PAYMENTS TO CARERS,REDACTED,REDACTED
06.11.2019,CHILDREN'S SERVICES,REDACTED PERSONAL DATA,500,STAYING PUT,PAYMENTS TO CARERS,REDACTED,REDACTED
06.11.2019,CHILDREN'S SERVICES,REDACTED PERSONAL DATA,373.46,STAYING PUT,PAYMENTS TO CARERS,REDACTED,REDACTED
06.11.2019,CHILDREN'S SERVICES,REDACTED PERSONAL DATA,500,STAYING PUT,PAYMENTS TO CARERS,REDACTED,REDACTED
06.11.2019,CHILDREN'S SERVICES,REDACTED PERSONAL DATA,500,STAYING PUT,PAYMENTS TO CARERS,REDACTED,REDACTED
06.11.2019,CHILDREN'S SERVICES,REDACTED PERSONAL DATA,500,STAYING PUT,PAYMENTS TO CARERS,REDACTED,REDACTED
06.11.2019,CHILDREN'S SERVICES,REDACTED PERSONAL DATA,500,STAYING PUT,PAYMENTS TO CARERS,REDACTED,REDACTED
06.11.2019,CHILDREN'S SERVICES,REDACTED PERSONAL DATA,500,STAYING PUT,PAYMENTS TO CARERS,REDACTED,REDACTED
06.11.2019,CHILDREN'S SERVICES,REDACTED PERSONAL DATA,904,STAYING PUT,PAYMENTS TO CARERS,REDACTED,REDACTED
06.11.2019,CHILDREN'S SERVICES,REDACTED PERSONAL DATA,500,STAYING PUT,PAYMENTS TO CARERS,REDACTED,REDACTED
06.11.2019,CHILDREN'S SERVICES,REDACTED PERSONAL DATA,500,STAYING PUT,PAYMENTS TO CARERS,REDACTED,REDACTED
06.11.2019,CHILDREN'S SERVICES,REDACTED PERSONAL DATA,500,STAYING PUT,PAYMENTS TO CARERS,REDACTED,REDACTED
06.11.2019,CHILDREN'S SERVICES,REDACTED PERSONAL DATA,500,STAYING PUT,PAYMENTS TO CARERS,REDACTED,REDACTED
06.11.2019,CHILDREN'S SERVICES,REDACTED PERSONAL DATA,500,STAYING PUT,PAYMENTS TO CARERS,REDACTED,REDACTED
06.11.2019,CHILDREN'S SERVICES,REDACTED PERSONAL DATA,798.12,STAYING PUT,PAYMENTS TO CARERS,REDACTED,REDACTED
06.11.2019,CHILDREN'S SERVICES,REDACTED PERSONAL DATA,500,STAYING PUT,PAYMENTS TO CARERS,REDACTED,REDACTED
06.11.2019,CHILDREN'S SERVICES,REDACTED PERSONAL DATA,500,STAYING PUT,PAYMENTS TO CARERS,REDACTED,REDACTED
06.11.2019,CHILDREN'S SERVICES,REDACTED PERSONAL DATA,500,STAYING PUT,PAYMENTS TO CARERS,REDACTED,REDACTED
06.11.2019,CHILDREN'S SERVICES,REDACTED PERSONAL DATA,907.7,STAYING PUT,PAYMENTS TO CARERS,REDACTED,REDACTED
06.11.2019,CHILDREN'S SERVICES,REDACTED PERSONAL DATA,784,STAYING PUT,PAYMENTS TO CARERS,REDACTED,REDACTED
06.11.2019,CHILDREN'S SERVICES,REDACTED PERSONAL DATA,430,STAYING PUT,PAYMENTS TO CARERS,REDACTED,REDACTED
06.11.2019,CHILDREN'S SERVICES,REDACTED PERSONAL DATA,500,STAYING PUT,PAYMENTS TO CARERS,REDACTED,REDACTED
06.11.2019,CHILDREN'S SERVICES,REDACTED PERSONAL DATA,700,STAYING PUT,PAYMENTS TO CARERS,REDACTED,REDACTED
06.11.2019,CHILDREN'S SERVICES,REDACTED PERSONAL DATA,785.71,STAYING PUT,PAYMENTS TO CARERS,REDACTED,REDACTED
06.11.2019,CHILDREN'S SERVICES,REDACTED PERSONAL DATA,875,TEMPORARY ACCOMMODATION,EXTERNAL AGENCIES AND BODIES,REDACTED,REDACTED
06.11.2019,CHILDREN'S SERVICES,REDACTED PERSONAL DATA,300,UASC FURTHER EDUCATION SUPPORT,CLIENT TRANSPORT,REDACTED,REDACTED
06.11.2019,CHILDREN'S SERVICES,REDACTED PERSONAL DATA,300,UASC FURTHER EDUCATION SUPPORT,CLIENT TRANSPORT,REDACTED,REDACTED
06.11.2019,CHILDREN'S SERVICES,REDACTED PERSONAL DATA,300,UASC FURTHER EDUCATION SUPPORT,CLIENT TRANSPORT,REDACTED,REDACTED
06.11.2019,CHILDREN'S SERVICES,REDACTED PERSONAL DATA,400,UASC FURTHER EDUCATION SUPPORT,OTHER PAYMENTS FOR CLIENTS,REDACTED,REDACTED
06.11.2019,CHILDREN'S SERVICES,REDACTED PERSONAL DATA,600,UNIVERSITY SUPPORT,OTHER PAYMENTS FOR CLIENTS,REDACTED,REDACTED
06.11.2019,COMMUNITIES,DEYNSFORD TENANT MANAGEMENT ORGANISATION,"9,810.00",D'EYNSFORD ESTATE,M&M ALLOWANCE CO-OPS,5902386378,1000075613
06.11.2019,COMMUNITIES,SALISBURY ESTATE T&RA,"1,300.00",TENANTS FUND,GRANTS,5902386147,1000067917
06.11.2019,COMMUNITIES,CANON UK LTD,694.95,TENANTS FUND,OP LEASE/HIRE CHARGES:PLANT/EQUIP/FURNIT,5902386447,1000015046
06.11.2019,COMMUNITIES,SPLENTO LTD,597,TENANTS FUND,TRAINING,5902386617,1000083377
06.11.2019,CUSTOMER EXPERIENCE HGF,FRAMA (UK) LTD,"2,000.00",CORONER'S,POSTAGES,5902386602,1000046489
06.11.2019,CUSTOMER EXPERIENCE HGF,FOXTONS LTD,"3,000.00",HOMELESS PROJECTS,GRANTS,5902386192,1000059888
06.11.2019,CUSTOMER EXPERIENCE HGF,NORTHWOOD DULWICH LTD,"3,230.00",HOMELESS PROJECTS,GRANTS,5902385994,1000067847
06.11.2019,CUSTOMER EXPERIENCE HGF,KHB ASSOCIATES LTD,"3,000.00",HOMELESS PROJECTS,GRANTS,5902384985,1000083389
06.11.2019,CUSTOMER EXPERIENCE HGF,PREMIER PROPERTY MANAGEMENT COMPANY,"1,299.06",HOMELESS PROJECTS,GRANTS,5902386514,1000083430
06.11.2019,CUSTOMER EXPERIENCE HGF,REDACTED PERSONAL DATA,"5,925.00",NIGHTLY TA (NSC),EXTERNAL AGENCIES AND BODIES,REDACTED,REDACTED
06.11.2019,CUSTOMER EXPERIENCE HGF,A & M PROPERTY AND CONSTRUCTION LTD,"2,940.00",NIGHTLY TA (NSC),EXTERNAL AGENCIES AND BODIES,5902386501,1000014564
06.11.2019,CUSTOMER EXPERIENCE HGF,TFL TELESALES / OYSTER FULFILMENT,262.5,REGISTRARS,OFFICE EXPENSES,5902386388,1000059727
06.11.2019,CUSTOMER EXPERIENCE HGF,SUPRA UK LTD T/A THE KEYSAFE COMPANY,"2,560.59",SMART MOBILE RESPONSE TEAM,EQUIPMENT PURCHASE & REPAIR,5902386588,1000048522
06.11.2019,CUSTOMER EXPERIENCE HGF,SUPRA UK LTD T/A THE KEYSAFE COMPANY,"3,733.41",SMART MOBILE RESPONSE TEAM,EQUIPMENT PURCHASE & REPAIR,5902386588,1000048522
06.11.2019,DEPT DORMANT AND DEAD CODES,KENT COUNTY COUNCIL - LASER,259.93,PLAY NORTH,GAS,5902386468,1000012926
06.11.2019,DEPT DORMANT AND DEAD CODES,KENT COUNTY COUNCIL - LASER,264.69,PLAY NORTH,GAS,5902386558,1000012926
06.11.2019,DEPT DORMANT AND DEAD CODES,KENT COUNTY COUNCIL - LASER,271.56,PLAY NORTH,GAS,5902386543,1000012926
06.11.2019,DEPT DORMANT AND DEAD CODES,KENT COUNTY COUNCIL - LASER,276.78,PLAY NORTH,GAS,5902386541,1000012926
06.11.2019,DEPT DORMANT AND DEAD CODES,KENT COUNTY COUNCIL - LASER,286.95,PLAY NORTH,GAS,5902386470,1000012926
06.11.2019,DEPT DORMANT AND DEAD CODES,KENT COUNTY COUNCIL - LASER,305.86,PLAY NORTH,GAS,5902386540,1000012926
06.11.2019,DEPT DORMANT AND DEAD CODES,KENT COUNTY COUNCIL - LASER,426.04,PLAY NORTH,GAS,5902386446,1000012926
06.11.2019,ENVIRONMENT AND LEISURE,CONWAY AECOM LTD,"6,644.58",CAPITAL PS (LEISURE),CONSTRUCTION,2103025122,3000001595
06.11.2019,ENVIRONMENT DIRECTORATE,TRAVIS PERKINS TRADING COMPANY LTD,291,BOROUGH & BANKSIDE DD,MATERIALS,5902386460,1514319
06.11.2019,ENVIRONMENT DIRECTORATE,LONDON SOUTH BANK UNIVERSITY,"4,625.00",HIGHWAY MAINTENANCE OVERHEADS,TRAINING,5902386509,1000051012
06.11.2019,ENVIRONMENT DIRECTORATE,JC PEACOCK AND COMPANY LTD,"3,093.86",MANAGEMENT TEAM,MATERIALS,5902386393,1000065103
06.11.2019,ENVIRONMENT DIRECTORATE,TRAVIS PERKINS TRADING COMPANY LTD,289.07,NUNHEAD DD,MATERIALS,5902386455,1514319
06.11.2019,ENVIRONMENT DIRECTORATE,CITY ELECTRICAL FACTORS LTD,293.15,SBS IN-HOUR EMERGENCIES,MATERIALS,5902386570,1003485
06.11.2019,ENVIRONMENT DIRECTORATE,ATG ACCESS LTD,"4,043.00",SPECIAL PROJECTS,SOUTHWARK DIRECT CHARGES,5902385654,1000070530
06.11.2019,ENVIRONMENT DIRECTORATE,NPOWER LTD,"1,836.16",STREET TRADING A/C,ELECTRICITY,5902386417,1000078994
06.11.2019,ENVIRONMENT DIRECTORATE,SOUTHWARK NEWSPAPER LTD,300,STREET WORKS OVERHEADS,MARKETING & PUBLICITY SERVICES,5902386551,1556957
06.11.2019,ENVIRONMENT DIRECTORATE,LONDON TOOLS LIMITED,345,SUPPORTED HOUSING - REPAIRS,MATERIALS,5902386481,1000003017
06.11.2019,ENVIRONMENT DIRECTORATE,TRAVIS PERKINS TRADING COMPANY LTD,287.33,WALWORTH DD,MATERIALS,5902386451,1514319
06.11.2019,ENVIRONMENT DIRECTORATE,TRAVIS PERKINS TRADING COMPANY LTD,509.2,WALWORTH DD,MATERIALS,5902386452,1514319
06.11.2019,EXCHEQUER SERVICES,DSI BILLING SERVICES LTD,"2,295.23",ADMINISTRATIVE SUPPORT,POSTAGES,5902386398,1000058640
06.11.2019,FINANCE & GOVERNANCE,CAPITA BUSINESS SERVICES LTD,"46,912.61",CORPORATE BANKING CONTRACT,STREAMLINE RECEIPTS,6101911261,DIRECT DEBIT PAYMENT
06.11.2019,HOUSING GENERAL FUND,PORTAKABIN LIMITED,"1,934.14",CAPITAL PS (HOUSING GF),LAND & BUILDINGS ACQUISITION,5902386515,1000015195
06.11.2019,HOUSING HRA,CALFORD SEADEN LLP,"18,367.50",CAPITAL PS (HRA),CONSTRUCTION FEES  - EXTERNAL,5902386569,1061592
06.11.2019,HOUSING HRA,RAB CONSULTANTS LTD,"1,254.25",CAPITAL PS (HRA),CONSTRUCTION FEES  - EXTERNAL,5902386614,1000078085
06.11.2019,HOUSING HRA,REDACTED PERSONAL DATA,"12,822.00",CAPITAL PS (HRA),LAND & BUILDINGS ACQUISITION FEES,REDACTED,REDACTED
06.11.2019,LAW & DEMOCRACY,THOMSON REUTERS PROFESSIONAL UK LTD,401,LEGAL SVCES MANAGEMENT,BOOKS & PUBLICATIONS,5902386537,1000000130
06.11.2019,LAW & DEMOCRACY,THOMSON REUTERS PROFESSIONAL UK LTD,"19,293.00",LEGAL SVCES MANAGEMENT,SUBSCRIPTIONS,5902386542,1000000130
06.11.2019,LAW & DEMOCRACY,THOMSON REUTERS PROFESSIONAL UK LTD,"24,524.40",LEGAL SVCES MANAGEMENT,SUBSCRIPTIONS,5902386608,1000000130
06.11.2019,LEISURE DIRECTORATE,KENT COUNTY COUNCIL - LASER,"-2,327.60",BURGESS AREA TEAM,ELECTRICITY,5902386414,1000012926
06.11.2019,LEISURE DIRECTORATE,KENT COUNTY COUNCIL - LASER,593.33,BURGESS AREA TEAM,ELECTRICITY,5902386465,1000012926
06.11.2019,LEISURE DIRECTORATE,KENT COUNTY COUNCIL - LASER,728.24,BURGESS AREA TEAM,ELECTRICITY,5902386410,1000012926
06.11.2019,LEISURE DIRECTORATE,KENT COUNTY COUNCIL - LASER,732.82,BURGESS AREA TEAM,ELECTRICITY,5902386405,1000012926
06.11.2019,LEISURE DIRECTORATE,NPOWER LTD,419.39,BURGESS AREA TEAM,ELECTRICITY,5902386437,1000078994
06.11.2019,LEISURE DIRECTORATE,NPOWER LTD,693.89,BURGESS AREA TEAM,ELECTRICITY,5902386438,1000078994
06.11.2019,LEISURE DIRECTORATE,NPOWER LTD,695.86,BURGESS AREA TEAM,ELECTRICITY,5902386439,1000078994
06.11.2019,LEISURE DIRECTORATE,NPOWER LTD,695.86,BURGESS AREA TEAM,ELECTRICITY,5902386441,1000078994
06.11.2019,LEISURE DIRECTORATE,QUADRON SERVICES LIMITED,"1,015.20",BURGESS AREA TEAM,GROUNDS MAINTENANCE,5902386518,1000066528
06.11.2019,LEISURE DIRECTORATE,CASTLE WATER LTD,383.35,BURGESS AREA TEAM,WATER,5902386473,1000078867
06.11.2019,LEISURE DIRECTORATE,QUADRON SERVICES LIMITED,"7,801.04",BURGESS SPORTS CENTRE,PROFESSIONAL FEES,5902386500,1000066528
06.11.2019,LEISURE DIRECTORATE,QUADRON SERVICES LIMITED,"9,808.57",BURGESS SPORTS CENTRE,PROFESSIONAL FEES,5902386527,1000066528
06.11.2019,LEISURE DIRECTORATE,KENT COUNTY COUNCIL - LASER,326.03,DULWICH AREA TEAM,ELECTRICITY,5902386400,1000012926
06.11.2019,LEISURE DIRECTORATE,NPOWER LTD,252.27,HOMERSTALL ROAD SPORTS GROUND,ELECTRICITY,5902386415,1000078994
06.11.2019,LEISURE DIRECTORATE,NPOWER LTD,256.75,HOMERSTALL ROAD SPORTS GROUND,ELECTRICITY,5902386420,1000078994
06.11.2019,LEISURE DIRECTORATE,NPOWER LTD,360.52,SOUTHWARK AREA TEAM,ELECTRICITY,5902386379,1000078994
06.11.2019,LEISURE DIRECTORATE,NPOWER LTD,944.9,SOUTHWARK AREA TEAM,ELECTRICITY,5902386379,1000078994
06.11.2019,MODERNISATION HGF,DAISY COMMUNICATIONS LTD,"12,854.68",IT MANAGEMENT,DATA COMMUNICATIONS,5902386442,1000075666
06.11.2019,MODERNISATION HGF,KIER FACILITIES SERVICES LTD,"25,445.87",PLANNED FM SERVICES BY KIER,BUILDING R&M,5902386536,1000040603
06.11.2019,MODERNISATION HGF,KENT COUNTY COUNCIL - LASER,"6,174.17",QUEENS RD 1 (BLOCK F),ELECTRICITY,5902386401,1000012926
06.11.2019,NEW BUILD,POTTER RAPER LTD,747.08,DEVELOPMENT DELIVERY,PROFESSIONAL FEES,5902386594,1009369
06.11.2019,NEW BUILD,POTTER RAPER LTD,"5,211.06",DEVELOPMENT DELIVERY,PROFESSIONAL FEES,5902386589,1009369
06.11.2019,PUBLIC HEALTH,DP & SP LTD,"1,009.00",SEXUAL HEALTH - CONTRACEPTION,EXTERNAL AGENCIES AND BODIES,5902386395,1000062767
06.11.2019,PUBLIC HEALTH,SOGIM PHARMACY,498,SEXUAL HEALTH - CONTRACEPTION,EXTERNAL AGENCIES AND BODIES,5902386406,1000065838
06.11.2019,PUBLIC HEALTH,FLEXIHEALTH LTD,"2,018.50",SEXUAL HEALTH - CONTRACEPTION,EXTERNAL AGENCIES AND BODIES,5902386390,1000072668
06.11.2019,PUBLIC HEALTH,K.S.C. 1T LTD,"2,075.94",SEXUAL HEALTH - CONTRACEPTION,EXTERNAL AGENCIES AND BODIES,5902386397,1000081458
06.11.2019,PUBLIC HEALTH,K.S.C. 1T LTD,"5,035.50",SEXUAL HEALTH - CONTRACEPTION,EXTERNAL AGENCIES AND BODIES,5902386397,1000081458
06.11.2019,PUBLIC HEALTH,SHEEL PHARMACY LTD,332.23,SEXUAL HEALTH - CONTRACEPTION,EXTERNAL AGENCIES AND BODIES,5902386403,1000082670
06.11.2019,PUBLIC HEALTH,SHEEL PHARMACY LTD,690,SEXUAL HEALTH - CONTRACEPTION,EXTERNAL AGENCIES AND BODIES,5902386403,1000082670
06.11.2019,REGENERATION,WILLIAM MARTIN PROPERTY CONSULTANTS,"3,500.00",LBS SOJOURNER TRUTH COMMUNITY CENTRE,PROFESSIONAL FEES,5902385986,1000062171
06.11.2019,REGENERATION,AECOM  INFRASTRUCTURE & ENVIRONMENT,"5,815.00",MASTER PLAN-H/WAY & TRANS INTERCHANGE,PROFESSIONAL FEES,5902386152,1688025
06.11.2019,REGENERATION,AECOM  INFRASTRUCTURE & ENVIRONMENT,"13,820.00",MASTER PLAN-H/WAY & TRANS INTERCHANGE,PROFESSIONAL FEES,5902386183,1688025
06.11.2019,RESIDENT SERVICES,EDF ENERGY PLC,351.74,OPERATIONS/OFFICES ACCOMMODATION,ELECTRICITY,5902386384,1008746
06.11.2019,RESIDENT SERVICES,BRITISH GAS TRADING LTD,278.82,TA HOSTELS,ELECTRICITY,5902386383,1000055977
06.11.2019,RESIDENT SERVICES,SECURENT LTD,"2,220.00",TA PLACEMENTS,EXTERNAL AGENCIES AND BODIES,5902386423,1000079400
06.11.2019,RESIDENT SERVICES HGF,STAR LEISURE,500,DEVONSHIRE ROAD,HIRE OF ROOMS/HALLS,5902386427,1000080966
06.11.2019,SOUTHWARK BUILDING SERVICES,LONDON TOOLS LIMITED,331,STORES/LOGISTICS,CREDITORS -GR/IR CLEARING ACCOUNT,5902386484,1000003017
06.11.2019,SOUTHWARK BUILDING SERVICES,LONDON TOOLS LIMITED,360,STORES/LOGISTICS,CREDITORS -GR/IR CLEARING ACCOUNT,5902386485,1000003017
06.11.2019,SOUTHWARK BUILDING SERVICES,LONDON TOOLS LIMITED,658,STORES/LOGISTICS,CREDITORS -GR/IR CLEARING ACCOUNT,5902386484,1000003017
06.11.2019,SOUTHWARK BUILDING SERVICES,LONDON TOOLS LIMITED,"1,400.00",STORES/LOGISTICS,CREDITORS -GR/IR CLEARING ACCOUNT,5902386487,1000003017
06.11.2019,SOUTHWARK BUILDING SERVICES,LONDON TOOLS LIMITED,"4,200.00",STORES/LOGISTICS,CREDITORS -GR/IR CLEARING ACCOUNT,5902386488,1000003017
07.11.2019,ADULT SOCIAL CARE,GRAINGER RESIDENTIAL MANAGEMENT LTD,647.35,APPOINTEESHIPS,OTHER PAYMENTS FOR CLIENTS,2103023256,1000083442
07.11.2019,ADULT SOCIAL CARE,REDACTED PERSONAL DATA,500,APPOINTEESHIPS,OTHER PAYMENTS FOR CLIENTS,REDACTED,REDACTED
07.11.2019,ADULT SOCIAL CARE,CARING FOR CARE LTD,750,ASW - PROFESSIONAL DEVELOPMENT,TRAINING,5902386838,1000083427
07.11.2019,ADULT SOCIAL CARE,PETER MANT,"1,800.00",DIR OF ASC,LEGAL FEES & COURT COSTS,2103025481,1000058320
07.11.2019,ADULT SOCIAL CARE,CATHERINE DOBSON,"1,550.00",DIR OF ASC,LEGAL FEES & COURT COSTS,2103025442,1000083407
07.11.2019,ADULT SOCIAL CARE,BEDE CAFE PROJECT,735,LD LTS 18-64,DAYCARE,2103025414,1553877
07.11.2019,ADULT SOCIAL CARE,SURREY DOCKS FARM PROVIDENT SOCIETY,480,LD LTS 18-64,DAYCARE,2103025410,1000000958
07.11.2019,ADULT SOCIAL CARE,SURREY DOCKS FARM PROVIDENT SOCIETY,487.5,LD LTS 18-64,DAYCARE,2103025413,1000000958
07.11.2019,ADULT SOCIAL CARE,SURREY DOCKS FARM PROVIDENT SOCIETY,720,LD LTS 18-64,DAYCARE,2103025412,1000000958
07.11.2019,ADULT SOCIAL CARE,CHARLIE CHAPLIN ADVENTURE PLAYGROUND,268.22,LD LTS 18-64,DAYCARE,2103025415,1000058003
07.11.2019,ADULT SOCIAL CARE,CHARLIE CHAPLIN ADVENTURE PLAYGROUND,268.22,LD LTS 18-64,DAYCARE,2103025416,1000058003
07.11.2019,ADULT SOCIAL CARE,CHARLIE CHAPLIN ADVENTURE PLAYGROUND,268.22,LD LTS 18-64,DAYCARE,2103025421,1000058003
07.11.2019,ADULT SOCIAL CARE,CHARLIE CHAPLIN ADVENTURE PLAYGROUND,536.44,LD LTS 18-64,DAYCARE,2103025418,1000058003
07.11.2019,ADULT SOCIAL CARE,CHARLIE CHAPLIN ADVENTURE PLAYGROUND,536.44,LD LTS 18-64,DAYCARE,2103025422,1000058003
07.11.2019,ADULT SOCIAL CARE,EDF ENERGY PLC,429.86,MAROON CENTRE,ELECTRICITY,5902386819,1008746
07.11.2019,ADULT SOCIAL CARE,EDF ENERGY PLC,462.16,MAROON CENTRE,ELECTRICITY,5902386799,1008746
07.11.2019,ADULT SOCIAL CARE,EDF ENERGY PLC,484.67,MAROON CENTRE,ELECTRICITY,5902386796,1008746
07.11.2019,ADULT SOCIAL CARE,EDF ENERGY PLC,560.96,MAROON CENTRE,ELECTRICITY,5902386805,1008746
07.11.2019,ADULT SOCIAL CARE,EDF ENERGY PLC,588.3,MAROON CENTRE,ELECTRICITY,5902386793,1008746
07.11.2019,ADULT SOCIAL CARE,EDF ENERGY PLC,754.98,MAROON CENTRE,ELECTRICITY,5902386839,1008746
07.11.2019,ADULT SOCIAL CARE,EDF ENERGY PLC,776.05,MAROON CENTRE,ELECTRICITY,5902386822,1008746
07.11.2019,ADULT SOCIAL CARE,EDF ENERGY PLC,879.96,MAROON CENTRE,ELECTRICITY,5902386861,1008746
07.11.2019,ADULT SOCIAL CARE,EDF ENERGY PLC,882.05,MAROON CENTRE,ELECTRICITY,5902386832,1008746
07.11.2019,ADULT SOCIAL CARE,BLISSETT CARE LTD,365.99,MEM LTS 65+,HOMECARE - C&V,2103025233,1000042627
07.11.2019,ADULT SOCIAL CARE,BLISSETT CARE LTD,"2,270.85",MEM LTS 65+,HOMECARE - C&V,2103025211,1000042627
07.11.2019,ADULT SOCIAL CARE,LAMBETH CHINESE COMMUNITY ASSOCIATION,297.5,MH LTS 18-64,SUPPORTED LIVING,2103025409,11117038
07.11.2019,ADULT SOCIAL CARE,BLISSETT CARE LTD,538.95,MH LTS 65+,HOMECARE - C&V,2103025219,1000042627
07.11.2019,ADULT SOCIAL CARE,BLISSETT CARE LTD,610.12,MH LTS 65+,HOMECARE - C&V,2103025239,1000042627
07.11.2019,ADULT SOCIAL CARE,WESTMINSTER HOMECARE LTD,667.63,MH LTS 65+,HOMECARE - SPOT,2103025400,1000075287
07.11.2019,ADULT SOCIAL CARE,BLISSETT CARE LTD,466.49,PHY LTS 18-64,HOMECARE - C&V,2103025153,1000042627
07.11.2019,ADULT SOCIAL CARE,BLISSETT CARE LTD,508.36,PHY LTS 18-64,HOMECARE - C&V,2103025199,1000042627
07.11.2019,ADULT SOCIAL CARE,BLISSETT CARE LTD,672.82,PHY LTS 18-64,HOMECARE - C&V,2103025177,1000042627
07.11.2019,ADULT SOCIAL CARE,BLISSETT CARE LTD,810.7,PHY LTS 18-64,HOMECARE - C&V,2103025221,1000042627
07.11.2019,ADULT SOCIAL CARE,BLISSETT CARE LTD,827.82,PHY LTS 18-64,HOMECARE - C&V,2103025195,1000042627
07.11.2019,ADULT SOCIAL CARE,BLISSETT CARE LTD,875.97,PHY LTS 18-64,HOMECARE - C&V,2103025201,1000042627
07.11.2019,ADULT SOCIAL CARE,BLISSETT CARE LTD,941.4,PHY LTS 18-64,HOMECARE - C&V,2103025245,1000042627
07.11.2019,ADULT SOCIAL CARE,BLISSETT CARE LTD,"1,098.30",PHY LTS 18-64,HOMECARE - C&V,2103025171,1000042627
07.11.2019,ADULT SOCIAL CARE,THAMES HOMECARE SERVICE LTD,250.6,PHY LTS 18-64,HOMECARE - SPOT,2103025300,1000079295
07.11.2019,ADULT SOCIAL CARE,THAMES HOMECARE SERVICE LTD,250.6,PHY LTS 18-64,HOMECARE - SPOT,2103025364,1000079295
07.11.2019,ADULT SOCIAL CARE,THAMES HOMECARE SERVICE LTD,286.4,PHY LTS 18-64,HOMECARE - SPOT,2103025308,1000079295
07.11.2019,ADULT SOCIAL CARE,THAMES HOMECARE SERVICE LTD,286.4,PHY LTS 18-64,HOMECARE - SPOT,2103025349,1000079295
07.11.2019,ADULT SOCIAL CARE,THAMES HOMECARE SERVICE LTD,308.78,PHY LTS 18-64,HOMECARE - SPOT,2103025276,1000079295
07.11.2019,ADULT SOCIAL CARE,THAMES HOMECARE SERVICE LTD,308.78,PHY LTS 18-64,HOMECARE - SPOT,2103025367,1000079295
07.11.2019,ADULT SOCIAL CARE,THAMES HOMECARE SERVICE LTD,322.2,PHY LTS 18-64,HOMECARE - SPOT,2103025265,1000079295
07.11.2019,ADULT SOCIAL CARE,THAMES HOMECARE SERVICE LTD,322.2,PHY LTS 18-64,HOMECARE - SPOT,2103025341,1000079295
07.11.2019,ADULT SOCIAL CARE,THAMES HOMECARE SERVICE LTD,380.38,PHY LTS 18-64,HOMECARE - SPOT,2103025305,1000079295
07.11.2019,ADULT SOCIAL CARE,THAMES HOMECARE SERVICE LTD,380.38,PHY LTS 18-64,HOMECARE - SPOT,2103025385,1000079295
07.11.2019,ADULT SOCIAL CARE,THAMES HOMECARE SERVICE LTD,626.5,PHY LTS 18-64,HOMECARE - SPOT,2103025327,1000079295
07.11.2019,ADULT SOCIAL CARE,THAMES HOMECARE SERVICE LTD,626.5,PHY LTS 18-64,HOMECARE - SPOT,2103025378,1000079295
07.11.2019,ADULT SOCIAL CARE,THAMES HOMECARE SERVICE LTD,639.93,PHY LTS 18-64,HOMECARE - SPOT,2103025280,1000079295
07.11.2019,ADULT SOCIAL CARE,THAMES HOMECARE SERVICE LTD,639.93,PHY LTS 18-64,HOMECARE - SPOT,2103025342,1000079295
07.11.2019,ADULT SOCIAL CARE,THAMES HOMECARE SERVICE LTD,689.15,PHY LTS 18-64,HOMECARE - SPOT,2103025360,1000079295
07.11.2019,ADULT SOCIAL CARE,THAMES HOMECARE SERVICE LTD,733.9,PHY LTS 18-64,HOMECARE - SPOT,2103025270,1000079295
07.11.2019,ADULT SOCIAL CARE,HAVELOCK COURT (BUPA CARE),"3,308.28",PHY LTS 18-64,NURSING PLACEMENTS FEES,2103020634,1000028902
07.11.2019,ADULT SOCIAL CARE,HAVELOCK COURT (BUPA CARE),"3,806.36",PHY LTS 18-64,NURSING PLACEMENTS FEES,2103021000,1000028902
07.11.2019,ADULT SOCIAL CARE,HAVELOCK COURT (BUPA CARE),"3,876.00",PHY LTS 18-64,NURSING PLACEMENTS FEES,2103020590,1000028902
07.11.2019,ADULT SOCIAL CARE,HAVELOCK COURT (BUPA CARE),"3,902.84",PHY LTS 18-64,NURSING PLACEMENTS FEES,2103020737,1000028902
07.11.2019,ADULT SOCIAL CARE,BLISSETT CARE LTD,261.42,PHY LTS 65+,HOMECARE - C&V,2103025223,1000042627
07.11.2019,ADULT SOCIAL CARE,BLISSETT CARE LTD,265.88,PHY LTS 65+,HOMECARE - C&V,2103025157,1000042627
07.11.2019,ADULT SOCIAL CARE,BLISSETT CARE LTD,318.05,PHY LTS 65+,HOMECARE - C&V,2103025159,1000042627
07.11.2019,ADULT SOCIAL CARE,BLISSETT CARE LTD,357.28,PHY LTS 65+,HOMECARE - C&V,2103025185,1000042627
07.11.2019,ADULT SOCIAL CARE,BLISSETT CARE LTD,418.43,PHY LTS 65+,HOMECARE - C&V,2103025167,1000042627
07.11.2019,ADULT SOCIAL CARE,BLISSETT CARE LTD,448.91,PHY LTS 65+,HOMECARE - C&V,2103025183,1000042627
07.11.2019,ADULT SOCIAL CARE,BLISSETT CARE LTD,475.19,PHY LTS 65+,HOMECARE - C&V,2103025203,1000042627
07.11.2019,ADULT SOCIAL CARE,BLISSETT CARE LTD,479.57,PHY LTS 65+,HOMECARE - C&V,2103025231,1000042627
07.11.2019,ADULT SOCIAL CARE,BLISSETT CARE LTD,597.08,PHY LTS 65+,HOMECARE - C&V,2103025215,1000042627
07.11.2019,ADULT SOCIAL CARE,BLISSETT CARE LTD,597.26,PHY LTS 65+,HOMECARE - C&V,2103025209,1000042627
07.11.2019,ADULT SOCIAL CARE,BLISSETT CARE LTD,640.66,PHY LTS 65+,HOMECARE - C&V,2103025249,1000042627
07.11.2019,ADULT SOCIAL CARE,BLISSETT CARE LTD,651.93,PHY LTS 65+,HOMECARE - C&V,2103025169,1000042627
07.11.2019,ADULT SOCIAL CARE,BLISSETT CARE LTD,699.13,PHY LTS 65+,HOMECARE - C&V,2103025175,1000042627
07.11.2019,ADULT SOCIAL CARE,BLISSETT CARE LTD,825.33,PHY LTS 65+,HOMECARE - C&V,2103025227,1000042627
07.11.2019,ADULT SOCIAL CARE,BLISSETT CARE LTD,867.15,PHY LTS 65+,HOMECARE - C&V,2103025187,1000042627
07.11.2019,ADULT SOCIAL CARE,BLISSETT CARE LTD,942.81,PHY LTS 65+,HOMECARE - C&V,2103025173,1000042627
07.11.2019,ADULT SOCIAL CARE,BLISSETT CARE LTD,945.74,PHY LTS 65+,HOMECARE - C&V,2103025193,1000042627
07.11.2019,ADULT SOCIAL CARE,BLISSETT CARE LTD,945.77,PHY LTS 65+,HOMECARE - C&V,2103025163,1000042627
07.11.2019,ADULT SOCIAL CARE,BLISSETT CARE LTD,"1,002.43",PHY LTS 65+,HOMECARE - C&V,2103025179,1000042627
07.11.2019,ADULT SOCIAL CARE,BLISSETT CARE LTD,"1,014.01",PHY LTS 65+,HOMECARE - C&V,2103025191,1000042627
07.11.2019,ADULT SOCIAL CARE,BLISSETT CARE LTD,"1,070.24",PHY LTS 65+,HOMECARE - C&V,2103025235,1000042627
07.11.2019,ADULT SOCIAL CARE,BLISSETT CARE LTD,"1,094.07",PHY LTS 65+,HOMECARE - C&V,2103025243,1000042627
07.11.2019,ADULT SOCIAL CARE,BLISSETT CARE LTD,"1,102.68",PHY LTS 65+,HOMECARE - C&V,2103025205,1000042627
07.11.2019,ADULT SOCIAL CARE,BLISSETT CARE LTD,"1,190.02",PHY LTS 65+,HOMECARE - C&V,2103025229,1000042627
07.11.2019,ADULT SOCIAL CARE,BLISSETT CARE LTD,"1,813.03",PHY LTS 65+,HOMECARE - C&V,2103025241,1000042627
07.11.2019,ADULT SOCIAL CARE,BLISSETT CARE LTD,"1,983.07",PHY LTS 65+,HOMECARE - C&V,2103025181,1000042627
07.11.2019,ADULT SOCIAL CARE,BLISSETT CARE LTD,"2,661.63",PHY LTS 65+,HOMECARE - C&V,2103025207,1000042627
07.11.2019,ADULT SOCIAL CARE,BLISSETT CARE LTD,"3,503.19",PHY LTS 65+,HOMECARE - C&V,2103025237,1000042627
07.11.2019,ADULT SOCIAL CARE,THAMES HOMECARE SERVICE LTD,250.6,PHY LTS 65+,HOMECARE - C&V,2103025277,1000079295
07.11.2019,ADULT SOCIAL CARE,THAMES HOMECARE SERVICE LTD,572.8,PHY LTS 65+,HOMECARE - C&V,2103025271,1000079295
07.11.2019,ADULT SOCIAL CARE,LAMBETH CHINESE COMMUNITY ASSOCIATION,486,PHY LTS 65+,HOMECARE - SPOT,2103025404,11117038
07.11.2019,ADULT SOCIAL CARE,LAMBETH CHINESE COMMUNITY ASSOCIATION,518.4,PHY LTS 65+,HOMECARE - SPOT,2103025405,11117038
07.11.2019,ADULT SOCIAL CARE,LAMBETH CHINESE COMMUNITY ASSOCIATION,534.6,PHY LTS 65+,HOMECARE - SPOT,2103025407,11117038
07.11.2019,ADULT SOCIAL CARE,LAMBETH CHINESE COMMUNITY ASSOCIATION,"2,608.20",PHY LTS 65+,HOMECARE - SPOT,2103025402,11117038
07.11.2019,ADULT SOCIAL CARE,LAMBETH CHINESE COMMUNITY ASSOCIATION,"2,608.20",PHY LTS 65+,HOMECARE - SPOT,2103025406,11117038
07.11.2019,ADULT SOCIAL CARE,THAMES HOMECARE SERVICE LTD,250.6,PHY LTS 65+,HOMECARE - SPOT,2103025310,1000079295
07.11.2019,ADULT SOCIAL CARE,THAMES HOMECARE SERVICE LTD,250.6,PHY LTS 65+,HOMECARE - SPOT,2103025357,1000079295
07.11.2019,ADULT SOCIAL CARE,THAMES HOMECARE SERVICE LTD,264.03,PHY LTS 65+,HOMECARE - SPOT,2103025303,1000079295
07.11.2019,ADULT SOCIAL CARE,THAMES HOMECARE SERVICE LTD,264.03,PHY LTS 65+,HOMECARE - SPOT,2103025350,1000079295
07.11.2019,ADULT SOCIAL CARE,THAMES HOMECARE SERVICE LTD,268.5,PHY LTS 65+,HOMECARE - SPOT,2103025313,1000079295
07.11.2019,ADULT SOCIAL CARE,THAMES HOMECARE SERVICE LTD,268.5,PHY LTS 65+,HOMECARE - SPOT,2103025388,1000079295
07.11.2019,ADULT SOCIAL CARE,THAMES HOMECARE SERVICE LTD,313.25,PHY LTS 65+,HOMECARE - SPOT,2103025284,1000079295
07.11.2019,ADULT SOCIAL CARE,THAMES HOMECARE SERVICE LTD,313.25,PHY LTS 65+,HOMECARE - SPOT,2103025352,1000079295
07.11.2019,ADULT SOCIAL CARE,THAMES HOMECARE SERVICE LTD,344.58,PHY LTS 65+,HOMECARE - SPOT,2103025302,1000079295
07.11.2019,ADULT SOCIAL CARE,THAMES HOMECARE SERVICE LTD,344.58,PHY LTS 65+,HOMECARE - SPOT,2103025306,1000079295
07.11.2019,ADULT SOCIAL CARE,THAMES HOMECARE SERVICE LTD,344.58,PHY LTS 65+,HOMECARE - SPOT,2103025328,1000079295
07.11.2019,ADULT SOCIAL CARE,THAMES HOMECARE SERVICE LTD,344.58,PHY LTS 65+,HOMECARE - SPOT,2103025348,1000079295
07.11.2019,ADULT SOCIAL CARE,THAMES HOMECARE SERVICE LTD,344.58,PHY LTS 65+,HOMECARE - SPOT,2103025389,1000079295
07.11.2019,ADULT SOCIAL CARE,THAMES HOMECARE SERVICE LTD,344.58,PHY LTS 65+,HOMECARE - SPOT,2103025397,1000079295
07.11.2019,ADULT SOCIAL CARE,THAMES HOMECARE SERVICE LTD,398.28,PHY LTS 65+,HOMECARE - SPOT,2103025343,1000079295
07.11.2019,ADULT SOCIAL CARE,THAMES HOMECARE SERVICE LTD,407.23,PHY LTS 65+,HOMECARE - SPOT,2103025326,1000079295
07.11.2019,ADULT SOCIAL CARE,THAMES HOMECARE SERVICE LTD,483.3,PHY LTS 65+,HOMECARE - SPOT,2103025288,1000079295
07.11.2019,ADULT SOCIAL CARE,THAMES HOMECARE SERVICE LTD,483.3,PHY LTS 65+,HOMECARE - SPOT,2103025373,1000079295
07.11.2019,ADULT SOCIAL CARE,THAMES HOMECARE SERVICE LTD,501.2,PHY LTS 65+,HOMECARE - SPOT,2103025318,1000079295
07.11.2019,ADULT SOCIAL CARE,THAMES HOMECARE SERVICE LTD,501.2,PHY LTS 65+,HOMECARE - SPOT,2103025371,1000079295
07.11.2019,ADULT SOCIAL CARE,THAMES HOMECARE SERVICE LTD,537,PHY LTS 65+,HOMECARE - SPOT,2103025289,1000079295
07.11.2019,ADULT SOCIAL CARE,THAMES HOMECARE SERVICE LTD,537,PHY LTS 65+,HOMECARE - SPOT,2103025398,1000079295
07.11.2019,ADULT SOCIAL CARE,THAMES HOMECARE SERVICE LTD,554.9,PHY LTS 65+,HOMECARE - SPOT,2103025294,1000079295
07.11.2019,ADULT SOCIAL CARE,THAMES HOMECARE SERVICE LTD,563.85,PHY LTS 65+,HOMECARE - SPOT,2103025266,1000079295
07.11.2019,ADULT SOCIAL CARE,THAMES HOMECARE SERVICE LTD,563.85,PHY LTS 65+,HOMECARE - SPOT,2103025314,1000079295
07.11.2019,ADULT SOCIAL CARE,THAMES HOMECARE SERVICE LTD,563.85,PHY LTS 65+,HOMECARE - SPOT,2103025368,1000079295
07.11.2019,ADULT SOCIAL CARE,THAMES HOMECARE SERVICE LTD,563.85,PHY LTS 65+,HOMECARE - SPOT,2103025391,1000079295
07.11.2019,ADULT SOCIAL CARE,THAMES HOMECARE SERVICE LTD,563.85,PHY LTS 65+,HOMECARE - SPOT,2103025392,1000079295
07.11.2019,ADULT SOCIAL CARE,THAMES HOMECARE SERVICE LTD,568.33,PHY LTS 65+,HOMECARE - SPOT,2103025267,1000079295
07.11.2019,ADULT SOCIAL CARE,THAMES HOMECARE SERVICE LTD,702.58,PHY LTS 65+,HOMECARE - SPOT,2103025296,1000079295
07.11.2019,ADULT SOCIAL CARE,THAMES HOMECARE SERVICE LTD,702.58,PHY LTS 65+,HOMECARE - SPOT,2103025396,1000079295
07.11.2019,ADULT SOCIAL CARE,THAMES HOMECARE SERVICE LTD,814.45,PHY LTS 65+,HOMECARE - SPOT,2103025297,1000079295
07.11.2019,ADULT SOCIAL CARE,THAMES HOMECARE SERVICE LTD,814.45,PHY LTS 65+,HOMECARE - SPOT,2103025337,1000079295
07.11.2019,ADULT SOCIAL CARE,THAMES HOMECARE SERVICE LTD,984.5,PHY LTS 65+,HOMECARE - SPOT,2103025282,1000079295
07.11.2019,ADULT SOCIAL CARE,THAMES HOMECARE SERVICE LTD,984.5,PHY LTS 65+,HOMECARE - SPOT,2103025390,1000079295
07.11.2019,ADULT SOCIAL CARE,THAMES HOMECARE SERVICE LTD,"1,029.25",PHY LTS 65+,HOMECARE - SPOT,2103025279,1000079295
07.11.2019,ADULT SOCIAL CARE,THAMES HOMECARE SERVICE LTD,"1,029.25",PHY LTS 65+,HOMECARE - SPOT,2103025354,1000079295
07.11.2019,ADULT SOCIAL CARE,HAVELOCK COURT (BUPA CARE),-629.4,PHY LTS 65+,"MAND STATUTORY CHARGES, NURSING",2103020446,1000028902
07.11.2019,ADULT SOCIAL CARE,HAVELOCK COURT (BUPA CARE),-569.4,PHY LTS 65+,"MAND STATUTORY CHARGES, RESIDENTIAL",2103020874,1000028902
07.11.2019,ADULT SOCIAL CARE,HAVELOCK COURT (BUPA CARE),"3,230.72",PHY LTS 65+,NURSING PLACEMENTS FEES,2103021099,1000028902
07.11.2019,ADULT SOCIAL CARE,HAVELOCK COURT (BUPA CARE),"3,421.04",PHY LTS 65+,NURSING PLACEMENTS FEES,2103020447,1000028902
07.11.2019,ADULT SOCIAL CARE,HAVELOCK COURT (BUPA CARE),"3,953.52",PHY LTS 65+,RESIDENTIAL CARE,2103020875,1000028902
07.11.2019,ADULT SOCIAL CARE,ALINA HOMECARE STEVENAGE LTD,307.13,PHY STS 18-64,HOMECARE - IC,2103025329,1000082621
07.11.2019,ADULT SOCIAL CARE,ALINA HOMECARE STEVENAGE LTD,312.01,PHY STS 18-64,HOMECARE - IC,2103025334,1000082621
07.11.2019,ADULT SOCIAL CARE,ALINA HOMECARE STEVENAGE LTD,336.39,PHY STS 18-64,HOMECARE - IC,2103025332,1000082621
07.11.2019,ADULT SOCIAL CARE,ALINA HOMECARE STEVENAGE LTD,341.26,PHY STS 18-64,HOMECARE - IC,2103025333,1000082621
07.11.2019,ADULT SOCIAL CARE,ALINA HOMECARE STEVENAGE LTD,346.13,PHY STS 18-64,HOMECARE - IC,2103025330,1000082621
07.11.2019,ADULT SOCIAL CARE,ALINA HOMECARE STEVENAGE LTD,351.01,PHY STS 18-64,HOMECARE - IC,2103025335,1000082621
07.11.2019,ADULT SOCIAL CARE,THAMES HOMECARE SERVICE LTD,447.5,PHY STS 65+,HOMECARE - IC,2103025338,1000079295
07.11.2019,ADULT SOCIAL CARE,THAMES HOMECARE SERVICE LTD,617.55,PHY STS 65+,HOMECARE - IC,2103025268,1000079295
07.11.2019,ADULT SOCIAL CARE,THAMES HOMECARE SERVICE LTD,617.55,PHY STS 65+,HOMECARE - IC,2103025370,1000079295
07.11.2019,ADULT SOCIAL CARE,THAMES HOMECARE SERVICE LTD,626.5,PHY STS 65+,HOMECARE - IC,2103025290,1000079295
07.11.2019,ADULT SOCIAL CARE,SIDLOFF ASSOCIATES LTD,"1,559.00",SAFEGUARDING & DOLS,EXTERNAL AGENCIES AND BODIES,5902386545,1000081744
07.11.2019,ADULT SOCIAL CARE,BLISSETT CARE LTD,392.49,SEN LTS 65+,HOMECARE - C&V,2103025197,1000042627
07.11.2019,ADULT SOCIAL CARE,SURREY DOCKS FARM PROVIDENT SOCIETY,500,SOCIAL ISOLATION,DAYCARE,2103025411,1000000958
07.11.2019,ADULT SOCIAL CARE,BLISSETT CARE LTD,318.21,SOCIAL ISOLATION,HOMECARE - C&V,2103025225,1000042627
07.11.2019,ADULT SOCIAL CARE,BLISSETT CARE LTD,649.32,SOCIAL ISOLATION,HOMECARE - C&V,2103025213,1000042627
07.11.2019,ADULT SOCIAL CARE,THAMES HOMECARE SERVICE LTD,268.5,SOCIAL ISOLATION,HOMECARE - SPOT,2103025283,1000079295
07.11.2019,ADULT SOCIAL CARE,THAMES HOMECARE SERVICE LTD,268.5,SOCIAL ISOLATION,HOMECARE - SPOT,2103025374,1000079295
07.11.2019,ASSET MANAGEMENT,STANNAH LIFT SERVICES LTD,"2,332.00",ADAPTATIONS,BUILDING R&M,5902386652,1063595
07.11.2019,ASSET MANAGEMENT,FRANKHAM CONSULTANCY GROUP LTD,725,DISREPAIR,PAYMENTS FOR LEGAL SERVICES,5902386808,1000043952
07.11.2019,ASSET MANAGEMENT,JUDGE AND PRIESTLEY SOLICITORS,"21,450.00",DISREPAIR,SOLICITORS FRAMEWORK LEGAL SERVICES,5902386747,1472217
07.11.2019,C&AS,INTERSERVE (FACILITIES MANAGEMENT),"1,062.18",CAPITAL PS (SOC SERV),CONSTRUCTION MAIN CONTRACT,2103025127,3000000166
07.11.2019,C&AS,INTERSERVE (FACILITIES MANAGEMENT),"2,048.53",CAPITAL PS (SOC SERV),CONSTRUCTION MAIN CONTRACT,2103025127,3000000166
07.11.2019,C&AS,INTERSERVE (FACILITIES MANAGEMENT),"2,192.43",CAPITAL PS (SOC SERV),CONSTRUCTION MAIN CONTRACT,2103025127,3000000166
07.11.2019,C&AS,INTERSERVE (FACILITIES MANAGEMENT),"2,488.95",CAPITAL PS (SOC SERV),CONSTRUCTION MAIN CONTRACT,2103025127,3000000166
07.11.2019,C&AS,INTERSERVE (FACILITIES MANAGEMENT),"2,488.95",CAPITAL PS (SOC SERV),CONSTRUCTION MAIN CONTRACT,2103025127,3000000166
07.11.2019,C&AS,INTERSERVE (FACILITIES MANAGEMENT),"3,304.41",CAPITAL PS (SOC SERV),CONSTRUCTION MAIN CONTRACT,2103025127,3000000166
07.11.2019,C&AS,INTERSERVE (FACILITIES MANAGEMENT),"3,316.05",CAPITAL PS (SOC SERV),CONSTRUCTION MAIN CONTRACT,2103025127,3000000166
07.11.2019,C&AS,INTERSERVE (FACILITIES MANAGEMENT),"4,476.62",CAPITAL PS (SOC SERV),CONSTRUCTION MAIN CONTRACT,2103025127,3000000166
07.11.2019,C&AS,INTERSERVE (FACILITIES MANAGEMENT),"5,798.96",CAPITAL PS (SOC SERV),CONSTRUCTION MAIN CONTRACT,2103025127,3000000166
07.11.2019,CENTRAL FUNCTIONS,PENNINGTON CHOICES LTD,685,COMMERCIAL PROPERTIES,PROFESSIONAL FEES,5902386656,1000067888
07.11.2019,CENTRAL FUNCTIONS,KENT COUNTY COUNCIL - LASER,"39,117.73",HEATING ACCOUNT,ELECTRICITY,5902386834,1000012926
07.11.2019,CENTRAL FUNCTIONS,KENT COUNTY COUNCIL - LASER,"7,335.46",HEATING ACCOUNT,GAS,5902386851,1000012926
07.11.2019,CENTRAL FUNCTIONS,KENT COUNTY COUNCIL - LASER,"307,948.94",HEATING ACCOUNT,GAS,5902386851,1000012926
07.11.2019,CENTRAL FUNCTIONS,EDF ENERGY PLC,"2,858.56",LEDBURY ESTATE,ELECTRICITY,5902386737,1008746
07.11.2019,CENTRAL FUNCTIONS,PLANTEX TRADING LTD,750,OPERATIONAL TEAM,TRAINING,5902384749,1000083359
07.11.2019,CHIEF EXECUTIVE,LONDON LETTERBOX MARKETING,906.25,CAPITAL PS (REGEN),CAPITAL ADVANCES,5902386642,1000044844
07.11.2019,CHIEF EXECUTIVE,COTTRELL AND VERMEULEN ARCH LTD,600,CAPITAL PS (REGEN),CONSTRUCTION FEES,5902386728,1000012119
07.11.2019,CHIEF EXECUTIVE,SPORTY MINTS COMMUNITY GROUP,971.65,CAPITAL PS (REGEN),CONSTRUCTION FEES,5902386370,1000071252
07.11.2019,CHIEF EXECUTIVE,SANCHEZ BENTON ARCHITECTS LTD,762.65,CAPITAL PS (REGEN),CONSTRUCTION FEES - ARCHITECT,5902386846,1000080367
07.11.2019,CHIEF EXECUTIVE,SURREY DOCKS FARM PROVIDENT SOCIETY,"11,654.00",CAPITAL PS (REGEN),CONSTRUCTION MAIN CONTRACT,5902386185,1000000958
07.11.2019,CHIEF EXECUTIVE,SURREY DOCKS FARM PROVIDENT SOCIETY,"91,902.65",CAPITAL PS (REGEN),CONSTRUCTION MAIN CONTRACT,5902386249,1000000958
07.11.2019,CHIEF EXECUTIVE,KN NETWORK SERVICES LTD,"123,694.46",CAPITAL PS (REGEN),CONSTRUCTION MAIN CONTRACT -CERTIFICATED,2103025125,3000002134
07.11.2019,CHIEF EXECUTIVE'S OFFICE,DULWICH PHARMACIES LTD,"1,000.00",HERNE HILL,EXTERNAL AGENCIES AND BODIES,5902386886,1000080143
07.11.2019,CHILDREN AND ADULT,COTTRELL AND VERMEULEN ARCH LTD,"1,530.00",CAPITAL PS (EDUCATION),CONSTRUCTION,5902386856,1000012119
07.11.2019,CHILDREN'S SERVICES,THE FAMILY PLACE LTD,380,ADOPTION REFORM GRANT (PART B),PROFESSIONAL FEES,5902386671,1000077965
07.11.2019,CHILDREN'S SERVICES,RHYS HADDEN,"1,500.00",CENTRAL COSTS - SEN,LEGAL FEES & COURT COSTS,5902386772,1000063367
07.11.2019,CHILDREN'S SERVICES,ANNA TKACZYNSKA,"1,000.00",CENTRAL COSTS - SEN,LEGAL FEES & COURT COSTS,5902386778,1000069252
07.11.2019,CHILDREN'S SERVICES,ELIZABETH FOX,600,CENTRAL COSTS - SEN,LEGAL FEES & COURT COSTS,5902386769,1000083097
07.11.2019,CHILDREN'S SERVICES,JESS MALLY,"1,632.00",CHILDREN IN CARE EVENTS,EXTERNAL AGENCIES AND BODIES,5902386803,1000083015
07.11.2019,CHILDREN'S SERVICES,AFARON GORDON,600,CHILDREN'S DEVELOPMENT,EXTERNAL AGENCIES AND BODIES,5902385546,1000083502
07.11.2019,CHILDREN'S SERVICES,BLACKFRIARS SETTLEMENT,"7,750.00",COMMUNITY LEARNING,GRANTS,5902386869,1000071456
07.11.2019,CHILDREN'S SERVICES,REDACTED PERSONAL DATA,400,DISABILITY & HIV,ADDITIONAL PAYMENTS TO AGENCIES/CARERS,REDACTED,REDACTED
07.11.2019,CHILDREN'S SERVICES,WEB-LABS LTD,"3,500.00",EARLY YEARS IMPROVEMENT,DATA COMMUNICATIONS,5902386688,1000039819
07.11.2019,CHILDREN'S SERVICES,OPTIMUM FOCUS COMPANY LTD,524.33,FAMILY GROUP CONFERENCES,PROFESSIONAL FEES,5902385176,1000081322
07.11.2019,CHILDREN'S SERVICES,OPTIMUM FOCUS COMPANY LTD,981.5,FAMILY GROUP CONFERENCES,PROFESSIONAL FEES,5902385175,1000081322
07.11.2019,CHILDREN'S SERVICES,MONIKA MCINTOSH,280,FOSTERING PRAC GROUPS,EXTERNAL AGENCIES AND BODIES,5902385882,1000083520
07.11.2019,CHILDREN'S SERVICES,WE ARE BEAMS LTD,400,FRIENDS & FAMILY FOSTERING,EXTERNAL AGENCIES AND BODIES,5902386516,1000083431
07.11.2019,CHILDREN'S SERVICES,REDACTED PERSONAL DATA,"2,000.00",LEAVING CARE GRANT,OTHER PAYMENTS FOR CLIENTS,REDACTED,REDACTED
07.11.2019,CHILDREN'S SERVICES,E4 LAW LTD,815,LEGAL,LEGAL FEES & COURT COSTS,2103025479,1000072222
07.11.2019,CHILDREN'S SERVICES,TARA VINDIS,"1,050.00",LEGAL,LEGAL FEES & COURT COSTS,2103025492,1000029896
07.11.2019,CHILDREN'S SERVICES,EMILY RADCLIFFE,400,LEGAL,LEGAL FEES & COURT COSTS,2103025453,1000047317
07.11.2019,CHILDREN'S SERVICES,ED LAMB,300,LEGAL,LEGAL FEES & COURT COSTS,2103025446,1000058531
07.11.2019,CHILDREN'S SERVICES,ED LAMB,300,LEGAL,LEGAL FEES & COURT COSTS,2103025452,1000058531
07.11.2019,CHILDREN'S SERVICES,ED LAMB,750,LEGAL,LEGAL FEES & COURT COSTS,2103025445,1000058531
07.11.2019,CHILDREN'S SERVICES,ED LAMB,750,LEGAL,LEGAL FEES & COURT COSTS,2103025448,1000058531
07.11.2019,CHILDREN'S SERVICES,ED LAMB,750,LEGAL,LEGAL FEES & COURT COSTS,2103025450,1000058531
07.11.2019,CHILDREN'S SERVICES,ED LAMB,750,LEGAL,LEGAL FEES & COURT COSTS,2103025451,1000058531
07.11.2019,CHILDREN'S SERVICES,ED LAMB,"1,875.00",LEGAL,LEGAL FEES & COURT COSTS,2103025447,1000058531
07.11.2019,CHILDREN'S SERVICES,ED LAMB,"1,875.00",LEGAL,LEGAL FEES & COURT COSTS,2103025449,1000058531
07.11.2019,CHILDREN'S SERVICES,TOM RESTALL,300,LEGAL,LEGAL FEES & COURT COSTS,2103025496,1000063020
07.11.2019,CHILDREN'S SERVICES,TOM RESTALL,475,LEGAL,LEGAL FEES & COURT COSTS,2103025495,1000063020
07.11.2019,CHILDREN'S SERVICES,TOM RESTALL,"1,050.00",LEGAL,LEGAL FEES & COURT COSTS,2103025497,1000063020
07.11.2019,CHILDREN'S SERVICES,LAURA BUMPUS,475,LEGAL,LEGAL FEES & COURT COSTS,2103025478,1000064937
07.11.2019,CHILDREN'S SERVICES,JOHN CHURCH,700,LEGAL,LEGAL FEES & COURT COSTS,2103025468,1000068682
07.11.2019,CHILDREN'S SERVICES,JOHN CHURCH,"1,000.00",LEGAL,LEGAL FEES & COURT COSTS,2103025467,1000068682
07.11.2019,CHILDREN'S SERVICES,AL HOGARTH,350,LEGAL,LEGAL FEES & COURT COSTS,2103025431,1000068723
07.11.2019,CHILDREN'S SERVICES,WILLIAM DEAN,275,LEGAL,LEGAL FEES & COURT COSTS,2103025502,1000070780
07.11.2019,CHILDREN'S SERVICES,WILLIAM DEAN,375,LEGAL,LEGAL FEES & COURT COSTS,2103025501,1000070780
07.11.2019,CHILDREN'S SERVICES,SARAH HUNWICK,325,LEGAL,LEGAL FEES & COURT COSTS,2103025488,1000073789
07.11.2019,CHILDREN'S SERVICES,JOHN SCHMITT,275,LEGAL,LEGAL FEES & COURT COSTS,2103025469,1000074146
07.11.2019,CHILDREN'S SERVICES,JOHN SCHMITT,275,LEGAL,LEGAL FEES & COURT COSTS,2103025472,1000074146
07.11.2019,CHILDREN'S SERVICES,JOHN SCHMITT,275,LEGAL,LEGAL FEES & COURT COSTS,2103025474,1000074146
07.11.2019,CHILDREN'S SERVICES,JOHN SCHMITT,325,LEGAL,LEGAL FEES & COURT COSTS,2103025470,1000074146
07.11.2019,CHILDREN'S SERVICES,JOHN SCHMITT,325,LEGAL,LEGAL FEES & COURT COSTS,2103025473,1000074146
07.11.2019,CHILDREN'S SERVICES,JOHN SCHMITT,325,LEGAL,LEGAL FEES & COURT COSTS,2103025475,1000074146
07.11.2019,CHILDREN'S SERVICES,JOHN SCHMITT,375,LEGAL,LEGAL FEES & COURT COSTS,2103025471,1000074146
07.11.2019,CHILDREN'S SERVICES,VICTORIA KIVER,375,LEGAL,LEGAL FEES & COURT COSTS,2103025498,1000083032
07.11.2019,CHILDREN'S SERVICES,VICTORIA KIVER,525,LEGAL,LEGAL FEES & COURT COSTS,2103025499,1000083032
07.11.2019,CHILDREN'S SERVICES,VICTORIA KIVER,525,LEGAL,LEGAL FEES & COURT COSTS,2103025500,1000083032
07.11.2019,CHILDREN'S SERVICES,RABIA MIR,375,LEGAL,LEGAL FEES & COURT COSTS,2103025483,1000083358
07.11.2019,CHILDREN'S SERVICES,RABIA MIR,375,LEGAL,LEGAL FEES & COURT COSTS,2103025484,1000083358
07.11.2019,CHILDREN'S SERVICES,BEORMUND COMMUNITY CENTRE,"15,269.03",NURSERY ED GRANT 3 AND 4 YR OLDS,GRANTS,2103025564,1029218
07.11.2019,CHILDREN'S SERVICES,ROCKINGHAM COMMUNITY NURSERY,"52,338.00",NURSERY ED GRANT 3 AND 4 YR OLDS,GRANTS,2103025611,1095826
07.11.2019,CHILDREN'S SERVICES,TRINITY CHILD CARE,"23,910.30",NURSERY ED GRANT 3 AND 4 YR OLDS,GRANTS,2103025630,1151305
07.11.2019,CHILDREN'S SERVICES,BERMONDSEY COMMUNITY NURSERY,"12,934.28",NURSERY ED GRANT 3 AND 4 YR OLDS,GRANTS,2103025518,1151885
07.11.2019,CHILDREN'S SERVICES,PLAYSHACK PLAYGROUP,"6,736.08",NURSERY ED GRANT 3 AND 4 YR OLDS,GRANTS,2103025605,1608859
07.11.2019,CHILDREN'S SERVICES,PUDDLEDUCK NURSERY,"6,317.02",NURSERY ED GRANT 3 AND 4 YR OLDS,GRANTS,2103025607,11210722
07.11.2019,CHILDREN'S SERVICES,PLAYDAYS UK LTD,"10,319.40",NURSERY ED GRANT 3 AND 4 YR OLDS,GRANTS,2103025616,11210767
07.11.2019,CHILDREN'S SERVICES,THE BEECHES NURSERY GROUP LTD,"22,165.65",NURSERY ED GRANT 3 AND 4 YR OLDS,GRANTS,2103025550,11215743
07.11.2019,CHILDREN'S SERVICES,MOTHER GOOSE NURSERIES T/A MOTHER GOOSE NURSERIES (UPLAND ) LTD,"16,243.50",NURSERY ED GRANT 3 AND 4 YR OLDS,GRANTS,2103025591,11216072
07.11.2019,CHILDREN'S SERVICES,A MEEHAN T/A HALFMOON MONTESSORI NURSERY,"16,731.00",NURSERY ED GRANT 3 AND 4 YR OLDS,GRANTS,2103025561,11219161
07.11.2019,CHILDREN'S SERVICES,HERMAN WHYTE T/A LITTLE CLIMBERS DAYCARE PROJECT,"10,192.65",NURSERY ED GRANT 3 AND 4 YR OLDS,GRANTS,2103025578,11230367
07.11.2019,CHILDREN'S SERVICES,COLOURBOX CHILDCARE,"2,808.00",NURSERY ED GRANT 3 AND 4 YR OLDS,GRANTS,2103025533,11241636
07.11.2019,CHILDREN'S SERVICES,THE CHERRY TREE MONTESSORI NURSERY,"4,943.48",NURSERY ED GRANT 3 AND 4 YR OLDS,GRANTS,2103025532,11255353
